Workbook

Sheet DADOS
A1: 27476 | B1: PO - Planilha Orçamentária / PLQ - Planilha de Levantamento de Quantidades / CFF - Cronograma Físico Financeiro
A2: v006
A4: INSTRUÇÕES DE USO E PREENCHIMENTO
A6: 1. Este documento somente pode ser utilizado nas versões do Excel 2003 ou superior. Não deve ser utilizado versões do BROffice. O Documento deve ser salvo SOMENTE em extensão habilitada para macros (.xls ou .xlsm). Se o documento for salvo na extensão .xlsx, o arquivo será INUTILIZADO.
A8: 2. Para funcionamento pleno desse arquivo, a Segurança de Macros do Excel deve ser habilitada.
A10: 2.1 Na Versão Excel 2003, selecione na Faixa de Opções: Ferramentas --> Macro --> Segurança --> Na aba Nível de Segurança selecione a Opção "Baixo" --> Clique em OK --> Feche e abra o Excel novamente para utilizar a Planilha.
A12: 2.2 Na Versão Excel 2007 ou superior, selecione na Faixa de Opções: Arquivo --> Opções --> Central de Confiabilidade --> Configurações da Central de Confiabilidade --> Configurações de Macro --> Habilitar todas as Macros --> Clique em OK --> Feche e abra o excel novamente para utilizar a Planilha.
A14: 3. O Preenchimento deve ser feito somente nas células em amarelo. As outras células são de preenchimento Automático.
A16: 4. Preferências de Elaboração do Orçamento
A18: 4.1. Preenchimento de Quantidades
A22: 5. Ordem de Preenchimento
A24: 5.1. na Aba DADOS
A26: 5.1.1. Preencha no Quadro abaixo os Dados do TC/CR:
A28: Nº OPERAÇÃO | C28: GESTOR | F28: PROGRAMA | J28: AÇÃO / MODALIDADE | P28: OBJETO
A29: 862911/2017 | C29: ME | F29: MINISTÉRIO DO ESPORTE | J29: INPLANTAÇÃO E MODERNIZAÇÃO DE INFRAESTRUTURA | P29: REFORMA E/OU MODERNIZAÇÃO DE QUADRA ESPORTIVA DO MUNICÍPIO DE CATANDUVAS/SC
A31: PROPONENTE / TOMADOR | G31: MUNICÍPIO / UF | K31: LOCALIDADE / ENDEREÇO | Q31: APELIDO DO EMPREENDIMENTO
A32: PREFEITURA MUNICIPAL DE CATANDUVAS/SC | G32: CATANDUVAS/SC | K32: RUA DA PAZ - ESQ. C/ RUA ANGELO GUERRA | Q32: COBERTURA E REVITALIZAÇÃO QUADRA BAIRRO REGINA
A35: 5.1.2. Preencha no quadro abaixo as informações sobre o orçamento:
A37: DATA BASE | C37: DESON. | D37: LOCALIDADE DO SINAPI | G37: DESCRIÇÃO DO LOTE | T37: BDI 1 | U37: BDI 2 | V37: BDI 3 | W37: BDI 4 | X37: BDI 5
A38: 2018-07-01 | C38: Sim | D38: Florianópolis / SC | G38: Referencia 07/2018 | T38: =IF(ISERROR(INDIRECT("'BDI ("&RIGHT(T37,1)&")'!N27")),"",INDIRECT("'BDI ("&RIGHT(T37,1)&")'!N27")) -> 0.2656 | U38: =IF(ISERROR(INDIRECT("'BDI ("&RIGHT(U37,1)&")'!N27")),"",INDIRECT("'BDI ("&RIGHT(U37,1)&")'!N27")) ->  | V38: =IF(ISERROR(INDIRECT("'BDI ("&RIGHT(V37,1)&")'!N27")),"",INDIRECT("'BDI ("&RIGHT(V37,1)&")'!N27")) ->  | W38: =IF(ISERROR(INDIRECT("'BDI ("&RIGHT(W37,1)&")'!N27")),"",INDIRECT("'BDI ("&RIGHT(W37,1)&")'!N27")) ->  | X38: =IF(ISERROR(INDIRECT("'BDI ("&RIGHT(X37,1)&")'!N27")),"",INDIRECT("'BDI ("&RIGHT(X37,1)&")'!N27")) -> 
A40: 4.1.2. Preencha no quadro abaixo as informações sobre o orçamento licitado:
A42: CTEF n.º | C42: NOME DA EMPRESA | H42: DATA BASE | J42: DESON. | K42: REGIME DE EXECUÇÃO | N42: ACOMP. | O42: OBJETO CTEF | U42: DATA ASSINATURA | W42: VIGÊNCIA
A45: 5.1.3. Preencha a data de Início da Obra:
A47: DATA INÍCIO
A48: 2019-02-01
A50: 5.1.4. Preencha no(s) Quadro(s) abaixo os Dados do(s) Responsável(is) Técnico(s) pela elaboração do Orçamento:
G52: Exibir o 2° Quadro de Assinatura? | K52: NÃO
A54: Nome: | B54: MAX MOOSHAMMER | G54: Nome:
A55: =IF(OR(TipoOrçamento="BASE",TipoOrçamento="REPROGRAMADONPL"),"Título:","Cargo:") -> Título: | B55: ENGENHEIRO CIVIL | G55: =A55 -> Título:
A56: =IF(OR(TipoOrçamento="BASE",TipoOrçamento="REPROGRAMADONPL"),"CREA/CAU:","Empresa:") -> CREA/CAU: | B56: 139.164-0 | G56: =A56 -> CREA/CAU:
A57: =IF(OR(TipoOrçamento="BASE",TipoOrçamento="REPROGRAMADONPL"),"ART/RRT:","CNPJ:") -> ART/RRT: | B57: 6753967-4 | G57: =A57 -> ART/RRT:
A60: 5.2. Legenda das Abas
A62: 5.2.1. LARANJA: Aba DADOS. Preenchimento Obrigatório. Impressão Dispensada.
A63: 5.2.2. AMARELO: Abas BDI, PO, PLQ e CFF. Preenchimento e Impressão Obrigatórias. O preenchimento da Aba BDI é dispensada para os casos de Aquisição Direta de Materiais e Equipamentos. A Impressão da Aba PLQ pode ser dispensada para casos de Frente de Obra Única.
A65: 5.3. na Aba BDI (Bonificações e Despesas Indiretas):
A67: 5.3.1. Escolha o tipo de empreendimento.
A68: 5.3.2. Escolha se o BDI será do tipo desonerado ou não (aba DADOS)
A69: 5.3.3. Informe a base de cálculo do ISS (0 a 100%).
A70: 5.3.4. Informe a alíquota do ISS (Normalmente de 2 a 5%).
A71: 5.3.5. Defina na tabela os percentuais a serem adotados para cada item que compõe o BDI nos campos em amarelo.
A72: 5.3.6. Preencha o campo observações se necessário (recomendado para os orçamentos que utilizam mais de um BDI).
A74: 5.4. na Aba PO (Planilha Orçamentária):
A76: 5.4.1. Primeiramente, selecione os níveis de cada item do orçamento na coluna NÍVEL.
A77: 5.4.1.1: O nível de "Serviço" serve tanto para serviços ou insumos (mão-de-obra / material / equipamento / veículo / máquina / ferramenta / etc). Um "nível 2/3/4" é um título (é preenchida apenas a coluna descrição) utilizado para organizar melhor a planilha orçamentária e engloba (agrupa) serviços e agrupadores de nível inferior.
A78: 5.4.2. Após a seleção dos níveis, preencha, para cada serviço, as informações sobre a Fonte de Referência, (SINAPI, SICRO, SIURB, etc) e o respectivo Código de Referência.
A79: 5.4.3. Esta planilha é compatível com o arquivo REFERÊNCIA distribuído pela CAIXA. Caso o arquivo REFERÊNCIA esteja aberto, será possível buscar um código através do botão "Buscar Código". Desta forma a descrição dos serviços será preenchida automaticamente (podendo ser substituída). Caso contrário, seu preenchimento deve ser manual.
A80: 5.4.3.1. As descrições e unidades preenchidas automaticamente ficarão vinculadas ao arquivo REFERÊNCIA até que se use o botão "Fixar Descrições", que quebra a fórmula e transforma as descrições em texto.
A81: 5.4.4. Preencher o custo unitário do serviço/insumo na Coluna CUSTO UNITÁRIO. ATENÇÃO: o custo unitário adotado deve ser menor ou igual ao contido na tabela de referência ou mediana das cotações de mercado.
A82: 5.4.5. Indicar o BDI adotado para cada serviço/insumo na Coluna BDI. Preferencialmente selecione uma das opções da lista suspensa que aparecerá na célula, esta lista contém os 05 BDIs que podem ser preenchidos na Aba BDI (conforme item 5.2 das instruções). Caso seja necessária a adoção de mais de 05 valores diferentes de BDI, digite o percentual diretamente na célula.
A83: 5.4.6. Conforme selecionado no item 4.1. desta Aba, a Coluna Quantidade pode ser preenchida diretamente na PO, ou representar a soma das quantidades de cada Frente de Obra, informadas na aba PLQ (Planilha de Levantamento de Quantitativos).
A84: 5.4.7. OBSERVAÇÃO: As demais colunas (Item / Quantidade / Preço Unitário / Preço Total) são de preenchimento automático. Não tente preenche-las ou alterá-las na Aba PO.
A85: 5.4.8. Se for necessário acrescentar ou excluir linhas da Planilha Orçamentária, utilize o Botão EDITAR PLANILHA e selecione as opções no quadro. ATENÇÃO: quanto maior o número de linhas mais lento será o processamento dos dados, então acrescente apenas o número necessário ou um pouco a mais.
A86: 5.4.8.1. Evite deixar linhas em branco no corpo da Planilha Orçamentária.
A87: 5.4.9. Caso deseje importar os dados de outro arquivo utilize apenas a opção COLAR ESPECIAL ==> VALORES.
A88: 5.4.10. Clique no Botão LICITAR / REPROGRAMAR para preencher o Orçamento Licitado ou Reprogramado.
A90: 5.5. na Aba PLQ (Planilha de Levantamento de Quantitativos):
A92: 5.5.1. Preencha primeiramente as Frentes de Obra.
A93: 5.5.1.1. Exemplos de Frentes de Obra (Rua A trecho 01 / Rua A trecho 02 / Rua B ; UH 01 / UH 02 / UH 03).
A94: 5.5.2. Preencha as quantidades dos serviços por frente de obra. A soma das quantidades de todas as frentes de um determinado serviço será a quantidade exibida na Planilha Orçamentária.
A95: 5.5.3. Caso deseje incluir ou excluir frentes, utilize os botões ADICIONAR e EXCLUIR.
A97: 5.6. na Aba CFF (Cronograma Físico-Financeiro):
A99: 5.6.1. Preencha a data de início da obra na aba Dados.
A100: 5.6.2. Preencha as porcentagens previstas por parcela para cada meta ou macrosserviço.
A101: 5.6.3. Para atualizar o Cronograma conforme o Orçamento e incluir ou excluir parcelas, utilize o botão EDITAR / ATUALIZAR CRONOGRAMA.
L107: (Selecione uma Localidade)
L108: Aracaju / SE | S108: =T38 -> 0.2656
L109: Belém / PA | S109: =U38 -> 
L110: Belo Horizonte / MG | S110: =V38 -> 
L111: Boa Vista / RR | S111: =W38 -> 
L112: Brasília / DF | S112: =X38 -> 
L113: Campo Grande / MS
L114: Cuiabá / MT
L115: Curitiba / PR | P115: Empreitada Preço Global
L116: Florianópolis / SC | P116: Empreitada Preço Unitário
L117: Fortaleza / CE | P117: Empreitada Integral
L118: Goiânia / GO | P118: Tarefa
L119: João Pessoa / PB | P119: Contratação Integrada
L120: Macapá / AP | P120: Não se aplica
L121: Maceió / AL
L122: Manaus / AM | P122: BM
L123: Natal / RN | P123: PLE
L124: Palmas / TO
L125: Porto Alegre / RS
L126: Porto Velho / RO
L127: Recife / PE
L128: Rio Branco / AC
L129: Rio de Janeiro / RJ
L130: Salvador / BA
L131: São Luís / MA
L132: São Paulo / SP
L133: Teresina / PI
L134: Vitória / ES
A220: =A28 -> Nº OPERAÇÃO | C220: =C28 -> GESTOR | F220: =F28 -> PROGRAMA | J220: =J28 -> AÇÃO / MODALIDADE | P220: =P28 -> OBJETO
A221: =IF(A29="","",A29) -> 862911/2017 | C221: =IF(C29="","",C29) -> ME | F221: =IF(F29="","",F29) -> MINISTÉRIO DO ESPORTE | J221: =IF(J29="","",J29) -> INPLANTAÇÃO E MODERNIZAÇÃO DE INFRAESTRUTURA | L221: =IF(#REF!="","",#REF!) ->  | N221: =IF(#REF!="","",#REF!) ->  | P221: =IF(P29="","",P29) -> REFORMA E/OU MODERNIZAÇÃO DE QUADRA ESPORTIVA DO MUNICÍPIO DE CATANDUVAS/SC
A223: =A31 -> PROPONENTE / TOMADOR | G223: =G31 -> MUNICÍPIO / UF | K223: =K31 -> LOCALIDADE / ENDEREÇO | Q223: =Q31 -> APELIDO DO EMPREENDIMENTO
A224: =IF(A32="","",A32) -> PREFEITURA MUNICIPAL DE CATANDUVAS/SC | G224: =IF(G32="","",G32) -> CATANDUVAS/SC | H224: =IF(I32="","",I32) ->  | J224: =IF(#REF!="","",#REF!) ->  | K224: =IF(K32="","",K32) -> RUA DA PAZ - ESQ. C/ RUA ANGELO GUERRA | Q224: =IF(Q32="","",Q32) -> COBERTURA E REVITALIZAÇÃO QUADRA BAIRRO REGINA
A226: =A37 -> DATA BASE | C226: =C37 -> DESON. | D226: =D37 -> LOCALIDADE DO SINAPI | G226: =G37 -> DESCRIÇÃO DO LOTE | T226: =T37 -> BDI 1 | U226: =U37 -> BDI 2 | V226: =V37 -> BDI 3 | W226: =W37 -> BDI 4 | X226: =X37 -> BDI 5
A227: =IF(A38="","",A38) -> 2018-07-01 | C227: =IF(C38="","",C38) -> Sim | D227: Florianópolis / SC | G227: Referencia 07/2018 | T227: 0.2656
A229: CTEF n.º | C229: NOME DA EMPRESA / CNPJ: | H229: DATA BASE | J229: DESON. | K229: REGIME DE EXECUÇÃO | N229: ACOMP. | O229: OBJETO CTEF | U229: DATA ASSINATURA | W229: VIGÊNCIA
A230: =IF(A43="","",A43) ->  | C230: =IF(C43="","",C43) ->  | E230: =IF(E43="","",E43) ->  | G230: =IF(G43="","",G43) ->  | H230: =IF(H43="","",H43) ->  | I230: =IF(I43="","",I43) ->  | J230: =IF(J43="","",J43) ->  | K230: =IF(K43="","",K43) ->  | M230: =IF(M43="","",M43) ->  | N230: =IF(N43="","",N43) ->  | O230: =IF(O43="","",O43) ->  | Q230: =IF(Q43="","",Q43) ->  | S230: =IF(S43="","",S43) ->  | U230: =IF(U43="","",U43) ->  | W230: =IF(W43="","",W43) -> 

Sheet BDI (1)
E1: MIN | F1: MED | G1: MAX | N1: ="Quadro de Composição do BDI "&MID(CELL("nome.arquivo",N1),5+FIND("BDI (",CELL("nome.arquivo",N1)),1) -> Quadro de Composição do BDI 1
A2: Construção e Reforma de Edifícios | B2: AC | C2: =CONCATENATE(A2,"-",B2) -> Construção e Reforma de Edifícios-AC | E2: 0.03 | F2: 0.04 | G2: 0.055
A3: =A2 -> Construção e Reforma de Edifícios | B3: SG | C3: Construção e Reforma de Edifícios-SG | E3: 0.008 | F3: 0.008 | G3: 0.01
A4: =A3 -> Construção e Reforma de Edifícios | B4: R | C4: Construção e Reforma de Edifícios-R | E4: 0.0097 | F4: 0.0127 | G4: 0.0127 | I4: Nº TC/CR | K4: PROPONENTE / TOMADOR
A5: =A4 -> Construção e Reforma de Edifícios | B5: DF | C5: Construção e Reforma de Edifícios-DF | E5: 0.0059 | F5: 0.0123 | G5: 0.0139 | I5: =DADOS!A29 -> 862911/2017 | K5: =DADOS!A32 -> PREFEITURA MUNICIPAL DE CATANDUVAS/SC
A6: =A5 -> Construção e Reforma de Edifícios | B6: L | C6: Construção e Reforma de Edifícios-L | E6: 0.0616 | F6: 0.074 | G6: 0.0896
A7: =A6 -> Construção e Reforma de Edifícios | B7: BDI PAD | C7: Construção e Reforma de Edifícios-BDI PAD | E7: 0.2034 | F7: 0.2212 | G7: 0.25 | I7: OBJETO
A8: Construção de Praças Urbanas, Rodovias, Ferrovias e recapeamento e pavimentação de vias urbanas | B8: AC | C8: Construção de Praças Urbanas, Rodovias, Ferrovias e recapeamento e pavimentação de vias urbanas-AC | E8: 0.038 | F8: 0.0401 | G8: 0.0467 | I8: =DADOS!P29 -> REFORMA E/OU MODERNIZAÇÃO DE QUADRA ESPORTIVA DO MUNICÍPIO DE CATANDUVAS/SC
A9: Construção de Praças Urbanas, Rodovias, Ferrovias e recapeamento e pavimentação de vias urbanas | B9: SG | C9: Construção de Praças Urbanas, Rodovias, Ferrovias e recapeamento e pavimentação de vias urbanas-SG | E9: 0.0032 | F9: 0.004 | G9: 0.0074
A10: Construção de Praças Urbanas, Rodovias, Ferrovias e recapeamento e pavimentação de vias urbanas | B10: R | C10: Construção de Praças Urbanas, Rodovias, Ferrovias e recapeamento e pavimentação de vias urbanas-R | E10: 0.005 | F10: 0.0056 | G10: 0.0097 | I10: TIPO DE OBRA DO EMPREENDIMENTO | Q10: DESONERAÇÃO
A11: Construção de Praças Urbanas, Rodovias, Ferrovias e recapeamento e pavimentação de vias urbanas | B11: DF | C11: Construção de Praças Urbanas, Rodovias, Ferrovias e recapeamento e pavimentação de vias urbanas-DF | E11: 0.0102 | F11: 0.0111 | G11: 0.0121 | I11: Construção e Reforma de Edifícios | Q11: =DADOS!$C$38 -> Sim
A12: Construção de Praças Urbanas, Rodovias, Ferrovias e recapeamento e pavimentação de vias urbanas | B12: L | C12: Construção de Praças Urbanas, Rodovias, Ferrovias e recapeamento e pavimentação de vias urbanas-L | E12: 0.0664 | F12: 0.073 | G12: 0.0869
A13: Construção de Praças Urbanas, Rodovias, Ferrovias e recapeamento e pavimentação de vias urbanas | B13: BDI PAD | C13: Construção de Praças Urbanas, Rodovias, Ferrovias e recapeamento e pavimentação de vias urbanas-BDI PAD | E13: 0.196 | F13: 0.2097 | G13: 0.2423 | I13: Conforme legislação tributária municipal, definir estimativa de percentual da base de cálculo para o ISS: | Q13: 1
A14: Construção de Redes de Abastecimento de Água, Coleta de Esgoto | B14: AC | C14: Construção de Redes de Abastecimento de Água, Coleta de Esgoto-AC | E14: 0.0343 | F14: 0.0493 | G14: 0.0671 | I14: Sobre a base de cálculo, definir a respectiva alíquota do ISS (entre 2% e 5%): | Q14: 0.03
A15: =A14 -> Construção de Redes de Abastecimento de Água, Coleta de Esgoto | B15: SG | C15: Construção de Redes de Abastecimento de Água, Coleta de Esgoto-SG | E15: 0.0028 | F15: 0.0049 | G15: 0.0075
I16: Itens | M16: Siglas | N16: % Adotado | O16: Situação | P16: 1º Quartil | Q16: Médio | R16: 3º Quartil | T16: =IF(V27,"Para BDI fora do intervalo estatístico, deve ser apresentado Relatório Técnico Circunstanciado justificando a adoção do percentual de cada parcela do BDI.","") -> 
A17: =A15 -> Construção de Redes de Abastecimento de Água, Coleta de Esgoto | B17: R | C17: Construção de Redes de Abastecimento de Água, Coleta de Esgoto-R | E17: 0.01 | F17: 0.0139 | G17: 0.0174
A18: =A17 -> Construção de Redes de Abastecimento de Água, Coleta de Esgoto | B18: DF | C18: Construção de Redes de Abastecimento de Água, Coleta de Esgoto-DF | E18: 0.0094 | F18: 0.0099 | G18: 0.0117 | I18: =IF($I$11=$A$59,"Encargos Sociais incidentes sobre a mão de obra","Administração Central") -> Administração Central | M18: =IF($I$11=$A$59,"K1","AC") -> AC | N18: 0.035 | O18: - | P18: =VLOOKUP(CONCATENATE(I$11,"-",M18),$C$2:$G$49,3,FALSE) -> 0.03 | Q18: =VLOOKUP(CONCATENATE(I$11,"-",M18),$C$2:$G$49,4,FALSE) -> 0.04 | R18: =VLOOKUP(CONCATENATE(I$11,"-",M18),$C$2:$G$49,5,FALSE) -> 0.055
A19: =A18 -> Construção de Redes de Abastecimento de Água, Coleta de Esgoto | B19: L | C19: Construção de Redes de Abastecimento de Água, Coleta de Esgoto-L | E19: 0.0674 | F19: 0.0804 | G19: 0.094 | I19: =IF($I$11=$A$59,"Administração Central da empresa ou consultoria - overhead","Seguro e Garantia") -> Seguro e Garantia | M19: =IF($I$11=$A$59,"K2","SG") -> SG | N19: 0.008 | O19: - | P19: =VLOOKUP(CONCATENATE(I$11,"-",M19),$C$2:$G$49,3,FALSE) -> 0.008 | Q19: =VLOOKUP(CONCATENATE(I$11,"-",M19),$C$2:$G$49,4,FALSE) -> 0.008 | R19: =VLOOKUP(CONCATENATE(I$11,"-",M19),$C$2:$G$49,5,FALSE) -> 0.01
A20: =A19 -> Construção de Redes de Abastecimento de Água, Coleta de Esgoto | B20: BDI PAD | C20: Construção de Redes de Abastecimento de Água, Coleta de Esgoto-BDI PAD | E20: 0.2076 | F20: 0.2418 | G20: 0.2644 | I20: =IF($I$11=$A$59,"","Risco") -> Risco | M20: =IF($I$11=$A$59,"","R") -> R | N20: 0.0097 | O20: - | P20: =VLOOKUP(CONCATENATE(I$11,"-",M20),$C$2:$G$49,3,FALSE) -> 0.0097 | Q20: =VLOOKUP(CONCATENATE(I$11,"-",M20),$C$2:$G$49,4,FALSE) -> 0.0127 | R20: =VLOOKUP(CONCATENATE(I$11,"-",M20),$C$2:$G$49,5,FALSE) -> 0.0127
A21: Construção e Manutenção de Estações e Redes de Distribuição de Energia Elétrica | B21: AC | C21: Construção e Manutenção de Estações e Redes de Distribuição de Energia Elétrica-AC | E21: 0.0529 | F21: 0.0592 | G21: 0.0793 | I21: =IF($I$11=$A$59,"","Despesas Financeiras") -> Despesas Financeiras | M21: =IF($I$11=$A$59,"","DF") -> DF | N21: 0.006 | O21: - | P21: =VLOOKUP(CONCATENATE(I$11,"-",M21),$C$2:$G$49,3,FALSE) -> 0.0059 | Q21: =VLOOKUP(CONCATENATE(I$11,"-",M21),$C$2:$G$49,4,FALSE) -> 0.0123 | R21: =VLOOKUP(CONCATENATE(I$11,"-",M21),$C$2:$G$49,5,FALSE) -> 0.0139
A22: =A21 -> Construção e Manutenção de Estações e Redes de Distribuição de Energia Elétrica | B22: SG | C22: Construção e Manutenção de Estações e Redes de Distribuição de Energia Elétrica-SG | E22: 0.0025 | F22: 0.0051 | G22: 0.0056 | I22: =IF($I$11=$A$59,"Margem bruta da empresa de consultoria","Lucro") -> Lucro | M22: =IF($I$11=$A$59,"K3","L") -> L | N22: 0.0618 | O22: - | P22: =VLOOKUP(CONCATENATE(I$11,"-",M22),$C$2:$G$49,3,FALSE) -> 0.0616 | Q22: =VLOOKUP(CONCATENATE(I$11,"-",M22),$C$2:$G$49,4,FALSE) -> 0.074 | R22: =VLOOKUP(CONCATENATE(I$11,"-",M22),$C$2:$G$49,5,FALSE) -> 0.0896
A23: =A22 -> Construção e Manutenção de Estações e Redes de Distribuição de Energia Elétrica | B23: R | C23: Construção e Manutenção de Estações e Redes de Distribuição de Energia Elétrica-R | E23: 0.01 | F23: 0.0148 | G23: 0.0197 | I23: Tributos (impostos COFINS 3%, e PIS 0,65%) | M23: CP | N23: 0.0365 | O23: - | P23: 0.0365 | Q23: 0.0365 | R23: 0.0365
A24: =A23 -> Construção e Manutenção de Estações e Redes de Distribuição de Energia Elétrica | B24: DF | C24: Construção e Manutenção de Estações e Redes de Distribuição de Energia Elétrica-DF | E24: 0.0101 | F24: 0.0107 | G24: 0.0111 | I24: Tributos (ISS, variável de acordo com o município) | M24: ISS | N24: =IF($I$11<>$A$58,Q14*Q13,0) -> 0.03 | O24: - | P24: 0 | Q24: 0.025 | R24: 0.05
A25: =A24 -> Construção e Manutenção de Estações e Redes de Distribuição de Energia Elétrica | B25: L | C25: Construção e Manutenção de Estações e Redes de Distribuição de Energia Elétrica-L | E25: 0.08 | F25: 0.0831 | G25: 0.0951 | I25: Tributos (Contribuição Previdenciária sobre a Receita Bruta - 0% ou 4,5% - Desoneração) | M25: CPRB | N25: =IF(AND($I$11<>$A$58,Q11="Sim"),4.5%,0%) -> 0.045 | O25: =IF(AND(N25>=P25, N25<=R25), "OK", "Não OK") -> OK | P25: 0 | Q25: 0.045 | R25: 0.045
A26: =A25 -> Construção e Manutenção de Estações e Redes de Distribuição de Energia Elétrica | B26: BDI PAD | C26: Construção e Manutenção de Estações e Redes de Distribuição de Energia Elétrica-BDI PAD | E26: 0.24 | F26: 0.2584 | G26: 0.2786 | I26: BDI SEM desoneração (Fórmula Acórdão TCU) | M26: BDI PAD | N26: =IF($I$11=$A$58,0,ROUND((((1+N18+N19+N20)*(1+N21)*(1+N22)/(1-(N23+N24)))-1),4)) -> 0.2046 | O26: =IF(OR($I$11=$A$59,$I$11=$A$58,AND(N26>=P26, N26<=R26)), "OK", "FORA DO INTERVALO") -> OK | P26: =IF($I$11=$A$58,0,VLOOKUP(CONCATENATE($I$11,"-",$M26),$C$2:$G$49,3,FALSE)) -> 0.2034 | Q26: =IF($I$11=$A$58,0,VLOOKUP(CONCATENATE($I$11,"-",$M26),$C$2:$G$49,4,FALSE)) -> 0.2212 | R26: =IF($I$11=$A$58,0,VLOOKUP(CONCATENATE($I$11,"-",$M26),$C$2:$G$49,5,FALSE)) -> 0.25
A27: Obras Portuárias, Marítimas e Fluviais | B27: AC | C27: Obras Portuárias, Marítimas e Fluviais-AC | E27: 0.04 | F27: 0.0552 | G27: 0.0785 | I27: BDI COM desoneração | M27: BDI DES | N27: =IF($I$11=$A$58,0,ROUND((((1+N18+N19+N20)*(1+N21)*(1+N22)/(1-(N23+N24+N25)))-1),4)) -> 0.2656 | O27: =IF(Q11<>"Sim","",O26) -> OK | V27: =AND(COUNTA(N18:N23)=6,O26<>"ok",NOT(V29)) -> FALSE | W27: pedir anexo
A28: =A27 -> Obras Portuárias, Marítimas e Fluviais | B28: SG | C28: Obras Portuárias, Marítimas e Fluviais-SG | E28: 0.0081 | F28: 0.0122 | G28: 0.0199
A29: =A28 -> Obras Portuárias, Marítimas e Fluviais | B29: R | C29: Obras Portuárias, Marítimas e Fluviais-R | E29: 0.0146 | F29: 0.0232 | G29: 0.0316 | I29: =IF(V29,"X","") ->  | J29: Anexo: Relatório Técnico Circunstanciado justificando a adoção do percentual de cada parcela do BDI. | V29: FALSE | W29: anexo apresentado
I31: Os valores de BDI foram calculados com o emprego da fórmula:
A32: =A29 -> Obras Portuárias, Marítimas e Fluviais | B32: DF | C32: Obras Portuárias, Marítimas e Fluviais-DF | E32: 0.0094 | F32: 0.0102 | G32: 0.0133 | L32: =IF(Q11="Sim","BDI.DES =","BDI.PAD =") -> BDI.DES = | M32: =IF($I$11=$A$59,"(1+K1+K2)*(1+K3)","(1+AC + S + R + G)*(1 + DF)*(1+L)") -> (1+AC + S + R + G)*(1 + DF)*(1+L) | P32: - 1
A33: =A32 -> Obras Portuárias, Marítimas e Fluviais | B33: L | C33: Obras Portuárias, Marítimas e Fluviais-L | E33: 0.0714 | F33: 0.084 | G33: 0.1043 | M33: =IF(Q11="Sim","(1-CP-ISS-CRPB)","(1-CP-ISS)") -> (1-CP-ISS-CRPB)
A34: =A33 -> Obras Portuárias, Marítimas e Fluviais | B34: BDI PAD | C34: Obras Portuárias, Marítimas e Fluviais-BDI PAD | E34: 0.228 | F34: 0.2748 | G34: 0.3095
I35: =CONCATENATE("Declaro para os devidos fins que, conforme legislação tributária municipal, a base de cálculo para ",I11,", é de ",Q13*100,"%, com a respectiva alíquota de ",Q14*100,"%.") -> Declaro para os devidos fins que, conforme legislação tributária municipal, a base de cálculo para Construção e Reforma de Edifícios, é de 100%, com a respectiva alíquota de 3%.
I37: =CONCATENATE("Declaro para os devidos fins que o regime de Contribuição Previdenciária sobre a Receita Bruta adotado para elaboração do orçamento foi ",IF(Q11="Sim","COM","SEM")," Desoneração, e que esta é a alternativa mais adequada para a Administração Pública.") -> Declaro para os devidos fins que o regime de Contribuição Previdenciária sobre a Receita Bruta adotado para elaboração do orçamento foi COM Desoneração, e que esta é a alternativa mais adequada para a Administração Pública.
A38: Fornecimento de Materiais e Equipamentos (aquisição indireta - em conjunto com licitação de obras) | B38: AC | C38: Fornecimento de Materiais e Equipamentos (aquisição indireta - em conjunto com licitação de obras)-AC | E38: 0.015 | F38: 0.0345 | G38: 0.0449
A39: =A38 -> Fornecimento de Materiais e Equipamentos (aquisição indireta - em conjunto com licitação de obras) | B39: SG | C39: Fornecimento de Materiais e Equipamentos (aquisição indireta - em conjunto com licitação de obras)-SG | E39: 0.003 | F39: 0.0048 | G39: 0.0082 | I39: Observações:
A40: =A39 -> Fornecimento de Materiais e Equipamentos (aquisição indireta - em conjunto com licitação de obras) | B40: R | C40: Fornecimento de Materiais e Equipamentos (aquisição indireta - em conjunto com licitação de obras)-R | E40: 0.0056 | F40: 0.0085 | G40: 0.0089
A41: =A40 -> Fornecimento de Materiais e Equipamentos (aquisição indireta - em conjunto com licitação de obras) | B41: DF | C41: Fornecimento de Materiais e Equipamentos (aquisição indireta - em conjunto com licitação de obras)-DF | E41: 0.0085 | F41: 0.0085 | G41: 0.0111
A42: =A41 -> Fornecimento de Materiais e Equipamentos (aquisição indireta - em conjunto com licitação de obras) | B42: L | C42: Fornecimento de Materiais e Equipamentos (aquisição indireta - em conjunto com licitação de obras)-L | E42: 0.035 | F42: 0.0511 | G42: 0.0622 | I42: =PO!K63 -> CATANDUVAS/SC | O42: =PO!K66 -> 2019-02-22
A43: =A42 -> Fornecimento de Materiais e Equipamentos (aquisição indireta - em conjunto com licitação de obras) | B43: BDI PAD | C43: Fornecimento de Materiais e Equipamentos (aquisição indireta - em conjunto com licitação de obras)-BDI PAD | E43: 0.111 | F43: 0.1402 | G43: 0.168 | I43: Local | O43: Data
A44: Estudos e Projetos, Planos e Gerenciamento e outros correlatos | B44: K1 | C44: Estudos e Projetos, Planos e Gerenciamento e outros correlatos-K1 | E44: - | F44: - | G44: -
A45: =A44 -> Estudos e Projetos, Planos e Gerenciamento e outros correlatos | B45: K2 | C45: Estudos e Projetos, Planos e Gerenciamento e outros correlatos-K2 | E45: - | F45: 0.2 | G45: -
A46: =A45 -> Estudos e Projetos, Planos e Gerenciamento e outros correlatos | C46: Estudos e Projetos, Planos e Gerenciamento e outros correlatos- | E46: - | F46: - | G46: - | I46: Responsável Técnico | O46: Responsável Tomador
A47: =A46 -> Estudos e Projetos, Planos e Gerenciamento e outros correlatos | C47: Estudos e Projetos, Planos e Gerenciamento e outros correlatos- | E47: - | F47: - | G47: - | I47: Nome: | J47: =DADOS!B54 -> MAX MOOSHAMMER | O47: Nome: | P47: DORIVAL RIBEIRO DOS SANTOS
A48: =A47 -> Estudos e Projetos, Planos e Gerenciamento e outros correlatos | B48: K3 | C48: Estudos e Projetos, Planos e Gerenciamento e outros correlatos-K3 | E48: - | F48: 0.12 | G48: - | I48: Título: | J48: =DADOS!B55 -> ENGENHEIRO CIVIL | O48: Cargo: | P48: PREFEITO MUNICIPAL
A49: =A48 -> Estudos e Projetos, Planos e Gerenciamento e outros correlatos | B49: BDI PAD | C49: Estudos e Projetos, Planos e Gerenciamento e outros correlatos-BDI PAD | E49: - | F49: - | G49: - | I49: =DADOS!A56 -> CREA/CAU: | J49: =DADOS!B56 -> 139.164-0
I50: =DADOS!A57 -> ART/RRT: | J50: =DADOS!B57 -> 6753967-4
A52: Construção e Reforma de Edifícios
A53: Construção de Praças Urbanas, Rodovias, Ferrovias e recapeamento e pavimentação de vias urbanas
A54: Construção de Redes de Abastecimento de Água, Coleta de Esgoto
A55: Construção e Manutenção de Estações e Redes de Distribuição de Energia Elétrica
A56: Obras Portuárias, Marítimas e Fluviais
A57: Fornecimento de Materiais e Equipamentos (aquisição indireta - em conjunto com licitação de obras)
A58: Fornecimento de Materiais e Equipamentos (aquisição direta)
A59: Estudos e Projetos, Planos e Gerenciamento e outros correlatos

Sheet PO
N1: PO - PLANILHA ORÇAMENTÁRIA | T1: Grau de Sigilo
B2: LOTE | C2: Meta | D2: Nível 2 | E2: Nível 3 | F2: Nível 4 | G2: Serviço | N2: =CHOOSE(1+LOG(1+2*(TipoOrçamento="BASE")+4*(TipoOrçamento="LICITADO")+8*(TipoOrçamento="REPROGRAMADOAC")+16*(TipoOrçamento="REPROGRAMADONPL"),2),"nada","Orçamento Base para Licitação","Orçamento Licitado","Orçamento Licitado Reprogramado","Orçamento Base para Licitação - Reprogramado") -> Orçamento Base para Licitação | T2: #PUBLICO | W2: Arredondamento
W3: Quantidade | X3: TRUE
A4: Nmax | U4: ERRO GERAL | W4: Custo Unitáro | X4: TRUE
A5: =MAX($A$12:$A$52) -> 2 | U5: =IF(COUNTIF($U$12:OFFSET($U$52,-1,0),"DESCRIÇÃO")+COUNTIF($U$12:OFFSET($U$52,-1,0),"UNIDADE")+COUNTIF($U$12:OFFSET($U$52,-1,0),"SEM VALOR")>0,"NÃO OK","OK") -> OK | W5: BDI | X5: TRUE
W6: Preço Unitário | X6: TRUE
W7: Preço Total | X7: TRUE
P9: =OFFSET(PLQ!$E$12,ROW($P9)-ROW(P$12),0) -> -
A10: Nível | B10: Altura | C10: n1 | D10: n2 | E10: n3 | F10: n4 | G10: n5 | H10: Czero | I10: Cnível | J10: Nível | K10: Item | L10: Fonte | M10: Código | N10: Descrição | O10: Unidade | P10: Quantidade | Q10: =IF(OR(TipoOrçamento="LICITADO",TipoOrçamento="REPROGRAMADOAC"),"Preço Unitário (R$)","Custo Unitário (R$)") -> Custo Unitário (R$) | R10: BDI (%) | S10: Preço Unitário (R$) | T10: Preço Total (R$) | U10: Erro de Dados | V10: Lista Crono | W10: Concatenação Fonte-Código | X10: BancoRef | Y10: =IF(TipoOrçamento="LICITADO","Preço Unitário Edital (R$)","Custo Unitário Referência (R$)") -> Custo Unitário Referência (R$) | Z10: =IF(TipoOrçamento="LICITADO","Valor BDI Edital","Valor BDI") -> Valor BDI
A11: =CHOOSE(1+LOG(1+2*(J11="Meta")+4*(J11="Nível 2")+8*(J11="Nível 3")+16*(J11="Nível 4")+32*(J11="Serviço"),2),0,1,2,3,4,"S") -> S | B11: =IF(OR(A11="S",A11=0),0,IF(ISERROR(I11),H11,SMALL(H11:I11,1))) -> 0 | C11: =IF($A11=1,OFFSET(C11,-1,0)+1,OFFSET(C11,-1,0)) -> n1 | D11: =IF($A11=1,0,IF($A11=2,OFFSET(D11,-1,0)+1,OFFSET(D11,-1,0))) -> n2 | E11: =IF(AND($A11<=2,$A11<>0),0,IF($A11=3,OFFSET(E11,-1,0)+1,OFFSET(E11,-1,0))) -> n3 | F11: =IF(AND($A11<=3,$A11<>0),0,IF($A11=4,OFFSET(F11,-1,0)+1,OFFSET(F11,-1,0))) -> n4 | G11: =IF(AND($A11<=4,$A11<>0),0,IF($A11="S",OFFSET(G11,-1,0)+1,OFFSET(G11,-1,0))) ->  | H11: =IF(OR($A11="S",$A11=0),0,MATCH(0,OFFSET($B11,1,$A11,ROW($A$52)-ROW($A11)),0)) -> 0 | I11: =IF(OR($A11="S",$A11=0),0,MATCH(OFFSET($B11,0,$A11)+1,OFFSET($B11,1,$A11,ROW($A$52)-ROW($A11)),0)) -> 0 | J11: Serviço | K11: =IF($A11=0,"-",CONCATENATE(C11&".",IF(AND($A$5>=2,$A11>=2),D11&".",""),IF(AND($A$5>=3,$A11>=3),E11&".",""),IF(AND($A$5>=4,$A11>=4),F11&".",""),IF($A11="S",G11&".",""))) ->  | N11: =IF($A11="S",Referencia.Descricao,"(digite a descrição aqui)") ->  | O11: =Referencia.Unidade ->  | P11: =OFFSET(PLQ!$E$12,ROW($P11)-ROW(P$12),0) -> 0 | R11: BDI 1 | S11: =IF($A11="S",IF($Q$10="Preço Unitário (R$)",PO.CustoUnitario,ROUND(PO.CustoUnitario*(1+$Z11),15-13*$X$6)),0) -> 0 | T11: =IF($A11="S",VTOTAL1,IF($A11=0,0,ROUND(SomaAgrup,15-13*$X$7))) -> 0 | U11: =IF($J11="","",IF($N11="","DESCRIÇÃO",IF(AND($J11="Serviço",$O11=""),"UNIDADE",IF($T11<=0,"SEM VALOR",IF(AND($Y11<>"",$Q11>$Y11),"ACIMA REF.",""))))) -> DESCRIÇÃO | V11: =IF(OR($A11=0,$A11="S",$A11>CFF!$A$9),"",MAX(V$12:OFFSET(V11,-1,0))+1) ->  | W11: =IF(AND($J11="Serviço",$M11<>""),IF($L11="",$M11,CONCATENATE($L11,"-",$M11))) -> FALSE | X11: =IF(AND(Fonte<>"",Código<>""),MATCH(Fonte&" "&IF(Fonte="sinapi",SUBSTITUTE(SUBSTITUTE(Código,"/00","/"),"/0","/"),Código),INDIRECT("'[Referência "&_xlnm.Database&".xls]Banco'!$a:$a"),0),"X") -> X | Y11: =IF(Import.Desoneracao="sim",Referencia.Desonerado,Referencia.NaoDesonerado) -> 0 | Z11: =ROUND(IF(ISNUMBER(R11),R11,IF(LEFT(R11,3)="BDI",HLOOKUP(R11,DADOS!$T$37:$X$38,2,FALSE),0)),15-11*$X$5) -> 0.2656
A12: 0 | B12: =COUNTA(OFFSET(B12,1,0):B$52) -> 39 | J12: =IF(OR(TipoOrçamento="LICITADO",TipoOrçamento="REPROGRAMADOAC"),"CTEF","LOTE") -> LOTE | K12: 0 | N12: =IF(TipoOrçamento="LICITADO",DADOS!O43,DADOS!G38) -> Referencia 07/2018 | T12: =SUMIF(OFFSET($J12,1,0,ROW(T52)-ROW(T12)-1),"Serviço",OFFSET(T12,1,0,ROW(T52)-ROW(T12)-1)) -> 483284.68 | U12: =IF($N12=0,"DESCRIÇÃO","") ->  | V12: 0
A13: =CHOOSE(1+LOG(1+2*(J13="Meta")+4*(J13="Nível 2")+8*(J13="Nível 3")+16*(J13="Nível 4")+32*(J13="Serviço"),2),0,1,2,3,4,"S") -> 1 | B13: =IF(OR(A13="S",A13=0),0,IF(ISERROR(I13),H13,SMALL(H13:I13,1))) -> 39 | C13: =IF($A13=1,OFFSET(C13,-1,0)+1,OFFSET(C13,-1,0)) -> 1 | D13: =IF($A13=1,0,IF($A13=2,OFFSET(D13,-1,0)+1,OFFSET(D13,-1,0))) -> 0 | E13: =IF(AND($A13<=2,$A13<>0),0,IF($A13=3,OFFSET(E13,-1,0)+1,OFFSET(E13,-1,0))) -> 0 | F13: =IF(AND($A13<=3,$A13<>0),0,IF($A13=4,OFFSET(F13,-1,0)+1,OFFSET(F13,-1,0))) -> 0 | G13: =IF(AND($A13<=4,$A13<>0),0,IF($A13="S",OFFSET(G13,-1,0)+1,OFFSET(G13,-1,0))) -> 0 | H13: =IF(OR($A13="S",$A13=0),0,MATCH(0,OFFSET($B13,1,$A13,ROW($A$52)-ROW($A13)),0)) -> 39 | I13: =IF(OR($A13="S",$A13=0),0,MATCH(OFFSET($B13,0,$A13)+1,OFFSET($B13,1,$A13,ROW($A$52)-ROW($A13)),0)) ->  | J13: Meta | K13: =IF($A13=0,"-",CONCATENATE(C13&".",IF(AND($A$5>=2,$A13>=2),D13&".",""),IF(AND($A$5>=3,$A13>=3),E13&".",""),IF(AND($A$5>=4,$A13>=4),F13&".",""),IF($A13="S",G13&".",""))) -> 1. | N13: COBERTURA E REVITALIZAÇÃO QUADRA BAIRRO REGINA | O13: =Referencia.Unidade ->  | P13: =OFFSET(PLQ!$E$12,ROW($P13)-ROW(P$12),0) -> 0 | R13: BDI 1 | S13: =IF($A13="S",IF($Q$10="Preço Unitário (R$)",PO.CustoUnitario,ROUND(PO.CustoUnitario*(1+$Z13),15-13*$X$6)),0) -> 0 | T13: =IF($A13="S",VTOTAL1,IF($A13=0,0,ROUND(SomaAgrup,15-13*$X$7))) -> 483284.68 | U13: =IF($J13="","",IF($N13="","DESCRIÇÃO",IF(AND($J13="Serviço",$O13=""),"UNIDADE",IF($T13<=0,"SEM VALOR",IF(AND($Y13<>"",$Q13>$Y13),"ACIMA REF.",""))))) ->  | V13: =IF(OR($A13=0,$A13="S",$A13>CFF!$A$9),"",MAX(V$12:OFFSET(V13,-1,0))+1) -> 1 | W13: =IF(AND($J13="Serviço",$M13<>""),IF($L13="",$M13,CONCATENATE($L13,"-",$M13))) -> FALSE | X13: =IF(AND(Fonte<>"",Código<>""),MATCH(Fonte&" "&IF(Fonte="sinapi",SUBSTITUTE(SUBSTITUTE(Código,"/00","/"),"/0","/"),Código),INDIRECT("'[Referência "&_xlnm.Database&".xls]Banco'!$a:$a"),0),"X") -> X | Y13: =IF(Import.Desoneracao="sim",Referencia.Desonerado,Referencia.NaoDesonerado) -> 0 | Z13: =ROUND(IF(ISNUMBER(R13),R13,IF(LEFT(R13,3)="BDI",HLOOKUP(R13,DADOS!$T$37:$X$38,2,FALSE),0)),15-11*$X$5) -> 0.2656
A14: =CHOOSE(1+LOG(1+2*(J14="Meta")+4*(J14="Nível 2")+8*(J14="Nível 3")+16*(J14="Nível 4")+32*(J14="Serviço"),2),0,1,2,3,4,"S") -> 2 | B14: =IF(OR(A14="S",A14=0),0,IF(ISERROR(I14),H14,SMALL(H14:I14,1))) -> 4 | C14: =IF($A14=1,OFFSET(C14,-1,0)+1,OFFSET(C14,-1,0)) -> 1 | D14: =IF($A14=1,0,IF($A14=2,OFFSET(D14,-1,0)+1,OFFSET(D14,-1,0))) -> 1 | E14: =IF(AND($A14<=2,$A14<>0),0,IF($A14=3,OFFSET(E14,-1,0)+1,OFFSET(E14,-1,0))) -> 0 | F14: =IF(AND($A14<=3,$A14<>0),0,IF($A14=4,OFFSET(F14,-1,0)+1,OFFSET(F14,-1,0))) -> 0 | G14: =IF(AND($A14<=4,$A14<>0),0,IF($A14="S",OFFSET(G14,-1,0)+1,OFFSET(G14,-1,0))) -> 0 | H14: 38 | I14: 4 | J14: Nível 2 | K14: =IF($A14=0,"-",CONCATENATE(C14&".",IF(AND($A$5>=2,$A14>=2),D14&".",""),IF(AND($A$5>=3,$A14>=3),E14&".",""),IF(AND($A$5>=4,$A14>=4),F14&".",""),IF($A14="S",G14&".",""))) -> 1.1. | N14: SERVIÇOS INICIAIS | O14: =Referencia.Unidade ->  | P14: =OFFSET(PLQ!$E$12,ROW($P14)-ROW(P$12),0) -> 0 | R14: BDI 1 | S14: =IF($A14="S",IF($Q$10="Preço Unitário (R$)",PO.CustoUnitario,ROUND(PO.CustoUnitario*(1+$Z14),15-13*$X$6)),0) -> 0 | T14: =IF($A14="S",VTOTAL1,IF($A14=0,0,ROUND(SomaAgrup,15-13*$X$7))) -> 2893.25 | U14: =IF($J14="","",IF($N14="","DESCRIÇÃO",IF(AND($J14="Serviço",$O14=""),"UNIDADE",IF($T14<=0,"SEM VALOR",IF(AND($Y14<>"",$Q14>$Y14),"ACIMA REF.",""))))) ->  | V14: =IF(OR($A14=0,$A14="S",$A14>CFF!$A$9),"",MAX(V$12:OFFSET(V14,-1,0))+1) -> 2 | W14: =IF(AND($J14="Serviço",$M14<>""),IF($L14="",$M14,CONCATENATE($L14,"-",$M14))) -> FALSE | X14: =IF(AND(Fonte<>"",Código<>""),MATCH(Fonte&" "&IF(Fonte="sinapi",SUBSTITUTE(SUBSTITUTE(Código,"/00","/"),"/0","/"),Código),INDIRECT("'[Referência "&_xlnm.Database&".xls]Banco'!$a:$a"),0),"X") -> X | Y14: =IF(Import.Desoneracao="sim",Referencia.Desonerado,Referencia.NaoDesonerado) -> 0 | Z14: =ROUND(IF(ISNUMBER(R14),R14,IF(LEFT(R14,3)="BDI",HLOOKUP(R14,DADOS!$T$37:$X$38,2,FALSE),0)),15-11*$X$5) -> 0.2656
A15: =CHOOSE(1+LOG(1+2*(J15="Meta")+4*(J15="Nível 2")+8*(J15="Nível 3")+16*(J15="Nível 4")+32*(J15="Serviço"),2),0,1,2,3,4,"S") -> S | B15: =IF(OR(A15="S",A15=0),0,IF(ISERROR(I15),H15,SMALL(H15:I15,1))) -> 0 | C15: =IF($A15=1,OFFSET(C15,-1,0)+1,OFFSET(C15,-1,0)) -> 1 | D15: =IF($A15=1,0,IF($A15=2,OFFSET(D15,-1,0)+1,OFFSET(D15,-1,0))) -> 1 | E15: =IF(AND($A15<=2,$A15<>0),0,IF($A15=3,OFFSET(E15,-1,0)+1,OFFSET(E15,-1,0))) -> 0 | F15: =IF(AND($A15<=3,$A15<>0),0,IF($A15=4,OFFSET(F15,-1,0)+1,OFFSET(F15,-1,0))) -> 0 | G15: =IF(AND($A15<=4,$A15<>0),0,IF($A15="S",OFFSET(G15,-1,0)+1,OFFSET(G15,-1,0))) -> 1 | H15: 0 | I15: 0 | J15: Serviço | K15: =IF($A15=0,"-",CONCATENATE(C15&".",IF(AND($A$5>=2,$A15>=2),D15&".",""),IF(AND($A$5>=3,$A15>=3),E15&".",""),IF(AND($A$5>=4,$A15>=4),F15&".",""),IF($A15="S",G15&".",""))) -> 1.1.1. | L15: SINAPI | M15: 74209/001 | N15: PLACA DE OBRA EM CHAPA DE ACO GALVANIZADO PADRÃO AMMOC | O15: M2 | P15: =OFFSET(PLQ!$E$12,ROW($P15)-ROW(P$12),0) -> 2.5 | Q15: 250 | R15: BDI 1 | S15: 316.4 | T15: 791 | U15: =IF($J15="","",IF($N15="","DESCRIÇÃO",IF(AND($J15="Serviço",$O15=""),"UNIDADE",IF($T15<=0,"SEM VALOR",IF(AND($Y15<>"",$Q15>$Y15),"ACIMA REF.",""))))) ->  | V15: =IF(OR($A15=0,$A15="S",$A15>CFF!$A$9),"",MAX(V$12:OFFSET(V15,-1,0))+1) ->  | W15: =IF(AND($J15="Serviço",$M15<>""),IF($L15="",$M15,CONCATENATE($L15,"-",$M15))) -> SINAPI-74209/001 | X15: 6012 | Y15: =IF(Import.Desoneracao="sim",Referencia.Desonerado,Referencia.NaoDesonerado) -> 317.3 | Z15: =ROUND(IF(ISNUMBER(R15),R15,IF(LEFT(R15,3)="BDI",HLOOKUP(R15,DADOS!$T$37:$X$38,2,FALSE),0)),15-11*$X$5) -> 0.2656
A16: S | B16: 0 | C16: 1 | D16: 1 | E16: 0 | F16: 0 | G16: 2 | H16: 0 | I16: 0 | J16: Serviço | K16: 1.1.2. | L16: SINAPI | M16: 74209/001 | N16: PLACA DE OBRA EM CHAPA DE ACO GALVANIZADO PADRÃO CAIXA | O16: M2 | P16: =OFFSET(PLQ!$E$12,ROW($P16)-ROW(P$12),0) -> 2.5 | Q16: 250 | R16: BDI 1 | S16: 316.4 | T16: 791 | V16: =IF(OR($A16=0,$A16="S",$A16>CFF!$A$9),"",MAX(V$12:OFFSET(V16,-1,0))+1) ->  | W16: SINAPI-74209/001 | X16: 6012 | Y16: =IF(Import.Desoneracao="sim",Referencia.Desonerado,Referencia.NaoDesonerado) -> 317.3 | Z16: =ROUND(IF(ISNUMBER(R16),R16,IF(LEFT(R16,3)="BDI",HLOOKUP(R16,DADOS!$T$37:$X$38,2,FALSE),0)),15-11*$X$5) -> 0.2656
A17: S | B17: 0 | C17: 1 | D17: 1 | E17: 0 | F17: 0 | G17: 3 | H17: 0 | I17: 0 | J17: Serviço | K17: 1.1.3. | L17: SINAPI | M17: 74077/002 | N17: LOCACAO CONVENCIONAL DE OBRA | O17: M2 | P17: =OFFSET(PLQ!$E$12,ROW($P17)-ROW(P$12),0) -> 1032.48 | Q17: 1 | R17: BDI 1 | S17: 1.27 | T17: 1311.25 | V17: =IF(OR($A17=0,$A17="S",$A17>CFF!$A$9),"",MAX(V$12:OFFSET(V17,-1,0))+1) ->  | W17: SINAPI-74077/002 | X17: 11841 | Y17: =IF(Import.Desoneracao="sim",Referencia.Desonerado,Referencia.NaoDesonerado) -> 4.17 | Z17: =ROUND(IF(ISNUMBER(R17),R17,IF(LEFT(R17,3)="BDI",HLOOKUP(R17,DADOS!$T$37:$X$38,2,FALSE),0)),15-11*$X$5) -> 0.2656
A18: 2 | B18: 3 | C18: 1 | D18: 2 | E18: 0 | F18: 0 | G18: 0 | H18: 34 | I18: 3 | J18: Nível 2 | K18: 1.2. | N18: ESCAVAÇÃO E REATERRO | O18: =Referencia.Unidade ->  | P18: =OFFSET(PLQ!$E$12,ROW($P18)-ROW(P$12),0) -> 0 | R18: BDI 1 | S18: 0 | T18: 1501.94 | V18: =IF(OR($A18=0,$A18="S",$A18>CFF!$A$9),"",MAX(V$12:OFFSET(V18,-1,0))+1) -> 3 | W18: FALSE | X18: X | Y18: =IF(Import.Desoneracao="sim",Referencia.Desonerado,Referencia.NaoDesonerado) -> 0 | Z18: =ROUND(IF(ISNUMBER(R18),R18,IF(LEFT(R18,3)="BDI",HLOOKUP(R18,DADOS!$T$37:$X$38,2,FALSE),0)),15-11*$X$5) -> 0.2656
A19: S | B19: 0 | C19: 1 | D19: 2 | E19: 0 | F19: 0 | G19: 1 | H19: 0 | I19: 0 | J19: Serviço | K19: 1.2.1. | L19: SINAPI | M19: 79480 | N19: ESCAVACAO MECANICA CAMPO ABERTO | O19: M3 | P19: =OFFSET(PLQ!$E$12,ROW($P19)-ROW(P$12),0) -> 92.64 | Q19: 2 | R19: BDI 1 | S19: 2.53 | T19: 234.38 | V19: =IF(OR($A19=0,$A19="S",$A19>CFF!$A$9),"",MAX(V$12:OFFSET(V19,-1,0))+1) ->  | W19: SINAPI-79480 | X19: 10405 | Y19: =IF(Import.Desoneracao="sim",Referencia.Desonerado,Referencia.NaoDesonerado) -> 2.04 | Z19: =ROUND(IF(ISNUMBER(R19),R19,IF(LEFT(R19,3)="BDI",HLOOKUP(R19,DADOS!$T$37:$X$38,2,FALSE),0)),15-11*$X$5) -> 0.2656
A20: S | B20: 0 | C20: 1 | D20: 2 | E20: 0 | F20: 0 | G20: 2 | H20: 0 | I20: 0 | J20: Serviço | K20: 1.2.2. | L20: SINAPI | M20: 93382 | N20: REATERRO MANUAL DE VALAS COM COMPACTAÇÃO MECANIZADA | O20: M3 | P20: =OFFSET(PLQ!$E$12,ROW($P20)-ROW(P$12),0) -> 45.53 | Q20: 22 | R20: BDI 1 | S20: 27.84 | T20: 1267.56 | V20: =IF(OR($A20=0,$A20="S",$A20>CFF!$A$9),"",MAX(V$12:OFFSET(V20,-1,0))+1) ->  | W20: SINAPI-93382 | X20: 10538 | Y20: =IF(Import.Desoneracao="sim",Referencia.Desonerado,Referencia.NaoDesonerado) -> 22.06 | Z20: =ROUND(IF(ISNUMBER(R20),R20,IF(LEFT(R20,3)="BDI",HLOOKUP(R20,DADOS!$T$37:$X$38,2,FALSE),0)),15-11*$X$5) -> 0.2656
A21: 2 | B21: 5 | C21: 1 | D21: 3 | E21: 0 | F21: 0 | G21: 0 | H21: 31 | I21: 5 | J21: Nível 2 | K21: 1.3. | N21: ESTRUTURA DE CONCRETO ARMADO | O21: =Referencia.Unidade ->  | P21: =OFFSET(PLQ!$E$12,ROW($P21)-ROW(P$12),0) -> 0 | R21: BDI 1 | S21: 0 | T21: 167268.34 | V21: =IF(OR($A21=0,$A21="S",$A21>CFF!$A$9),"",MAX(V$12:OFFSET(V21,-1,0))+1) -> 4 | W21: FALSE | X21: X | Y21: =IF(Import.Desoneracao="sim",Referencia.Desonerado,Referencia.NaoDesonerado) -> 0 | Z21: =ROUND(IF(ISNUMBER(R21),R21,IF(LEFT(R21,3)="BDI",HLOOKUP(R21,DADOS!$T$37:$X$38,2,FALSE),0)),15-11*$X$5) -> 0.2656
A22: S | B22: 0 | C22: 1 | D22: 3 | E22: 0 | F22: 0 | G22: 1 | H22: 0 | I22: 0 | J22: Serviço | K22: 1.3.1. | L22: SINAPI-I | M22: 4718 | N22: PEDRA BRITADA N. 2 (19 A 38 MM) PARA LASTRO DE FUNDO | O22: M3 | P22: =OFFSET(PLQ!$E$12,ROW($P22)-ROW(P$12),0) -> 3.7 | Q22: =Y22 -> 62.5 | R22: BDI 1 | S22: 79.1 | T22: 292.67 | V22: =IF(OR($A22=0,$A22="S",$A22>CFF!$A$9),"",MAX(V$12:OFFSET(V22,-1,0))+1) ->  | W22: SINAPI-I-4718 | X22: 3913 | Y22: =IF(Import.Desoneracao="sim",Referencia.Desonerado,Referencia.NaoDesonerado) -> 62.5 | Z22: =ROUND(IF(ISNUMBER(R22),R22,IF(LEFT(R22,3)="BDI",HLOOKUP(R22,DADOS!$T$37:$X$38,2,FALSE),0)),15-11*$X$5) -> 0.2656
A23: S | B23: 0 | C23: 1 | D23: 3 | E23: 0 | F23: 0 | G23: 2 | H23: 0 | I23: 0 | J23: Serviço | K23: 1.3.2. | L23: SINAPI | M23: 95957 | N23: SAPATAS E CÁLICES EM CONCRETO ARMADO | O23: M3 | P23: =OFFSET(PLQ!$E$12,ROW($P23)-ROW(P$12),0) -> 47.11 | Q23: 1100 | R23: BDI 1 | S23: 1392.16 | T23: 65584.66 | V23: =IF(OR($A23=0,$A23="S",$A23>CFF!$A$9),"",MAX(V$12:OFFSET(V23,-1,0))+1) ->  | W23: SINAPI-95957 | X23: 8053 | Y23: =IF(Import.Desoneracao="sim",Referencia.Desonerado,Referencia.NaoDesonerado) -> 1926.29 | Z23: =ROUND(IF(ISNUMBER(R23),R23,IF(LEFT(R23,3)="BDI",HLOOKUP(R23,DADOS!$T$37:$X$38,2,FALSE),0)),15-11*$X$5) -> 0.2656
A24: S | B24: 0 | C24: 1 | D24: 3 | E24: 0 | F24: 0 | G24: 3 | H24: 0 | I24: 0 | J24: Serviço | K24: 1.3.3. | L24: SINAPI | M24: 95957 | N24: PILARES EM CONCRETO PRÉ-MOLDADO | O24: M3 | P24: =OFFSET(PLQ!$E$12,ROW($P24)-ROW(P$12),0) -> 37.3 | Q24: 1100 | R24: BDI 1 | S24: 1392.16 | T24: 51927.57 | V24: =IF(OR($A24=0,$A24="S",$A24>CFF!$A$9),"",MAX(V$12:OFFSET(V24,-1,0))+1) ->  | W24: SINAPI-95957 | X24: 8053 | Y24: =IF(Import.Desoneracao="sim",Referencia.Desonerado,Referencia.NaoDesonerado) -> 1926.29 | Z24: =ROUND(IF(ISNUMBER(R24),R24,IF(LEFT(R24,3)="BDI",HLOOKUP(R24,DADOS!$T$37:$X$38,2,FALSE),0)),15-11*$X$5) -> 0.2656
A25: S | B25: 0 | C25: 1 | D25: 3 | E25: 0 | F25: 0 | G25: 4 | H25: 0 | I25: 0 | J25: Serviço | K25: 1.3.4. | L25: SINAPI | M25: 95957 | N25: VIGAS PRÉ-MOLDADAS | O25: M3 | P25: =OFFSET(PLQ!$E$12,ROW($P25)-ROW(P$12),0) -> 35.53 | Q25: 1100 | R25: BDI 1 | S25: 1392.16 | T25: 49463.44 | V25: =IF(OR($A25=0,$A25="S",$A25>CFF!$A$9),"",MAX(V$12:OFFSET(V25,-1,0))+1) ->  | W25: SINAPI-95957 | X25: 8053 | Y25: =IF(Import.Desoneracao="sim",Referencia.Desonerado,Referencia.NaoDesonerado) -> 1926.29 | Z25: =ROUND(IF(ISNUMBER(R25),R25,IF(LEFT(R25,3)="BDI",HLOOKUP(R25,DADOS!$T$37:$X$38,2,FALSE),0)),15-11*$X$5) -> 0.2656
A26: 2 | B26: 6 | C26: 1 | D26: 4 | E26: 0 | F26: 0 | G26: 0 | H26: 26 | I26: 6 | J26: Nível 2 | K26: 1.4. | N26: COBERTURA | O26: =Referencia.Unidade ->  | P26: =OFFSET(PLQ!$E$12,ROW($P26)-ROW(P$12),0) -> 0 | R26: BDI 1 | S26: 0 | T26: 183663.04 | V26: =IF(OR($A26=0,$A26="S",$A26>CFF!$A$9),"",MAX(V$12:OFFSET(V26,-1,0))+1) -> 5 | W26: FALSE | X26: X | Y26: =IF(Import.Desoneracao="sim",Referencia.Desonerado,Referencia.NaoDesonerado) -> 0 | Z26: =ROUND(IF(ISNUMBER(R26),R26,IF(LEFT(R26,3)="BDI",HLOOKUP(R26,DADOS!$T$37:$X$38,2,FALSE),0)),15-11*$X$5) -> 0.2656
A27: S | B27: 0 | C27: 1 | D27: 4 | E27: 0 | F27: 0 | G27: 1 | H27: 0 | I27: 0 | J27: Serviço | K27: 1.4.1. | L27: SINAPI | M27: 72113 | N27: ESTRUTURA METALICA EM TESOURAS OU TRELICAS, VAO LIVRE DE 25M, FORNECIMENTO E MONTAGEM, INCLUSIVE CONTRAVENTAMENTO | O27: M2 | P27: =OFFSET(PLQ!$E$12,ROW($P27)-ROW(P$12),0) -> 1129.73 | Q27: 65 | R27: BDI 1 | S27: 82.26 | T27: 92931.59 | V27: =IF(OR($A27=0,$A27="S",$A27>CFF!$A$9),"",MAX(V$12:OFFSET(V27,-1,0))+1) ->  | W27: SINAPI-72113 | X27: 6969 | Y27: =IF(Import.Desoneracao="sim",Referencia.Desonerado,Referencia.NaoDesonerado) -> 93.52 | Z27: =ROUND(IF(ISNUMBER(R27),R27,IF(LEFT(R27,3)="BDI",HLOOKUP(R27,DADOS!$T$37:$X$38,2,FALSE),0)),15-11*$X$5) -> 0.2656
A28: =CHOOSE(1+LOG(1+2*(J28="Meta")+4*(J28="Nível 2")+8*(J28="Nível 3")+16*(J28="Nível 4")+32*(J28="Serviço"),2),0,1,2,3,4,"S") -> S | B28: =IF(OR(A28="S",A28=0),0,IF(ISERROR(I28),H28,SMALL(H28:I28,1))) -> 0 | C28: =IF($A28=1,OFFSET(C28,-1,0)+1,OFFSET(C28,-1,0)) -> 1 | D28: =IF($A28=1,0,IF($A28=2,OFFSET(D28,-1,0)+1,OFFSET(D28,-1,0))) -> 4 | E28: =IF(AND($A28<=2,$A28<>0),0,IF($A28=3,OFFSET(E28,-1,0)+1,OFFSET(E28,-1,0))) -> 0 | F28: =IF(AND($A28<=3,$A28<>0),0,IF($A28=4,OFFSET(F28,-1,0)+1,OFFSET(F28,-1,0))) -> 0 | G28: =IF(AND($A28<=4,$A28<>0),0,IF($A28="S",OFFSET(G28,-1,0)+1,OFFSET(G28,-1,0))) -> 2 | H28: 0 | I28: 0 | J28: Serviço | K28: =IF($A28=0,"-",CONCATENATE(C28&".",IF(AND($A$5>=2,$A28>=2),D28&".",""),IF(AND($A$5>=3,$A28>=3),E28&".",""),IF(AND($A$5>=4,$A28>=4),F28&".",""),IF($A28="S",G28&".",""))) -> 1.4.2. | L28: SINAPI | M28: 92580 | N28: TRAMA DE AÇO COMPOSTA POR TERÇAS PARA TELHADOS DE ATÉ 2 ÁGUAS PARA TELHA METÁLICA, INCLUSO TRANSPORTE VERTICAL | O28: M2 | P28: =OFFSET(PLQ!$E$12,ROW($P28)-ROW(P$12),0) -> 1129.73 | Q28: 25 | R28: BDI 1 | S28: 31.64 | T28: 35744.66 | U28: =IF($J28="","",IF($N28="","DESCRIÇÃO",IF(AND($J28="Serviço",$O28=""),"UNIDADE",IF($T28<=0,"SEM VALOR",IF(AND($Y28<>"",$Q28>$Y28),"ACIMA REF.",""))))) ->  | V28: =IF(OR($A28=0,$A28="S",$A28>CFF!$A$9),"",MAX(V$12:OFFSET(V28,-1,0))+1) ->  | W28: =IF(AND($J28="Serviço",$M28<>""),IF($L28="",$M28,CONCATENATE($L28,"-",$M28))) -> SINAPI-92580 | X28: 6989 | Y28: =IF(Import.Desoneracao="sim",Referencia.Desonerado,Referencia.NaoDesonerado) -> 28.6 | Z28: =ROUND(IF(ISNUMBER(R28),R28,IF(LEFT(R28,3)="BDI",HLOOKUP(R28,DADOS!$T$37:$X$38,2,FALSE),0)),15-11*$X$5) -> 0.2656
A29: S | B29: 0 | C29: 1 | D29: 4 | E29: 0 | F29: 0 | G29: 3 | H29: 0 | I29: 0 | J29: Serviço | K29: 1.4.3. | L29: SINAPI | M29: 94213 | N29: TELHAMENTO COM TELHA DE AÇO/ALUMÍNIO E = 0,5 MM, COM ATÉ 2 ÁGUAS, INCLUSO IÇAMENTO | O29: M2 | P29: =OFFSET(PLQ!$E$12,ROW($P29)-ROW(P$12),0) -> 1129.73 | Q29: 30 | R29: BDI 1 | S29: 37.97 | T29: 42895.85 | V29: =IF(OR($A29=0,$A29="S",$A29>CFF!$A$9),"",MAX(V$12:OFFSET(V29,-1,0))+1) ->  | W29: SINAPI-94213 | X29: 6950 | Y29: =IF(Import.Desoneracao="sim",Referencia.Desonerado,Referencia.NaoDesonerado) -> 39.23 | Z29: =ROUND(IF(ISNUMBER(R29),R29,IF(LEFT(R29,3)="BDI",HLOOKUP(R29,DADOS!$T$37:$X$38,2,FALSE),0)),15-11*$X$5) -> 0.2656
A30: =CHOOSE(1+LOG(1+2*(J30="Meta")+4*(J30="Nível 2")+8*(J30="Nível 3")+16*(J30="Nível 4")+32*(J30="Serviço"),2),0,1,2,3,4,"S") -> S | B30: =IF(OR(A30="S",A30=0),0,IF(ISERROR(I30),H30,SMALL(H30:I30,1))) -> 0 | C30: =IF($A30=1,OFFSET(C30,-1,0)+1,OFFSET(C30,-1,0)) -> 1 | D30: =IF($A30=1,0,IF($A30=2,OFFSET(D30,-1,0)+1,OFFSET(D30,-1,0))) -> 4 | E30: =IF(AND($A30<=2,$A30<>0),0,IF($A30=3,OFFSET(E30,-1,0)+1,OFFSET(E30,-1,0))) -> 0 | F30: =IF(AND($A30<=3,$A30<>0),0,IF($A30=4,OFFSET(F30,-1,0)+1,OFFSET(F30,-1,0))) -> 0 | G30: =IF(AND($A30<=4,$A30<>0),0,IF($A30="S",OFFSET(G30,-1,0)+1,OFFSET(G30,-1,0))) -> 4 | H30: 0 | I30: 0 | J30: Serviço | K30: =IF($A30=0,"-",CONCATENATE(C30&".",IF(AND($A$5>=2,$A30>=2),D30&".",""),IF(AND($A$5>=3,$A30>=3),E30&".",""),IF(AND($A$5>=4,$A30>=4),F30&".",""),IF($A30="S",G30&".",""))) -> 1.4.4. | L30: SINAPI | M30: 94213 | N30: FECHAMENTO DOS OITÕES COM TELHA DE AÇO/ALUMÍNIO E = 0,5 MM | O30: M2 | P30: =OFFSET(PLQ!$E$12,ROW($P30)-ROW(P$12),0) -> 210.28 | Q30: 30 | R30: BDI 1 | S30: 37.97 | T30: 7984.33 | U30: =IF($J30="","",IF($N30="","DESCRIÇÃO",IF(AND($J30="Serviço",$O30=""),"UNIDADE",IF($T30<=0,"SEM VALOR",IF(AND($Y30<>"",$Q30>$Y30),"ACIMA REF.",""))))) ->  | V30: =IF(OR($A30=0,$A30="S",$A30>CFF!$A$9),"",MAX(V$12:OFFSET(V30,-1,0))+1) ->  | W30: =IF(AND($J30="Serviço",$M30<>""),IF($L30="",$M30,CONCATENATE($L30,"-",$M30))) -> SINAPI-94213 | X30: 6950 | Y30: =IF(Import.Desoneracao="sim",Referencia.Desonerado,Referencia.NaoDesonerado) -> 39.23 | Z30: =ROUND(IF(ISNUMBER(R30),R30,IF(LEFT(R30,3)="BDI",HLOOKUP(R30,DADOS!$T$37:$X$38,2,FALSE),0)),15-11*$X$5) -> 0.2656
A31: S | B31: 0 | C31: 1 | D31: 4 | E31: 0 | F31: 0 | G31: 5 | H31: 0 | I31: 0 | J31: Serviço | K31: 1.4.5. | L31: SINAPI | M31: 94227 | N31: CALHA EM CHAPA DE AÇO GALVANIZADO NÚMERO 24, DESENVOLVIMENTO DE 33 CM, INCLUSO TRANSPORTE VERTICAL. | O31: M | P31: =OFFSET(PLQ!$E$12,ROW($P31)-ROW(P$12),0) -> 92.7 | Q31: 35 | R31: BDI 1 | S31: 44.3 | T31: 4106.61 | V31: =IF(OR($A31=0,$A31="S",$A31>CFF!$A$9),"",MAX(V$12:OFFSET(V31,-1,0))+1) ->  | W31: SINAPI-94227 | X31: 6960 | Y31: =IF(Import.Desoneracao="sim",Referencia.Desonerado,Referencia.NaoDesonerado) -> 36.75 | Z31: =ROUND(IF(ISNUMBER(R31),R31,IF(LEFT(R31,3)="BDI",HLOOKUP(R31,DADOS!$T$37:$X$38,2,FALSE),0)),15-11*$X$5) -> 0.2656
A32: 2 | B32: 4 | C32: 1 | D32: 5 | E32: 0 | F32: 0 | G32: 0 | H32: 20 | I32: 4 | J32: Nível 2 | K32: 1.5. | N32: PAVIMENTAÇÃO | O32: =Referencia.Unidade ->  | P32: =OFFSET(PLQ!$E$12,ROW($P32)-ROW(P$12),0) -> 0 | R32: BDI 1 | S32: 0 | T32: 83084 | V32: =IF(OR($A32=0,$A32="S",$A32>CFF!$A$9),"",MAX(V$12:OFFSET(V32,-1,0))+1) -> 6 | W32: FALSE | X32: X | Y32: =IF(Import.Desoneracao="sim",Referencia.Desonerado,Referencia.NaoDesonerado) -> 0 | Z32: =ROUND(IF(ISNUMBER(R32),R32,IF(LEFT(R32,3)="BDI",HLOOKUP(R32,DADOS!$T$37:$X$38,2,FALSE),0)),15-11*$X$5) -> 0.2656
A33: =CHOOSE(1+LOG(1+2*(J33="Meta")+4*(J33="Nível 2")+8*(J33="Nível 3")+16*(J33="Nível 4")+32*(J33="Serviço"),2),0,1,2,3,4,"S") -> S | B33: =IF(OR(A33="S",A33=0),0,IF(ISERROR(I33),H33,SMALL(H33:I33,1))) -> 0 | C33: =IF($A33=1,OFFSET(C33,-1,0)+1,OFFSET(C33,-1,0)) -> 1 | D33: =IF($A33=1,0,IF($A33=2,OFFSET(D33,-1,0)+1,OFFSET(D33,-1,0))) -> 5 | E33: =IF(AND($A33<=2,$A33<>0),0,IF($A33=3,OFFSET(E33,-1,0)+1,OFFSET(E33,-1,0))) -> 0 | F33: =IF(AND($A33<=3,$A33<>0),0,IF($A33=4,OFFSET(F33,-1,0)+1,OFFSET(F33,-1,0))) -> 0 | G33: =IF(AND($A33<=4,$A33<>0),0,IF($A33="S",OFFSET(G33,-1,0)+1,OFFSET(G33,-1,0))) -> 1 | H33: =IF(OR($A33="S",$A33=0),0,MATCH(0,OFFSET($B33,1,$A33,ROW($A$52)-ROW($A33)),0)) -> 0 | I33: =IF(OR($A33="S",$A33=0),0,MATCH(OFFSET($B33,0,$A33)+1,OFFSET($B33,1,$A33,ROW($A$52)-ROW($A33)),0)) -> 0 | J33: Serviço | K33: =IF($A33=0,"-",CONCATENATE(C33&".",IF(AND($A$5>=2,$A33>=2),D33&".",""),IF(AND($A$5>=3,$A33>=3),E33&".",""),IF(AND($A$5>=4,$A33>=4),F33&".",""),IF($A33="S",G33&".",""))) -> 1.5.1. | L33: SINAPI-I | M33: 4718 | N33: PEDRA BRITADA N. 2 (19 A 38 MM) PARA LASTRO DE FUNDO | O33: M3 | P33: =OFFSET(PLQ!$E$12,ROW($P33)-ROW(P$12),0) -> 3.7 | Q33: 62.5 | R33: BDI 1 | S33: =IF($A33="S",IF($Q$10="Preço Unitário (R$)",PO.CustoUnitario,ROUND(PO.CustoUnitario*(1+$Z33),15-13*$X$6)),0) -> 79.1 | T33: =IF($A33="S",VTOTAL1,IF($A33=0,0,ROUND(SomaAgrup,15-13*$X$7))) -> 292.67 | U33: =IF($J33="","",IF($N33="","DESCRIÇÃO",IF(AND($J33="Serviço",$O33=""),"UNIDADE",IF($T33<=0,"SEM VALOR",IF(AND($Y33<>"",$Q33>$Y33),"ACIMA REF.",""))))) ->  | V33: =IF(OR($A33=0,$A33="S",$A33>CFF!$A$9),"",MAX(V$12:OFFSET(V33,-1,0))+1) ->  | W33: =IF(AND($J33="Serviço",$M33<>""),IF($L33="",$M33,CONCATENATE($L33,"-",$M33))) -> SINAPI-I-4718 | X33: =IF(AND(Fonte<>"",Código<>""),MATCH(Fonte&" "&IF(Fonte="sinapi",SUBSTITUTE(SUBSTITUTE(Código,"/00","/"),"/0","/"),Código),INDIRECT("'[Referência "&_xlnm.Database&".xls]Banco'!$a:$a"),0),"X") -> 3913 | Y33: =IF(Import.Desoneracao="sim",Referencia.Desonerado,Referencia.NaoDesonerado) -> 62.5 | Z33: =ROUND(IF(ISNUMBER(R33),R33,IF(LEFT(R33,3)="BDI",HLOOKUP(R33,DADOS!$T$37:$X$38,2,FALSE),0)),15-11*$X$5) -> 0.2656
A34: S | B34: 0 | C34: 1 | D34: 5 | E34: 0 | F34: 0 | G34: 2 | H34: 0 | I34: 0 | J34: Serviço | K34: 1.5.2. | L34: SINAPI | M34: 72183 | N34: PISO EM CONCRETO POLIDO 20MPA PREPARO MECANICO, ESPESSURA 7 CM, COM ARMACAO EM TELA SOLDADA | O34: M2 | P34: =OFFSET(PLQ!$E$12,ROW($P34)-ROW(P$12),0) -> 1032.48 | Q34: 60 | R34: BDI 1 | S34: 75.94 | T34: 78406.53 | V34: =IF(OR($A34=0,$A34="S",$A34>CFF!$A$9),"",MAX(V$12:OFFSET(V34,-1,0))+1) ->  | W34: SINAPI-72183 | X34: 11062 | Y34: =IF(Import.Desoneracao="sim",Referencia.Desonerado,Referencia.NaoDesonerado) -> 70.52 | Z34: =ROUND(IF(ISNUMBER(R34),R34,IF(LEFT(R34,3)="BDI",HLOOKUP(R34,DADOS!$T$37:$X$38,2,FALSE),0)),15-11*$X$5) -> 0.2656
A35: S | B35: 0 | C35: 1 | D35: 5 | E35: 0 | F35: 0 | G35: 3 | H35: 0 | I35: 0 | J35: Serviço | K35: 1.5.3. | L35: AMMOC | M35: 49 | N35: JUNTAS DE DILATAÇÃO COM SELANTE ELASTICO MONOCOMPONENTE A BASE DE POLIURETANO 10MM x 20MM | O35: M | P35: =OFFSET(PLQ!$E$12,ROW($P35)-ROW(P$12),0) -> 315 | Q35: 11 | R35: BDI 1 | S35: 13.92 | T35: 4384.8 | V35: =IF(OR($A35=0,$A35="S",$A35>CFF!$A$9),"",MAX(V$12:OFFSET(V35,-1,0))+1) ->  | W35: AMMOC-49 | X35: 55 | Y35: =IF(Import.Desoneracao="sim",Referencia.Desonerado,Referencia.NaoDesonerado) -> 12.28 | Z35: =ROUND(IF(ISNUMBER(R35),R35,IF(LEFT(R35,3)="BDI",HLOOKUP(R35,DADOS!$T$37:$X$38,2,FALSE),0)),15-11*$X$5) -> 0.2656
A36: 2 | B36: 3 | C36: 1 | D36: 6 | E36: 0 | F36: 0 | G36: 0 | H36: 16 | I36: 3 | J36: Nível 2 | K36: 1.6. | N36: PINTURA | O36: =Referencia.Unidade ->  | P36: =OFFSET(PLQ!$E$12,ROW($P36)-ROW(P$12),0) -> 0 | R36: BDI 1 | S36: 0 | T36: 26151.25 | V36: =IF(OR($A36=0,$A36="S",$A36>CFF!$A$9),"",MAX(V$12:OFFSET(V36,-1,0))+1) -> 7 | W36: FALSE | X36: X | Y36: =IF(Import.Desoneracao="sim",Referencia.Desonerado,Referencia.NaoDesonerado) -> 0 | Z36: =ROUND(IF(ISNUMBER(R36),R36,IF(LEFT(R36,3)="BDI",HLOOKUP(R36,DADOS!$T$37:$X$38,2,FALSE),0)),15-11*$X$5) -> 0.2656
A37: S | B37: 0 | C37: 1 | D37: 6 | E37: 0 | F37: 0 | G37: 1 | H37: 0 | I37: 0 | J37: Serviço | K37: 1.6.1. | L37: SINAPI | M37: 79500/002 | N37: PINTURA ACRILICA EMBORRACHADA EM PISO CIMENTADO, TRES DEMAOS | O37: M2 | P37: =OFFSET(PLQ!$E$12,ROW($P37)-ROW(P$12),0) -> 968 | Q37: 16 | R37: BDI 1 | S37: 20.25 | T37: 19602 | V37: =IF(OR($A37=0,$A37="S",$A37>CFF!$A$9),"",MAX(V$12:OFFSET(V37,-1,0))+1) ->  | W37: SINAPI-79500/002 | X37: 10994 | Y37: =IF(Import.Desoneracao="sim",Referencia.Desonerado,Referencia.NaoDesonerado) -> 17.15 | Z37: =ROUND(IF(ISNUMBER(R37),R37,IF(LEFT(R37,3)="BDI",HLOOKUP(R37,DADOS!$T$37:$X$38,2,FALSE),0)),15-11*$X$5) -> 0.2656
A38: S | B38: 0 | C38: 1 | D38: 6 | E38: 0 | F38: 0 | G38: 2 | H38: 0 | I38: 0 | J38: Serviço | K38: 1.6.2. | L38: SINAPI | M38: 41595 | N38: PINTURA ACRILICA DE FAIXAS DE DEMARCACÃO EM QUADRA POLIESPORTIVA, 5 CM DE LARGURA | O38: M | P38: =OFFSET(PLQ!$E$12,ROW($P38)-ROW(P$12),0) -> 575 | Q38: 9 | R38: BDI 1 | S38: 11.39 | T38: 6549.25 | V38: =IF(OR($A38=0,$A38="S",$A38>CFF!$A$9),"",MAX(V$12:OFFSET(V38,-1,0))+1) ->  | W38: SINAPI-41595 | X38: 10990 | Y38: =IF(Import.Desoneracao="sim",Referencia.Desonerado,Referencia.NaoDesonerado) -> 9.62 | Z38: =ROUND(IF(ISNUMBER(R38),R38,IF(LEFT(R38,3)="BDI",HLOOKUP(R38,DADOS!$T$37:$X$38,2,FALSE),0)),15-11*$X$5) -> 0.2656
A39: 2 | B39: 3 | C39: 1 | D39: 7 | E39: 0 | F39: 0 | G39: 0 | H39: 13 | I39: 3 | J39: Nível 2 | K39: 1.7. | N39: INSTALAÇÕES PLUVIAIS | O39: =Referencia.Unidade ->  | P39: =OFFSET(PLQ!$E$12,ROW($P39)-ROW(P$12),0) -> 0 | R39: BDI 1 | S39: 0 | T39: 9538.29 | V39: =IF(OR($A39=0,$A39="S",$A39>CFF!$A$9),"",MAX(V$12:OFFSET(V39,-1,0))+1) -> 8 | W39: FALSE | X39: X | Y39: =IF(Import.Desoneracao="sim",Referencia.Desonerado,Referencia.NaoDesonerado) -> 0 | Z39: =ROUND(IF(ISNUMBER(R39),R39,IF(LEFT(R39,3)="BDI",HLOOKUP(R39,DADOS!$T$37:$X$38,2,FALSE),0)),15-11*$X$5) -> 0.2656
A40: S | B40: 0 | C40: 1 | D40: 7 | E40: 0 | F40: 0 | G40: 1 | H40: 0 | I40: 0 | J40: Serviço | K40: 1.7.1. | L40: SINAPI | M40: 91790 | N40: TUBOS DE PVC, SÉRIE R, ÁGUA PLUVIAL, DN 100 MM, INCLUSIVE CONEXÕES, CORTES E FIXAÇÕES | O40: M | P40: =OFFSET(PLQ!$E$12,ROW($P40)-ROW(P$12),0) -> 170 | Q40: 36.62 | R40: BDI 1 | S40: 46.35 | T40: 7879.5 | V40: =IF(OR($A40=0,$A40="S",$A40>CFF!$A$9),"",MAX(V$12:OFFSET(V40,-1,0))+1) ->  | W40: SINAPI-91790 | X40: 8768 | Y40: =IF(Import.Desoneracao="sim",Referencia.Desonerado,Referencia.NaoDesonerado) -> 36.62 | Z40: =ROUND(IF(ISNUMBER(R40),R40,IF(LEFT(R40,3)="BDI",HLOOKUP(R40,DADOS!$T$37:$X$38,2,FALSE),0)),15-11*$X$5) -> 0.2656
A41: S | B41: 0 | C41: 1 | D41: 7 | E41: 0 | F41: 0 | G41: 2 | H41: 0 | I41: 0 | J41: Serviço | K41: 1.7.2. | L41: SINAPI | M41: 83446 | N41: CAIXA DE PASSAGEM 30X30X40 COM TAMPA E DRENO BRITA | O41: UN | P41: =OFFSET(PLQ!$E$12,ROW($P41)-ROW(P$12),0) -> 9 | Q41: 145.63 | R41: BDI 1 | S41: 184.31 | T41: 1658.79 | V41: =IF(OR($A41=0,$A41="S",$A41>CFF!$A$9),"",MAX(V$12:OFFSET(V41,-1,0))+1) ->  | W41: SINAPI-83446 | X41: 8280 | Y41: =IF(Import.Desoneracao="sim",Referencia.Desonerado,Referencia.NaoDesonerado) -> 145.63 | Z41: =ROUND(IF(ISNUMBER(R41),R41,IF(LEFT(R41,3)="BDI",HLOOKUP(R41,DADOS!$T$37:$X$38,2,FALSE),0)),15-11*$X$5) -> 0.2656
A42: 2 | B42: 4 | C42: 1 | D42: 8 | E42: 0 | F42: 0 | G42: 0 | H42: 10 | I42: 4 | J42: Nível 2 | K42: 1.8. | N42: ENTORNO | O42: =Referencia.Unidade ->  | P42: =OFFSET(PLQ!$E$12,ROW($P42)-ROW(P$12),0) -> 0 | R42: BDI 1 | S42: 0 | T42: 3437.51 | V42: =IF(OR($A42=0,$A42="S",$A42>CFF!$A$9),"",MAX(V$12:OFFSET(V42,-1,0))+1) -> 9 | W42: FALSE | X42: X | Y42: =IF(Import.Desoneracao="sim",Referencia.Desonerado,Referencia.NaoDesonerado) -> 0 | Z42: =ROUND(IF(ISNUMBER(R42),R42,IF(LEFT(R42,3)="BDI",HLOOKUP(R42,DADOS!$T$37:$X$38,2,FALSE),0)),15-11*$X$5) -> 0.2656
A43: S | B43: 0 | C43: 1 | D43: 8 | E43: 0 | F43: 0 | G43: 1 | H43: 0 | I43: 0 | J43: Serviço | K43: 1.8.1. | L43: SINAPI-I | M43: 4718 | N43: PEDRA BRITADA N. 2 (19 A 38 MM) PARA LASTRO DE FUNDO | O43: M3 | P43: =OFFSET(PLQ!$E$12,ROW($P43)-ROW(P$12),0) -> 1.72 | Q43: 62.5 | R43: BDI 1 | S43: 79.1 | T43: 136.05 | V43: =IF(OR($A43=0,$A43="S",$A43>CFF!$A$9),"",MAX(V$12:OFFSET(V43,-1,0))+1) ->  | W43: SINAPI-I-4718 | X43: 3913 | Y43: =IF(Import.Desoneracao="sim",Referencia.Desonerado,Referencia.NaoDesonerado) -> 62.5 | Z43: =ROUND(IF(ISNUMBER(R43),R43,IF(LEFT(R43,3)="BDI",HLOOKUP(R43,DADOS!$T$37:$X$38,2,FALSE),0)),15-11*$X$5) -> 0.2656
A44: S | B44: 0 | C44: 1 | D44: 8 | E44: 0 | F44: 0 | G44: 2 | H44: 0 | I44: 0 | J44: Serviço | K44: 1.8.2. | L44: SINAPI | M44: 94992 | N44: EXECUÇÃO DE PASSEIO DE CONCRETO COM, ACABAMENTO CONVENCIONAL, ESPESSURA 6 CM, ARMADO | O44: M2 | P44: =OFFSET(PLQ!$E$12,ROW($P44)-ROW(P$12),0) -> 34.45 | Q44: 53.06 | R44: BDI 1 | S44: 67.15 | T44: 2313.32 | V44: =IF(OR($A44=0,$A44="S",$A44>CFF!$A$9),"",MAX(V$12:OFFSET(V44,-1,0))+1) ->  | W44: SINAPI-94992 | X44: 11067 | Y44: =IF(Import.Desoneracao="sim",Referencia.Desonerado,Referencia.NaoDesonerado) -> 53.06 | Z44: =ROUND(IF(ISNUMBER(R44),R44,IF(LEFT(R44,3)="BDI",HLOOKUP(R44,DADOS!$T$37:$X$38,2,FALSE),0)),15-11*$X$5) -> 0.2656
A45: S | B45: 0 | C45: 1 | D45: 8 | E45: 0 | F45: 0 | G45: 3 | H45: 0 | I45: 0 | J45: Serviço | K45: 1.8.3. | L45: SINAPI | M45: 95031 | N45: PISO PODOTATIL DE CONCRETO ALERTA/DIRECIONAL *40 X 40 X 2,5*CM, SOBRE LASTRO DE CONCRETO ESPESSURA 3 CM E REJUNTE CIMENTICIO | O45: M2 | P45: =OFFSET(PLQ!$E$12,ROW($P45)-ROW(P$12),0) -> 8.24 | Q45: 94.75 | R45: BDI 1 | S45: 119.92 | T45: 988.14 | V45: =IF(OR($A45=0,$A45="S",$A45>CFF!$A$9),"",MAX(V$12:OFFSET(V45,-1,0))+1) ->  | W45: SINAPI-95031 | X45: 5691 | Y45: =IF(Import.Desoneracao="sim",Referencia.Desonerado,Referencia.NaoDesonerado) -> 94.75 | Z45: =ROUND(IF(ISNUMBER(R45),R45,IF(LEFT(R45,3)="BDI",HLOOKUP(R45,DADOS!$T$37:$X$38,2,FALSE),0)),15-11*$X$5) -> 0.2656
A46: 2 | B46: 6 | C46: 1 | D46: 9 | E46: 0 | F46: 0 | G46: 0 | H46: 6 | J46: Nível 2 | K46: 1.9. | N46: SERVIÇOS FINAIS | P46: =OFFSET(PLQ!$E$12,ROW($P46)-ROW(P$12),0) -> 0 | R46: BDI 1 | S46: 0 | T46: 5747.06 | V46: =IF(OR($A46=0,$A46="S",$A46>CFF!$A$9),"",MAX(V$12:OFFSET(V46,-1,0))+1) -> 10 | W46: FALSE | X46: X | Y46: =IF(Import.Desoneracao="sim",Referencia.Desonerado,Referencia.NaoDesonerado) -> 0 | Z46: =ROUND(IF(ISNUMBER(R46),R46,IF(LEFT(R46,3)="BDI",HLOOKUP(R46,DADOS!$T$37:$X$38,2,FALSE),0)),15-11*$X$5) -> 0.2656
A47: =CHOOSE(1+LOG(1+2*(J47="Meta")+4*(J47="Nível 2")+8*(J47="Nível 3")+16*(J47="Nível 4")+32*(J47="Serviço"),2),0,1,2,3,4,"S") -> S | B47: =IF(OR(A47="S",A47=0),0,IF(ISERROR(I47),H47,SMALL(H47:I47,1))) -> 0 | C47: =IF($A47=1,OFFSET(C47,-1,0)+1,OFFSET(C47,-1,0)) -> 1 | D47: =IF($A47=1,0,IF($A47=2,OFFSET(D47,-1,0)+1,OFFSET(D47,-1,0))) -> 9 | E47: =IF(AND($A47<=2,$A47<>0),0,IF($A47=3,OFFSET(E47,-1,0)+1,OFFSET(E47,-1,0))) -> 0 | F47: =IF(AND($A47<=3,$A47<>0),0,IF($A47=4,OFFSET(F47,-1,0)+1,OFFSET(F47,-1,0))) -> 0 | G47: =IF(AND($A47<=4,$A47<>0),0,IF($A47="S",OFFSET(G47,-1,0)+1,OFFSET(G47,-1,0))) -> 1 | H47: 0 | I47: 0 | J47: Serviço | K47: =IF($A47=0,"-",CONCATENATE(C47&".",IF(AND($A$5>=2,$A47>=2),D47&".",""),IF(AND($A$5>=3,$A47>=3),E47&".",""),IF(AND($A$5>=4,$A47>=4),F47&".",""),IF($A47="S",G47&".",""))) -> 1.9.1. | L47: SINAPI | M47: 9537 | N47: LIMPEZA FINAL DA OBRA | O47: M2 | P47: =OFFSET(PLQ!$E$12,ROW($P47)-ROW(P$12),0) -> 1032.48 | Q47: 1 | R47: BDI 1 | S47: 1.27 | T47: 1311.25 | U47: =IF($J47="","",IF($N47="","DESCRIÇÃO",IF(AND($J47="Serviço",$O47=""),"UNIDADE",IF($T47<=0,"SEM VALOR",IF(AND($Y47<>"",$Q47>$Y47),"ACIMA REF.",""))))) ->  | V47: =IF(OR($A47=0,$A47="S",$A47>CFF!$A$9),"",MAX(V$12:OFFSET(V47,-1,0))+1) ->  | W47: =IF(AND($J47="Serviço",$M47<>""),IF($L47="",$M47,CONCATENATE($L47,"-",$M47))) -> SINAPI-9537 | X47: 11651 | Y47: =IF(Import.Desoneracao="sim",Referencia.Desonerado,Referencia.NaoDesonerado) -> 2.18 | Z47: =ROUND(IF(ISNUMBER(R47),R47,IF(LEFT(R47,3)="BDI",HLOOKUP(R47,DADOS!$T$37:$X$38,2,FALSE),0)),15-11*$X$5) -> 0.2656
A48: =CHOOSE(1+LOG(1+2*(J48="Meta")+4*(J48="Nível 2")+8*(J48="Nível 3")+16*(J48="Nível 4")+32*(J48="Serviço"),2),0,1,2,3,4,"S") -> S | B48: =IF(OR(A48="S",A48=0),0,IF(ISERROR(I48),H48,SMALL(H48:I48,1))) -> 0 | C48: =IF($A48=1,OFFSET(C48,-1,0)+1,OFFSET(C48,-1,0)) -> 1 | D48: =IF($A48=1,0,IF($A48=2,OFFSET(D48,-1,0)+1,OFFSET(D48,-1,0))) -> 9 | E48: =IF(AND($A48<=2,$A48<>0),0,IF($A48=3,OFFSET(E48,-1,0)+1,OFFSET(E48,-1,0))) -> 0 | F48: =IF(AND($A48<=3,$A48<>0),0,IF($A48=4,OFFSET(F48,-1,0)+1,OFFSET(F48,-1,0))) -> 0 | G48: =IF(AND($A48<=4,$A48<>0),0,IF($A48="S",OFFSET(G48,-1,0)+1,OFFSET(G48,-1,0))) -> 2 | H48: 0 | I48: 0 | J48: Serviço | K48: =IF($A48=0,"-",CONCATENATE(C48&".",IF(AND($A$5>=2,$A48>=2),D48&".",""),IF(AND($A$5>=3,$A48>=3),E48&".",""),IF(AND($A$5>=4,$A48>=4),F48&".",""),IF($A48="S",G48&".",""))) -> 1.9.2. | L48: Cotação | M48: TRAVE | N48: TRAVE DE FUTSAL 3,00 X 2,00 MODELO DESMONTÁVEL | O48: UN | P48: =OFFSET(PLQ!$E$12,ROW($P48)-ROW(P$12),0) -> 2 | Q48: =Y48 -> 1098 | R48: BDI 1 | S48: 1389.63 | T48: 2779.26 | U48: =IF($J48="","",IF($N48="","DESCRIÇÃO",IF(AND($J48="Serviço",$O48=""),"UNIDADE",IF($T48<=0,"SEM VALOR",IF(AND($Y48<>"",$Q48>$Y48),"ACIMA REF.",""))))) ->  | V48: =IF(OR($A48=0,$A48="S",$A48>CFF!$A$9),"",MAX(V$12:OFFSET(V48,-1,0))+1) ->  | W48: =IF(AND($J48="Serviço",$M48<>""),IF($L48="",$M48,CONCATENATE($L48,"-",$M48))) -> Cotação-TRAVE | X48: 95 | Y48: =IF(Import.Desoneracao="sim",Referencia.Desonerado,Referencia.NaoDesonerado) -> 1098 | Z48: =ROUND(IF(ISNUMBER(R48),R48,IF(LEFT(R48,3)="BDI",HLOOKUP(R48,DADOS!$T$37:$X$38,2,FALSE),0)),15-11*$X$5) -> 0.2656
A49: S | B49: 0 | C49: 1 | D49: 9 | E49: 0 | F49: 0 | G49: 3 | H49: 0 | I49: 0 | J49: Serviço | K49: 1.9.3. | L49: Cotação | M49: VOLEI | N49: PAR DE MASTROS EM AÇO CARBONO, DIAMETRO 3", COM CREMALHEIRA, ROLDANAS E BUCHAS DE FIXAÇÃO, COM PINTURA EPOXI E ALTURA DE 2,80 M, OFICIAL PARA VOLEY | O49: UN | P49: =OFFSET(PLQ!$E$12,ROW($P49)-ROW(P$12),0) -> 1 | Q49: 550 | R49: BDI 1 | S49: 696.08 | T49: 696.08 | V49: =IF(OR($A49=0,$A49="S",$A49>CFF!$A$9),"",MAX(V$12:OFFSET(V49,-1,0))+1) ->  | W49: Cotação-VOLEI | X49: 96 | Y49: =IF(Import.Desoneracao="sim",Referencia.Desonerado,Referencia.NaoDesonerado) -> 550 | Z49: =ROUND(IF(ISNUMBER(R49),R49,IF(LEFT(R49,3)="BDI",HLOOKUP(R49,DADOS!$T$37:$X$38,2,FALSE),0)),15-11*$X$5) -> 0.2656
A50: =CHOOSE(1+LOG(1+2*(J50="Meta")+4*(J50="Nível 2")+8*(J50="Nível 3")+16*(J50="Nível 4")+32*(J50="Serviço"),2),0,1,2,3,4,"S") -> S | B50: =IF(OR(A50="S",A50=0),0,IF(ISERROR(I50),H50,SMALL(H50:I50,1))) -> 0 | C50: =IF($A50=1,OFFSET(C50,-1,0)+1,OFFSET(C50,-1,0)) -> 1 | D50: =IF($A50=1,0,IF($A50=2,OFFSET(D50,-1,0)+1,OFFSET(D50,-1,0))) -> 9 | E50: =IF(AND($A50<=2,$A50<>0),0,IF($A50=3,OFFSET(E50,-1,0)+1,OFFSET(E50,-1,0))) -> 0 | F50: =IF(AND($A50<=3,$A50<>0),0,IF($A50=4,OFFSET(F50,-1,0)+1,OFFSET(F50,-1,0))) -> 0 | G50: =IF(AND($A50<=4,$A50<>0),0,IF($A50="S",OFFSET(G50,-1,0)+1,OFFSET(G50,-1,0))) -> 4 | H50: =IF(OR($A50="S",$A50=0),0,MATCH(0,OFFSET($B50,1,$A50,ROW($A$52)-ROW($A50)),0)) -> 0 | I50: =IF(OR($A50="S",$A50=0),0,MATCH(OFFSET($B50,0,$A50)+1,OFFSET($B50,1,$A50,ROW($A$52)-ROW($A50)),0)) -> 0 | J50: Serviço | K50: =IF($A50=0,"-",CONCATENATE(C50&".",IF(AND($A$5>=2,$A50>=2),D50&".",""),IF(AND($A$5>=3,$A50>=3),E50&".",""),IF(AND($A$5>=4,$A50>=4),F50&".",""),IF($A50="S",G50&".",""))) -> 1.9.4. | L50: Cotação | M50: REDE DE VOLEI | N50: REDE DE VÔLEI PROFISSIONAIL COM FAIXAS EM PVC | O50: UN | P50: =OFFSET(PLQ!$E$12,ROW($P50)-ROW(P$12),0) -> 1 | Q50: 438.9 | R50: BDI 1 | S50: =IF($A50="S",IF($Q$10="Preço Unitário (R$)",PO.CustoUnitario,ROUND(PO.CustoUnitario*(1+$Z50),15-13*$X$6)),0) -> 555.47 | T50: =IF($A50="S",VTOTAL1,IF($A50=0,0,ROUND(SomaAgrup,15-13*$X$7))) -> 555.47 | U50: =IF($J50="","",IF($N50="","DESCRIÇÃO",IF(AND($J50="Serviço",$O50=""),"UNIDADE",IF($T50<=0,"SEM VALOR",IF(AND($Y50<>"",$Q50>$Y50),"ACIMA REF.",""))))) ->  | V50: =IF(OR($A50=0,$A50="S",$A50>CFF!$A$9),"",MAX(V$12:OFFSET(V50,-1,0))+1) ->  | W50: =IF(AND($J50="Serviço",$M50<>""),IF($L50="",$M50,CONCATENATE($L50,"-",$M50))) -> Cotação-REDE DE VOLEI | X50: =IF(AND(Fonte<>"",Código<>""),MATCH(Fonte&" "&IF(Fonte="sinapi",SUBSTITUTE(SUBSTITUTE(Código,"/00","/"),"/0","/"),Código),INDIRECT("'[Referência "&_xlnm.Database&".xls]Banco'!$a:$a"),0),"X") -> 97 | Y50: =IF(Import.Desoneracao="sim",Referencia.Desonerado,Referencia.NaoDesonerado) -> 438.9 | Z50: =ROUND(IF(ISNUMBER(R50),R50,IF(LEFT(R50,3)="BDI",HLOOKUP(R50,DADOS!$T$37:$X$38,2,FALSE),0)),15-11*$X$5) -> 0.2656
A51: =CHOOSE(1+LOG(1+2*(J51="Meta")+4*(J51="Nível 2")+8*(J51="Nível 3")+16*(J51="Nível 4")+32*(J51="Serviço"),2),0,1,2,3,4,"S") -> S | B51: =IF(OR(A51="S",A51=0),0,IF(ISERROR(I51),H51,SMALL(H51:I51,1))) -> 0 | C51: =IF($A51=1,OFFSET(C51,-1,0)+1,OFFSET(C51,-1,0)) -> 1 | D51: =IF($A51=1,0,IF($A51=2,OFFSET(D51,-1,0)+1,OFFSET(D51,-1,0))) -> 9 | E51: =IF(AND($A51<=2,$A51<>0),0,IF($A51=3,OFFSET(E51,-1,0)+1,OFFSET(E51,-1,0))) -> 0 | F51: =IF(AND($A51<=3,$A51<>0),0,IF($A51=4,OFFSET(F51,-1,0)+1,OFFSET(F51,-1,0))) -> 0 | G51: =IF(AND($A51<=4,$A51<>0),0,IF($A51="S",OFFSET(G51,-1,0)+1,OFFSET(G51,-1,0))) -> 5 | H51: =IF(OR($A51="S",$A51=0),0,MATCH(0,OFFSET($B51,1,$A51,ROW($A$52)-ROW($A51)),0)) -> 0 | I51: =IF(OR($A51="S",$A51=0),0,MATCH(OFFSET($B51,0,$A51)+1,OFFSET($B51,1,$A51,ROW($A$52)-ROW($A51)),0)) -> 0 | J51: Serviço | K51: =IF($A51=0,"-",CONCATENATE(C51&".",IF(AND($A$5>=2,$A51>=2),D51&".",""),IF(AND($A$5>=3,$A51>=3),E51&".",""),IF(AND($A$5>=4,$A51>=4),F51&".",""),IF($A51="S",G51&".",""))) -> 1.9.5. | L51: AMMOC | M51: 52 | N51: BUCHA DE ESPERA EM PISO DE CONCRETO PARA FIXAÇÃO DE MASTROS E TRAVES, COM TUBO DE FERRO GALVANIZADO E TAMPÃO | O51: UN | P51: =OFFSET(PLQ!$E$12,ROW($P51)-ROW(P$12),0) -> 4 | Q51: 80 | R51: BDI 1 | S51: =IF($A51="S",IF($Q$10="Preço Unitário (R$)",PO.CustoUnitario,ROUND(PO.CustoUnitario*(1+$Z51),15-13*$X$6)),0) -> 101.25 | T51: =IF($A51="S",VTOTAL1,IF($A51=0,0,ROUND(SomaAgrup,15-13*$X$7))) -> 405 | U51: =IF($J51="","",IF($N51="","DESCRIÇÃO",IF(AND($J51="Serviço",$O51=""),"UNIDADE",IF($T51<=0,"SEM VALOR",IF(AND($Y51<>"",$Q51>$Y51),"ACIMA REF.",""))))) ->  | V51: =IF(OR($A51=0,$A51="S",$A51>CFF!$A$9),"",MAX(V$12:OFFSET(V51,-1,0))+1) ->  | W51: =IF(AND($J51="Serviço",$M51<>""),IF($L51="",$M51,CONCATENATE($L51,"-",$M51))) -> AMMOC-52 | X51: =IF(AND(Fonte<>"",Código<>""),MATCH(Fonte&" "&IF(Fonte="sinapi",SUBSTITUTE(SUBSTITUTE(Código,"/00","/"),"/0","/"),Código),INDIRECT("'[Referência "&_xlnm.Database&".xls]Banco'!$a:$a"),0),"X") -> 58 | Y51: =IF(Import.Desoneracao="sim",Referencia.Desonerado,Referencia.NaoDesonerado) -> 84.2 | Z51: =ROUND(IF(ISNUMBER(R51),R51,IF(LEFT(R51,3)="BDI",HLOOKUP(R51,DADOS!$T$37:$X$38,2,FALSE),0)),15-11*$X$5) -> 0.2656
A52: -1 | C52: 0 | D52: 0 | E52: 0 | F52: 0 | G52: 0
K53: Encargos sociais: | M53: Para elaboração deste orçamento, foram utilizados os encargos sociais do SINAPI para a Unidade da Federação indicada.
K55: Observações:
K60: =IF(AND($X$3=FALSE,$X$4=FALSE,$X$5=FALSE,$X$6=FALSE,$X$7=FALSE),"Não foi considerado arredondamento nos valores da planilha.",CONCATENATE("Foi considerado arredondamento de duas casas decimais para ",IF($X$3=TRUE,"Quantidade; ",""),IF($X$4=TRUE,"Custo Unitário; ",""),IF($X$5=TRUE,"BDI; ",""),IF($X$6=TRUE,"Preço Unitário; ",""),IF($X$7=TRUE,"Preço Total.",""))) -> Foi considerado arredondamento de duas casas decimais para Quantidade; Custo Unitário; BDI; Preço Unitário; Preço Total.
K63: =Import.Município -> CATANDUVAS/SC
K64: Local
K66: =TODAY() -> 2019-02-22
K67: Data

Sheet PLQ
E1: PLQ - | F1: PLANILHA DE LEVANTAMENTO DE QUANTIDADES
E7: =OFFSET(PO!$P$12,ROW($E7)-ROW(E$12),0) -> 0
E9: - | F9: ESTRUTURA TÉRREA | G9: ESTRUTURA SUPERIOR | H9: COBERTURA | I9: QUADRA
A10: Nível | B10: Item | C10: Descrição | D10: Unid. | E10: Quantidade | F10: =IF(OFFSET(F10,0,-1)="Quantidade",1,OFFSET(F10,0,-1)+1) -> 1 | G10: 2 | H10: 3 | I10: 4 | J10: 5 | K10: 6 | L10: 7 | M10: 8 | N10: 9 | O10: 10 | U10: =IF(OFFSET(U10,0,-1)="Quantidade",1,OFFSET(U10,0,-1)+1) -> 1
A11: =OFFSET(PO!J$12,ROW(A11)-ROW($A$12),0) -> Serviço | B11: =IF($A11=0,"",OFFSET(PO!K$12,ROW(B11)-ROW(B$12),0)) ->  | C11: =IF(OFFSET(PO!N$12,ROW(C11)-ROW(C$12),0)=0,"",OFFSET(PO!N$12,ROW(C11)-ROW(C$12),0)) ->  | D11: =IF(OFFSET(PO!O$12,ROW(D11)-ROW(D$12),0)=0,"",OFFSET(PO!O$12,ROW(D11)-ROW(D$12),0)) ->  | E11: =IF($A11<>"Serviço",0,ROUND(SUMIF($F$9:$P$9,"<>",$F11:$P11),15-13*PO!$X$3)) -> 0
A12: =PO!J12 -> LOTE | C12: =PO!N12 -> Referencia 07/2018
A13: =OFFSET(PO!J$12,ROW(A13)-ROW($A$12),0) -> Meta | B13: =IF($A13=0,"",OFFSET(PO!K$12,ROW(B13)-ROW(B$12),0)) -> 1. | C13: =IF(OFFSET(PO!N$12,ROW(C13)-ROW(C$12),0)=0,"",OFFSET(PO!N$12,ROW(C13)-ROW(C$12),0)) -> COBERTURA E REVITALIZAÇÃO QUADRA BAIRRO REGINA | D13: =IF(OFFSET(PO!O$12,ROW(D13)-ROW(D$12),0)=0,"",OFFSET(PO!O$12,ROW(D13)-ROW(D$12),0)) ->  | E13: =IF($A13<>"Serviço",0,ROUND(SUMIF($F$9:$P$9,"<>",$F13:$P13),15-13*PO!$X$3)) -> 0 | F13: 0
A14: =OFFSET(PO!J$12,ROW(A14)-ROW($A$12),0) -> Nível 2 | B14: =IF($A14=0,"",OFFSET(PO!K$12,ROW(B14)-ROW(B$12),0)) -> 1.1. | C14: =IF(OFFSET(PO!N$12,ROW(C14)-ROW(C$12),0)=0,"",OFFSET(PO!N$12,ROW(C14)-ROW(C$12),0)) -> SERVIÇOS INICIAIS | D14: =IF(OFFSET(PO!O$12,ROW(D14)-ROW(D$12),0)=0,"",OFFSET(PO!O$12,ROW(D14)-ROW(D$12),0)) ->  | E14: =IF($A14<>"Serviço",0,ROUND(SUMIF($F$9:$P$9,"<>",$F14:$P14),15-13*PO!$X$3)) -> 0 | F14: 0
A15: =OFFSET(PO!J$12,ROW(A15)-ROW($A$12),0) -> Serviço | B15: =IF($A15=0,"",OFFSET(PO!K$12,ROW(B15)-ROW(B$12),0)) -> 1.1.1. | C15: =IF(OFFSET(PO!N$12,ROW(C15)-ROW(C$12),0)=0,"",OFFSET(PO!N$12,ROW(C15)-ROW(C$12),0)) -> PLACA DE OBRA EM CHAPA DE ACO GALVANIZADO PADRÃO AMMOC | D15: =IF(OFFSET(PO!O$12,ROW(D15)-ROW(D$12),0)=0,"",OFFSET(PO!O$12,ROW(D15)-ROW(D$12),0)) -> M2 | E15: =IF($A15<>"Serviço",0,ROUND(SUMIF($F$9:$P$9,"<>",$F15:$P15),15-13*PO!$X$3)) -> 2.5 | F15: 2.5
A16: =OFFSET(PO!J$12,ROW(A16)-ROW($A$12),0) -> Serviço | B16: =IF($A16=0,"",OFFSET(PO!K$12,ROW(B16)-ROW(B$12),0)) -> 1.1.2. | C16: =IF(OFFSET(PO!N$12,ROW(C16)-ROW(C$12),0)=0,"",OFFSET(PO!N$12,ROW(C16)-ROW(C$12),0)) -> PLACA DE OBRA EM CHAPA DE ACO GALVANIZADO PADRÃO CAIXA | D16: =IF(OFFSET(PO!O$12,ROW(D16)-ROW(D$12),0)=0,"",OFFSET(PO!O$12,ROW(D16)-ROW(D$12),0)) -> M2 | E16: =IF($A16<>"Serviço",0,ROUND(SUMIF($F$9:$P$9,"<>",$F16:$P16),15-13*PO!$X$3)) -> 2.5 | F16: 2.5
A17: =OFFSET(PO!J$12,ROW(A17)-ROW($A$12),0) -> Serviço | B17: =IF($A17=0,"",OFFSET(PO!K$12,ROW(B17)-ROW(B$12),0)) -> 1.1.3. | C17: =IF(OFFSET(PO!N$12,ROW(C17)-ROW(C$12),0)=0,"",OFFSET(PO!N$12,ROW(C17)-ROW(C$12),0)) -> LOCACAO CONVENCIONAL DE OBRA | D17: =IF(OFFSET(PO!O$12,ROW(D17)-ROW(D$12),0)=0,"",OFFSET(PO!O$12,ROW(D17)-ROW(D$12),0)) -> M2 | E17: =IF($A17<>"Serviço",0,ROUND(SUMIF($F$9:$P$9,"<>",$F17:$P17),15-13*PO!$X$3)) -> 1032.48 | F17: 1032.48
A18: =OFFSET(PO!J$12,ROW(A18)-ROW($A$12),0) -> Nível 2 | B18: =IF($A18=0,"",OFFSET(PO!K$12,ROW(B18)-ROW(B$12),0)) -> 1.2. | C18: =IF(OFFSET(PO!N$12,ROW(C18)-ROW(C$12),0)=0,"",OFFSET(PO!N$12,ROW(C18)-ROW(C$12),0)) -> ESCAVAÇÃO E REATERRO | D18: =IF(OFFSET(PO!O$12,ROW(D18)-ROW(D$12),0)=0,"",OFFSET(PO!O$12,ROW(D18)-ROW(D$12),0)) ->  | E18: =IF($A18<>"Serviço",0,ROUND(SUMIF($F$9:$P$9,"<>",$F18:$P18),15-13*PO!$X$3)) -> 0 | F18: 0
A19: =OFFSET(PO!J$12,ROW(A19)-ROW($A$12),0) -> Serviço | B19: =IF($A19=0,"",OFFSET(PO!K$12,ROW(B19)-ROW(B$12),0)) -> 1.2.1. | C19: =IF(OFFSET(PO!N$12,ROW(C19)-ROW(C$12),0)=0,"",OFFSET(PO!N$12,ROW(C19)-ROW(C$12),0)) -> ESCAVACAO MECANICA CAMPO ABERTO | D19: =IF(OFFSET(PO!O$12,ROW(D19)-ROW(D$12),0)=0,"",OFFSET(PO!O$12,ROW(D19)-ROW(D$12),0)) -> M3 | E19: =IF($A19<>"Serviço",0,ROUND(SUMIF($F$9:$P$9,"<>",$F19:$P19),15-13*PO!$X$3)) -> 92.64 | F19: 92.64
A20: =OFFSET(PO!J$12,ROW(A20)-ROW($A$12),0) -> Serviço | B20: =IF($A20=0,"",OFFSET(PO!K$12,ROW(B20)-ROW(B$12),0)) -> 1.2.2. | C20: =IF(OFFSET(PO!N$12,ROW(C20)-ROW(C$12),0)=0,"",OFFSET(PO!N$12,ROW(C20)-ROW(C$12),0)) -> REATERRO MANUAL DE VALAS COM COMPACTAÇÃO MECANIZADA | D20: =IF(OFFSET(PO!O$12,ROW(D20)-ROW(D$12),0)=0,"",OFFSET(PO!O$12,ROW(D20)-ROW(D$12),0)) -> M3 | E20: =IF($A20<>"Serviço",0,ROUND(SUMIF($F$9:$P$9,"<>",$F20:$P20),15-13*PO!$X$3)) -> 45.53 | F20: 45.53
A21: =OFFSET(PO!J$12,ROW(A21)-ROW($A$12),0) -> Nível 2 | B21: =IF($A21=0,"",OFFSET(PO!K$12,ROW(B21)-ROW(B$12),0)) -> 1.3. | C21: =IF(OFFSET(PO!N$12,ROW(C21)-ROW(C$12),0)=0,"",OFFSET(PO!N$12,ROW(C21)-ROW(C$12),0)) -> ESTRUTURA DE CONCRETO ARMADO | D21: =IF(OFFSET(PO!O$12,ROW(D21)-ROW(D$12),0)=0,"",OFFSET(PO!O$12,ROW(D21)-ROW(D$12),0)) ->  | E21: =IF($A21<>"Serviço",0,ROUND(SUMIF($F$9:$P$9,"<>",$F21:$P21),15-13*PO!$X$3)) -> 0 | F21: 0
A22: =OFFSET(PO!J$12,ROW(A22)-ROW($A$12),0) -> Serviço | B22: =IF($A22=0,"",OFFSET(PO!K$12,ROW(B22)-ROW(B$12),0)) -> 1.3.1. | C22: =IF(OFFSET(PO!N$12,ROW(C22)-ROW(C$12),0)=0,"",OFFSET(PO!N$12,ROW(C22)-ROW(C$12),0)) -> PEDRA BRITADA N. 2 (19 A 38 MM) PARA LASTRO DE FUNDO | D22: =IF(OFFSET(PO!O$12,ROW(D22)-ROW(D$12),0)=0,"",OFFSET(PO!O$12,ROW(D22)-ROW(D$12),0)) -> M3 | E22: =IF($A22<>"Serviço",0,ROUND(SUMIF($F$9:$P$9,"<>",$F22:$P22),15-13*PO!$X$3)) -> 3.7 | F22: 3.7
A23: =OFFSET(PO!J$12,ROW(A23)-ROW($A$12),0) -> Serviço | B23: =IF($A23=0,"",OFFSET(PO!K$12,ROW(B23)-ROW(B$12),0)) -> 1.3.2. | C23: =IF(OFFSET(PO!N$12,ROW(C23)-ROW(C$12),0)=0,"",OFFSET(PO!N$12,ROW(C23)-ROW(C$12),0)) -> SAPATAS E CÁLICES EM CONCRETO ARMADO | D23: =IF(OFFSET(PO!O$12,ROW(D23)-ROW(D$12),0)=0,"",OFFSET(PO!O$12,ROW(D23)-ROW(D$12),0)) -> M3 | E23: =IF($A23<>"Serviço",0,ROUND(SUMIF($F$9:$P$9,"<>",$F23:$P23),15-13*PO!$X$3)) -> 47.11 | F23: 47.11
A24: =OFFSET(PO!J$12,ROW(A24)-ROW($A$12),0) -> Serviço | B24: =IF($A24=0,"",OFFSET(PO!K$12,ROW(B24)-ROW(B$12),0)) -> 1.3.3. | C24: =IF(OFFSET(PO!N$12,ROW(C24)-ROW(C$12),0)=0,"",OFFSET(PO!N$12,ROW(C24)-ROW(C$12),0)) -> PILARES EM CONCRETO PRÉ-MOLDADO | D24: =IF(OFFSET(PO!O$12,ROW(D24)-ROW(D$12),0)=0,"",OFFSET(PO!O$12,ROW(D24)-ROW(D$12),0)) -> M3 | E24: =IF($A24<>"Serviço",0,ROUND(SUMIF($F$9:$P$9,"<>",$F24:$P24),15-13*PO!$X$3)) -> 37.3 | F24: 37.3
A25: =OFFSET(PO!J$12,ROW(A25)-ROW($A$12),0) -> Serviço | B25: =IF($A25=0,"",OFFSET(PO!K$12,ROW(B25)-ROW(B$12),0)) -> 1.3.4. | C25: =IF(OFFSET(PO!N$12,ROW(C25)-ROW(C$12),0)=0,"",OFFSET(PO!N$12,ROW(C25)-ROW(C$12),0)) -> VIGAS PRÉ-MOLDADAS | D25: =IF(OFFSET(PO!O$12,ROW(D25)-ROW(D$12),0)=0,"",OFFSET(PO!O$12,ROW(D25)-ROW(D$12),0)) -> M3 | E25: =IF($A25<>"Serviço",0,ROUND(SUMIF($F$9:$P$9,"<>",$F25:$P25),15-13*PO!$X$3)) -> 35.53 | F25: 17.765 | G25: 17.765
A26: =OFFSET(PO!J$12,ROW(A26)-ROW($A$12),0) -> Nível 2 | B26: =IF($A26=0,"",OFFSET(PO!K$12,ROW(B26)-ROW(B$12),0)) -> 1.4. | C26: =IF(OFFSET(PO!N$12,ROW(C26)-ROW(C$12),0)=0,"",OFFSET(PO!N$12,ROW(C26)-ROW(C$12),0)) -> COBERTURA | D26: =IF(OFFSET(PO!O$12,ROW(D26)-ROW(D$12),0)=0,"",OFFSET(PO!O$12,ROW(D26)-ROW(D$12),0)) ->  | E26: =IF($A26<>"Serviço",0,ROUND(SUMIF($F$9:$P$9,"<>",$F26:$P26),15-13*PO!$X$3)) -> 0 | F26: 0
A27: =OFFSET(PO!J$12,ROW(A27)-ROW($A$12),0) -> Serviço | B27: =IF($A27=0,"",OFFSET(PO!K$12,ROW(B27)-ROW(B$12),0)) -> 1.4.1. | C27: =IF(OFFSET(PO!N$12,ROW(C27)-ROW(C$12),0)=0,"",OFFSET(PO!N$12,ROW(C27)-ROW(C$12),0)) -> ESTRUTURA METALICA EM TESOURAS OU TRELICAS, VAO LIVRE DE 25M, FORNECIMENTO E MONTAGEM, INCLUSIVE CONTRAVENTAMENTO | D27: =IF(OFFSET(PO!O$12,ROW(D27)-ROW(D$12),0)=0,"",OFFSET(PO!O$12,ROW(D27)-ROW(D$12),0)) -> M2 | E27: =IF($A27<>"Serviço",0,ROUND(SUMIF($F$9:$P$9,"<>",$F27:$P27),15-13*PO!$X$3)) -> 1129.73 | G27: 1129.73
A28: =OFFSET(PO!J$12,ROW(A28)-ROW($A$12),0) -> Serviço | B28: =IF($A28=0,"",OFFSET(PO!K$12,ROW(B28)-ROW(B$12),0)) -> 1.4.2. | C28: =IF(OFFSET(PO!N$12,ROW(C28)-ROW(C$12),0)=0,"",OFFSET(PO!N$12,ROW(C28)-ROW(C$12),0)) -> TRAMA DE AÇO COMPOSTA POR TERÇAS PARA TELHADOS DE ATÉ 2 ÁGUAS PARA TELHA METÁLICA, INCLUSO TRANSPORTE VERTICAL | D28: =IF(OFFSET(PO!O$12,ROW(D28)-ROW(D$12),0)=0,"",OFFSET(PO!O$12,ROW(D28)-ROW(D$12),0)) -> M2 | E28: =IF($A28<>"Serviço",0,ROUND(SUMIF($F$9:$P$9,"<>",$F28:$P28),15-13*PO!$X$3)) -> 1129.73 | H28: 1129.73
A29: =OFFSET(PO!J$12,ROW(A29)-ROW($A$12),0) -> Serviço | B29: =IF($A29=0,"",OFFSET(PO!K$12,ROW(B29)-ROW(B$12),0)) -> 1.4.3. | C29: =IF(OFFSET(PO!N$12,ROW(C29)-ROW(C$12),0)=0,"",OFFSET(PO!N$12,ROW(C29)-ROW(C$12),0)) -> TELHAMENTO COM TELHA DE AÇO/ALUMÍNIO E = 0,5 MM, COM ATÉ 2 ÁGUAS, INCLUSO IÇAMENTO | D29: =IF(OFFSET(PO!O$12,ROW(D29)-ROW(D$12),0)=0,"",OFFSET(PO!O$12,ROW(D29)-ROW(D$12),0)) -> M2 | E29: =IF($A29<>"Serviço",0,ROUND(SUMIF($F$9:$P$9,"<>",$F29:$P29),15-13*PO!$X$3)) -> 1129.73 | H29: 1129.73
A30: =OFFSET(PO!J$12,ROW(A30)-ROW($A$12),0) -> Serviço | B30: =IF($A30=0,"",OFFSET(PO!K$12,ROW(B30)-ROW(B$12),0)) -> 1.4.4. | C30: =IF(OFFSET(PO!N$12,ROW(C30)-ROW(C$12),0)=0,"",OFFSET(PO!N$12,ROW(C30)-ROW(C$12),0)) -> FECHAMENTO DOS OITÕES COM TELHA DE AÇO/ALUMÍNIO E = 0,5 MM | D30: =IF(OFFSET(PO!O$12,ROW(D30)-ROW(D$12),0)=0,"",OFFSET(PO!O$12,ROW(D30)-ROW(D$12),0)) -> M2 | E30: =IF($A30<>"Serviço",0,ROUND(SUMIF($F$9:$P$9,"<>",$F30:$P30),15-13*PO!$X$3)) -> 210.28 | H30: 210.28
A31: =OFFSET(PO!J$12,ROW(A31)-ROW($A$12),0) -> Serviço | B31: =IF($A31=0,"",OFFSET(PO!K$12,ROW(B31)-ROW(B$12),0)) -> 1.4.5. | C31: =IF(OFFSET(PO!N$12,ROW(C31)-ROW(C$12),0)=0,"",OFFSET(PO!N$12,ROW(C31)-ROW(C$12),0)) -> CALHA EM CHAPA DE AÇO GALVANIZADO NÚMERO 24, DESENVOLVIMENTO DE 33 CM, INCLUSO TRANSPORTE VERTICAL. | D31: =IF(OFFSET(PO!O$12,ROW(D31)-ROW(D$12),0)=0,"",OFFSET(PO!O$12,ROW(D31)-ROW(D$12),0)) -> M | E31: =IF($A31<>"Serviço",0,ROUND(SUMIF($F$9:$P$9,"<>",$F31:$P31),15-13*PO!$X$3)) -> 92.7 | H31: 92.7
A32: =OFFSET(PO!J$12,ROW(A32)-ROW($A$12),0) -> Nível 2 | B32: =IF($A32=0,"",OFFSET(PO!K$12,ROW(B32)-ROW(B$12),0)) -> 1.5. | C32: =IF(OFFSET(PO!N$12,ROW(C32)-ROW(C$12),0)=0,"",OFFSET(PO!N$12,ROW(C32)-ROW(C$12),0)) -> PAVIMENTAÇÃO | D32: =IF(OFFSET(PO!O$12,ROW(D32)-ROW(D$12),0)=0,"",OFFSET(PO!O$12,ROW(D32)-ROW(D$12),0)) ->  | E32: =IF($A32<>"Serviço",0,ROUND(SUMIF($F$9:$P$9,"<>",$F32:$P32),15-13*PO!$X$3)) -> 0 | F32: 0
A33: =OFFSET(PO!J$12,ROW(A33)-ROW($A$12),0) -> Serviço | B33: =IF($A33=0,"",OFFSET(PO!K$12,ROW(B33)-ROW(B$12),0)) -> 1.5.1. | C33: =IF(OFFSET(PO!N$12,ROW(C33)-ROW(C$12),0)=0,"",OFFSET(PO!N$12,ROW(C33)-ROW(C$12),0)) -> PEDRA BRITADA N. 2 (19 A 38 MM) PARA LASTRO DE FUNDO | D33: =IF(OFFSET(PO!O$12,ROW(D33)-ROW(D$12),0)=0,"",OFFSET(PO!O$12,ROW(D33)-ROW(D$12),0)) -> M3 | E33: =IF($A33<>"Serviço",0,ROUND(SUMIF($F$9:$P$9,"<>",$F33:$P33),15-13*PO!$X$3)) -> 3.7 | I33: 3.7
A34: =OFFSET(PO!J$12,ROW(A34)-ROW($A$12),0) -> Serviço | B34: =IF($A34=0,"",OFFSET(PO!K$12,ROW(B34)-ROW(B$12),0)) -> 1.5.2. | C34: =IF(OFFSET(PO!N$12,ROW(C34)-ROW(C$12),0)=0,"",OFFSET(PO!N$12,ROW(C34)-ROW(C$12),0)) -> PISO EM CONCRETO POLIDO 20MPA PREPARO MECANICO, ESPESSURA 7 CM, COM ARMACAO EM TELA SOLDADA | D34: =IF(OFFSET(PO!O$12,ROW(D34)-ROW(D$12),0)=0,"",OFFSET(PO!O$12,ROW(D34)-ROW(D$12),0)) -> M2 | E34: =IF($A34<>"Serviço",0,ROUND(SUMIF($F$9:$P$9,"<>",$F34:$P34),15-13*PO!$X$3)) -> 1032.48 | I34: 1032.48
A35: =OFFSET(PO!J$12,ROW(A35)-ROW($A$12),0) -> Serviço | B35: =IF($A35=0,"",OFFSET(PO!K$12,ROW(B35)-ROW(B$12),0)) -> 1.5.3. | C35: =IF(OFFSET(PO!N$12,ROW(C35)-ROW(C$12),0)=0,"",OFFSET(PO!N$12,ROW(C35)-ROW(C$12),0)) -> JUNTAS DE DILATAÇÃO COM SELANTE ELASTICO MONOCOMPONENTE A BASE DE POLIURETANO 10MM x 20MM | D35: =IF(OFFSET(PO!O$12,ROW(D35)-ROW(D$12),0)=0,"",OFFSET(PO!O$12,ROW(D35)-ROW(D$12),0)) -> M | E35: =IF($A35<>"Serviço",0,ROUND(SUMIF($F$9:$P$9,"<>",$F35:$P35),15-13*PO!$X$3)) -> 315 | I35: 315
A36: =OFFSET(PO!J$12,ROW(A36)-ROW($A$12),0) -> Nível 2 | B36: =IF($A36=0,"",OFFSET(PO!K$12,ROW(B36)-ROW(B$12),0)) -> 1.6. | C36: =IF(OFFSET(PO!N$12,ROW(C36)-ROW(C$12),0)=0,"",OFFSET(PO!N$12,ROW(C36)-ROW(C$12),0)) -> PINTURA | D36: =IF(OFFSET(PO!O$12,ROW(D36)-ROW(D$12),0)=0,"",OFFSET(PO!O$12,ROW(D36)-ROW(D$12),0)) ->  | E36: =IF($A36<>"Serviço",0,ROUND(SUMIF($F$9:$P$9,"<>",$F36:$P36),15-13*PO!$X$3)) -> 0 | F36: 0
A37: =OFFSET(PO!J$12,ROW(A37)-ROW($A$12),0) -> Serviço | B37: =IF($A37=0,"",OFFSET(PO!K$12,ROW(B37)-ROW(B$12),0)) -> 1.6.1. | C37: =IF(OFFSET(PO!N$12,ROW(C37)-ROW(C$12),0)=0,"",OFFSET(PO!N$12,ROW(C37)-ROW(C$12),0)) -> PINTURA ACRILICA EMBORRACHADA EM PISO CIMENTADO, TRES DEMAOS | D37: =IF(OFFSET(PO!O$12,ROW(D37)-ROW(D$12),0)=0,"",OFFSET(PO!O$12,ROW(D37)-ROW(D$12),0)) -> M2 | E37: =IF($A37<>"Serviço",0,ROUND(SUMIF($F$9:$P$9,"<>",$F37:$P37),15-13*PO!$X$3)) -> 968 | I37: 968
A38: =OFFSET(PO!J$12,ROW(A38)-ROW($A$12),0) -> Serviço | B38: =IF($A38=0,"",OFFSET(PO!K$12,ROW(B38)-ROW(B$12),0)) -> 1.6.2. | C38: =IF(OFFSET(PO!N$12,ROW(C38)-ROW(C$12),0)=0,"",OFFSET(PO!N$12,ROW(C38)-ROW(C$12),0)) -> PINTURA ACRILICA DE FAIXAS DE DEMARCACÃO EM QUADRA POLIESPORTIVA, 5 CM DE LARGURA | D38: =IF(OFFSET(PO!O$12,ROW(D38)-ROW(D$12),0)=0,"",OFFSET(PO!O$12,ROW(D38)-ROW(D$12),0)) -> M | E38: =IF($A38<>"Serviço",0,ROUND(SUMIF($F$9:$P$9,"<>",$F38:$P38),15-13*PO!$X$3)) -> 575 | I38: =524+51 -> 575
A39: =OFFSET(PO!J$12,ROW(A39)-ROW($A$12),0) -> Nível 2 | B39: =IF($A39=0,"",OFFSET(PO!K$12,ROW(B39)-ROW(B$12),0)) -> 1.7. | C39: =IF(OFFSET(PO!N$12,ROW(C39)-ROW(C$12),0)=0,"",OFFSET(PO!N$12,ROW(C39)-ROW(C$12),0)) -> INSTALAÇÕES PLUVIAIS | D39: =IF(OFFSET(PO!O$12,ROW(D39)-ROW(D$12),0)=0,"",OFFSET(PO!O$12,ROW(D39)-ROW(D$12),0)) ->  | E39: =IF($A39<>"Serviço",0,ROUND(SUMIF($F$9:$P$9,"<>",$F39:$P39),15-13*PO!$X$3)) -> 0 | F39: 0
A40: =OFFSET(PO!J$12,ROW(A40)-ROW($A$12),0) -> Serviço | B40: =IF($A40=0,"",OFFSET(PO!K$12,ROW(B40)-ROW(B$12),0)) -> 1.7.1. | C40: =IF(OFFSET(PO!N$12,ROW(C40)-ROW(C$12),0)=0,"",OFFSET(PO!N$12,ROW(C40)-ROW(C$12),0)) -> TUBOS DE PVC, SÉRIE R, ÁGUA PLUVIAL, DN 100 MM, INCLUSIVE CONEXÕES, CORTES E FIXAÇÕES | D40: =IF(OFFSET(PO!O$12,ROW(D40)-ROW(D$12),0)=0,"",OFFSET(PO!O$12,ROW(D40)-ROW(D$12),0)) -> M | E40: =IF($A40<>"Serviço",0,ROUND(SUMIF($F$9:$P$9,"<>",$F40:$P40),15-13*PO!$X$3)) -> 170 | H40: 170
A41: =OFFSET(PO!J$12,ROW(A41)-ROW($A$12),0) -> Serviço | B41: =IF($A41=0,"",OFFSET(PO!K$12,ROW(B41)-ROW(B$12),0)) -> 1.7.2. | C41: =IF(OFFSET(PO!N$12,ROW(C41)-ROW(C$12),0)=0,"",OFFSET(PO!N$12,ROW(C41)-ROW(C$12),0)) -> CAIXA DE PASSAGEM 30X30X40 COM TAMPA E DRENO BRITA | D41: =IF(OFFSET(PO!O$12,ROW(D41)-ROW(D$12),0)=0,"",OFFSET(PO!O$12,ROW(D41)-ROW(D$12),0)) -> UN | E41: =IF($A41<>"Serviço",0,ROUND(SUMIF($F$9:$P$9,"<>",$F41:$P41),15-13*PO!$X$3)) -> 9 | H41: 9
A42: =OFFSET(PO!J$12,ROW(A42)-ROW($A$12),0) -> Nível 2 | B42: =IF($A42=0,"",OFFSET(PO!K$12,ROW(B42)-ROW(B$12),0)) -> 1.8. | C42: =IF(OFFSET(PO!N$12,ROW(C42)-ROW(C$12),0)=0,"",OFFSET(PO!N$12,ROW(C42)-ROW(C$12),0)) -> ENTORNO | D42: =IF(OFFSET(PO!O$12,ROW(D42)-ROW(D$12),0)=0,"",OFFSET(PO!O$12,ROW(D42)-ROW(D$12),0)) ->  | E42: =IF($A42<>"Serviço",0,ROUND(SUMIF($F$9:$P$9,"<>",$F42:$P42),15-13*PO!$X$3)) -> 0 | F42: 0
A43: =OFFSET(PO!J$12,ROW(A43)-ROW($A$12),0) -> Serviço | B43: =IF($A43=0,"",OFFSET(PO!K$12,ROW(B43)-ROW(B$12),0)) -> 1.8.1. | C43: =IF(OFFSET(PO!N$12,ROW(C43)-ROW(C$12),0)=0,"",OFFSET(PO!N$12,ROW(C43)-ROW(C$12),0)) -> PEDRA BRITADA N. 2 (19 A 38 MM) PARA LASTRO DE FUNDO | D43: =IF(OFFSET(PO!O$12,ROW(D43)-ROW(D$12),0)=0,"",OFFSET(PO!O$12,ROW(D43)-ROW(D$12),0)) -> M3 | E43: =IF($A43<>"Serviço",0,ROUND(SUMIF($F$9:$P$9,"<>",$F43:$P43),15-13*PO!$X$3)) -> 1.72 | F43: 1.72
A44: =OFFSET(PO!J$12,ROW(A44)-ROW($A$12),0) -> Serviço | B44: =IF($A44=0,"",OFFSET(PO!K$12,ROW(B44)-ROW(B$12),0)) -> 1.8.2. | C44: =IF(OFFSET(PO!N$12,ROW(C44)-ROW(C$12),0)=0,"",OFFSET(PO!N$12,ROW(C44)-ROW(C$12),0)) -> EXECUÇÃO DE PASSEIO DE CONCRETO COM, ACABAMENTO CONVENCIONAL, ESPESSURA 6 CM, ARMADO | D44: =IF(OFFSET(PO!O$12,ROW(D44)-ROW(D$12),0)=0,"",OFFSET(PO!O$12,ROW(D44)-ROW(D$12),0)) -> M2 | E44: =IF($A44<>"Serviço",0,ROUND(SUMIF($F$9:$P$9,"<>",$F44:$P44),15-13*PO!$X$3)) -> 34.45 | F44: 34.45
A45: =OFFSET(PO!J$12,ROW(A45)-ROW($A$12),0) -> Serviço | B45: =IF($A45=0,"",OFFSET(PO!K$12,ROW(B45)-ROW(B$12),0)) -> 1.8.3. | C45: =IF(OFFSET(PO!N$12,ROW(C45)-ROW(C$12),0)=0,"",OFFSET(PO!N$12,ROW(C45)-ROW(C$12),0)) -> PISO PODOTATIL DE CONCRETO ALERTA/DIRECIONAL *40 X 40 X 2,5*CM, SOBRE LASTRO DE CONCRETO ESPESSURA 3 CM E REJUNTE CIMENTICIO | D45: =IF(OFFSET(PO!O$12,ROW(D45)-ROW(D$12),0)=0,"",OFFSET(PO!O$12,ROW(D45)-ROW(D$12),0)) -> M2 | E45: =IF($A45<>"Serviço",0,ROUND(SUMIF($F$9:$P$9,"<>",$F45:$P45),15-13*PO!$X$3)) -> 8.24 | F45: 8.24
A46: =OFFSET(PO!J$12,ROW(A46)-ROW($A$12),0) -> Nível 2 | B46: =IF($A46=0,"",OFFSET(PO!K$12,ROW(B46)-ROW(B$12),0)) -> 1.9. | C46: =IF(OFFSET(PO!N$12,ROW(C46)-ROW(C$12),0)=0,"",OFFSET(PO!N$12,ROW(C46)-ROW(C$12),0)) -> SERVIÇOS FINAIS | D46: =IF(OFFSET(PO!O$12,ROW(D46)-ROW(D$12),0)=0,"",OFFSET(PO!O$12,ROW(D46)-ROW(D$12),0)) ->  | E46: =IF($A46<>"Serviço",0,ROUND(SUMIF($F$9:$P$9,"<>",$F46:$P46),15-13*PO!$X$3)) -> 0 | F46: 0
A47: =OFFSET(PO!J$12,ROW(A47)-ROW($A$12),0) -> Serviço | B47: =IF($A47=0,"",OFFSET(PO!K$12,ROW(B47)-ROW(B$12),0)) -> 1.9.1. | C47: =IF(OFFSET(PO!N$12,ROW(C47)-ROW(C$12),0)=0,"",OFFSET(PO!N$12,ROW(C47)-ROW(C$12),0)) -> LIMPEZA FINAL DA OBRA | D47: =IF(OFFSET(PO!O$12,ROW(D47)-ROW(D$12),0)=0,"",OFFSET(PO!O$12,ROW(D47)-ROW(D$12),0)) -> M2 | E47: =IF($A47<>"Serviço",0,ROUND(SUMIF($F$9:$P$9,"<>",$F47:$P47),15-13*PO!$X$3)) -> 1032.48 | F47: 1032.48
A48: =OFFSET(PO!J$12,ROW(A48)-ROW($A$12),0) -> Serviço | B48: =IF($A48=0,"",OFFSET(PO!K$12,ROW(B48)-ROW(B$12),0)) -> 1.9.2. | C48: =IF(OFFSET(PO!N$12,ROW(C48)-ROW(C$12),0)=0,"",OFFSET(PO!N$12,ROW(C48)-ROW(C$12),0)) -> TRAVE DE FUTSAL 3,00 X 2,00 MODELO DESMONTÁVEL | D48: =IF(OFFSET(PO!O$12,ROW(D48)-ROW(D$12),0)=0,"",OFFSET(PO!O$12,ROW(D48)-ROW(D$12),0)) -> UN | E48: =IF($A48<>"Serviço",0,ROUND(SUMIF($F$9:$P$9,"<>",$F48:$P48),15-13*PO!$X$3)) -> 2 | I48: 2
A49: =OFFSET(PO!J$12,ROW(A49)-ROW($A$12),0) -> Serviço | B49: =IF($A49=0,"",OFFSET(PO!K$12,ROW(B49)-ROW(B$12),0)) -> 1.9.3. | C49: =IF(OFFSET(PO!N$12,ROW(C49)-ROW(C$12),0)=0,"",OFFSET(PO!N$12,ROW(C49)-ROW(C$12),0)) -> PAR DE MASTROS EM AÇO CARBONO, DIAMETRO 3", COM CREMALHEIRA, ROLDANAS E BUCHAS DE FIXAÇÃO, COM PINTURA EPOXI E ALTURA DE 2,80 M, OFICIAL PARA VOLEY | D49: =IF(OFFSET(PO!O$12,ROW(D49)-ROW(D$12),0)=0,"",OFFSET(PO!O$12,ROW(D49)-ROW(D$12),0)) -> UN | E49: =IF($A49<>"Serviço",0,ROUND(SUMIF($F$9:$P$9,"<>",$F49:$P49),15-13*PO!$X$3)) -> 1 | I49: 1
A50: =OFFSET(PO!J$12,ROW(A50)-ROW($A$12),0) -> Serviço | B50: =IF($A50=0,"",OFFSET(PO!K$12,ROW(B50)-ROW(B$12),0)) -> 1.9.4. | C50: =IF(OFFSET(PO!N$12,ROW(C50)-ROW(C$12),0)=0,"",OFFSET(PO!N$12,ROW(C50)-ROW(C$12),0)) -> REDE DE VÔLEI PROFISSIONAIL COM FAIXAS EM PVC | D50: =IF(OFFSET(PO!O$12,ROW(D50)-ROW(D$12),0)=0,"",OFFSET(PO!O$12,ROW(D50)-ROW(D$12),0)) -> UN | E50: =IF($A50<>"Serviço",0,ROUND(SUMIF($F$9:$P$9,"<>",$F50:$P50),15-13*PO!$X$3)) -> 1 | I50: 1
A51: =OFFSET(PO!J$12,ROW(A51)-ROW($A$12),0) -> Serviço | B51: =IF($A51=0,"",OFFSET(PO!K$12,ROW(B51)-ROW(B$12),0)) -> 1.9.5. | C51: =IF(OFFSET(PO!N$12,ROW(C51)-ROW(C$12),0)=0,"",OFFSET(PO!N$12,ROW(C51)-ROW(C$12),0)) -> BUCHA DE ESPERA EM PISO DE CONCRETO PARA FIXAÇÃO DE MASTROS E TRAVES, COM TUBO DE FERRO GALVANIZADO E TAMPÃO | D51: =IF(OFFSET(PO!O$12,ROW(D51)-ROW(D$12),0)=0,"",OFFSET(PO!O$12,ROW(D51)-ROW(D$12),0)) -> UN | E51: =IF($A51<>"Serviço",0,ROUND(SUMIF($F$9:$P$9,"<>",$F51:$P51),15-13*PO!$X$3)) -> 4 | I51: 4
B54: =PO!$K$63 -> CATANDUVAS/SC
B55: Local
B57: =PO!$K$66 -> 2019-02-22
B58: Data

Sheet CFF
O1: CFF - | P1: CRONOGRAMA FÍSICO-FINANCEIRO | X1: CRONOGRAMA FÍSICO-FINANCEIRO
P2: =CHOOSE(1+LOG(1+2*(TipoOrçamento="BASE")+4*(TipoOrçamento="LICITADO")+8*(TipoOrçamento="REPROGRAMADOAC")+16*(TipoOrçamento="REPROGRAMADONPL"),2),"nada","Cronograma Base para Licitação","Cronograma Licitado","Cronograma Licitado Reprogramado","Cronograma Base para Licitação - Reprogramado") -> Cronograma Base para Licitação | X2: =CHOOSE(1+LOG(1+2*(TipoOrçamento="BASE")+4*(TipoOrçamento="LICITADO")+8*(TipoOrçamento="REPROGRAMADOAC")+16*(TipoOrçamento="REPROGRAMADONPL"),2),"nada","Cronograma Base para Licitação","Cronograma Licitado","Cronograma Licitado Reprogramado","Cronograma Base para Licitação - Reprogramado") -> Cronograma Base para Licitação
A8: Nível Máx Crono | L8: =IF(MAX($A$14:$A$85)<>MAX(PO!$V$12:$V$52),"ERRO: CRONOGRAMA DESATUALIZADO",IF(OR(COUNTIF($O$16:$AF$16,">1")>0,OFFSET($AF$17,0,-1)<>$N$14),"ERRO: CRONOGRAMA NÃO FECHA EM 100%","")) -> ERRO: CRONOGRAMA DESATUALIZADO | N8: =IF(TipoOrçamento="REPROGRAMADOAC","Qtde de Medições realizadas","") -> 
A9: 2 | N9: 1 | O9: =IF(AND(TipoOrçamento="REPROGRAMADOAC",$N$9>0),$N$9-1,0) -> 0 | P9: =OFFSET(P9,0,-1)+1 -> 1 | Q9: 2 | R9: 3 | S9: 4 | T9: 5 | U9: 6 | V9: 7 | W9: 8 | X9: 9 | Y9: 10 | Z9: 11 | AA9: 12 | AB9: 13 | AC9: 14 | AD9: 15 | AE9: 16 | AK9: =OFFSET(AK9,0,-1)+1 -> 1
A10: Lista Crono | B10: Último Nível | C10: Nível | D10: Altura | E10: N1 | F10: N2 | G10: N3 | H10: N4 | I10: Czero | J10: Cnível | K10: VTOTAL SOMA | L10: Item | M10: Descrição das Metas / Macrosserviços | N10: Valores Totais (R$) | O10: =IF(TipoOrçamento="REPROGRAMADOAC","Reinício de Obra","Início de Obra")&CHAR(10)&TEXT(DADOS!A48,"dd/mm/aa") -> Início de Obra 01/02/19 | P10: =IF(AND(TipoOrçamento="REPROGRAMADOAC",$N$9>0,N10="Valores Totais (R$)"),"Parcela "&$N$9&" Executado","Parcela "&P$9&CHAR(10)&TEXT(DATE(YEAR(DADOS!$A$48),MONTH(DADOS!$A$48)+P$9-IF(AND(TipoOrçamento="REPROGRAMADOAC",$N$9>0),$N$9,0),1),"mmm/aa")) -> Parcela 1 mar/19 | Q10: =IF(AND(TipoOrçamento="REPROGRAMADOAC",$N$9>0,O10="Valores Totais (R$)"),"Parcela "&$N$9&" Executado","Parcela "&Q$9&CHAR(10)&TEXT(DATE(YEAR(DADOS!$A$48),MONTH(DADOS!$A$48)+Q$9-IF(AND(TipoOrçamento="REPROGRAMADOAC",$N$9>0),$N$9,0),1),"mmm/aa")) -> Parcela 2 abr/19 | R10: =IF(AND(TipoOrçamento="REPROGRAMADOAC",$N$9>0,P10="Valores Totais (R$)"),"Parcela "&$N$9&" Executado","Parcela "&R$9&CHAR(10)&TEXT(DATE(YEAR(DADOS!$A$48),MONTH(DADOS!$A$48)+R$9-IF(AND(TipoOrçamento="REPROGRAMADOAC",$N$9>0),$N$9,0),1),"mmm/aa")) -> Parcela 3 mai/19 | S10: =IF(AND(TipoOrçamento="REPROGRAMADOAC",$N$9>0,Q10="Valores Totais (R$)"),"Parcela "&$N$9&" Executado","Parcela "&S$9&CHAR(10)&TEXT(DATE(YEAR(DADOS!$A$48),MONTH(DADOS!$A$48)+S$9-IF(AND(TipoOrçamento="REPROGRAMADOAC",$N$9>0),$N$9,0),1),"mmm/aa")) -> Parcela 4 jun/19 | T10: =IF(AND(TipoOrçamento="REPROGRAMADOAC",$N$9>0,R10="Valores Totais (R$)"),"Parcela "&$N$9&" Executado","Parcela "&T$9&CHAR(10)&TEXT(DATE(YEAR(DADOS!$A$48),MONTH(DADOS!$A$48)+T$9-IF(AND(TipoOrçamento="REPROGRAMADOAC",$N$9>0),$N$9,0),1),"mmm/aa")) -> Parcela 5 jul/19 | U10: =IF(AND(TipoOrçamento="REPROGRAMADOAC",$N$9>0,S10="Valores Totais (R$)"),"Parcela "&$N$9&" Executado","Parcela "&U$9&CHAR(10)&TEXT(DATE(YEAR(DADOS!$A$48),MONTH(DADOS!$A$48)+U$9-IF(AND(TipoOrçamento="REPROGRAMADOAC",$N$9>0),$N$9,0),1),"mmm/aa")) -> Parcela 6 ago/19 | V10: =IF(AND(TipoOrçamento="REPROGRAMADOAC",$N$9>0,T10="Valores Totais (R$)"),"Parcela "&$N$9&" Executado","Parcela "&V$9&CHAR(10)&TEXT(DATE(YEAR(DADOS!$A$48),MONTH(DADOS!$A$48)+V$9-IF(AND(TipoOrçamento="REPROGRAMADOAC",$N$9>0),$N$9,0),1),"mmm/aa")) -> Parcela 7 set/19 | W10: =IF(AND(TipoOrçamento="REPROGRAMADOAC",$N$9>0,U10="Valores Totais (R$)"),"Parcela "&$N$9&" Executado","Parcela "&W$9&CHAR(10)&TEXT(DATE(YEAR(DADOS!$A$48),MONTH(DADOS!$A$48)+W$9-IF(AND(TipoOrçamento="REPROGRAMADOAC",$N$9>0),$N$9,0),1),"mmm/aa")) -> Parcela 8 out/19 | X10: =IF(AND(TipoOrçamento="REPROGRAMADOAC",$N$9>0,V10="Valores Totais (R$)"),"Parcela "&$N$9&" Executado","Parcela "&X$9&CHAR(10)&TEXT(DATE(YEAR(DADOS!$A$48),MONTH(DADOS!$A$48)+X$9-IF(AND(TipoOrçamento="REPROGRAMADOAC",$N$9>0),$N$9,0),1),"mmm/aa")) -> Parcela 9 nov/19 | Y10: =IF(AND(TipoOrçamento="REPROGRAMADOAC",$N$9>0,W10="Valores Totais (R$)"),"Parcela "&$N$9&" Executado","Parcela "&Y$9&CHAR(10)&TEXT(DATE(YEAR(DADOS!$A$48),MONTH(DADOS!$A$48)+Y$9-IF(AND(TipoOrçamento="REPROGRAMADOAC",$N$9>0),$N$9,0),1),"mmm/aa")) -> Parcela 10 dez/19 | Z10: =IF(AND(TipoOrçamento="REPROGRAMADOAC",$N$9>0,X10="Valores Totais (R$)"),"Parcela "&$N$9&" Executado","Parcela "&Z$9&CHAR(10)&TEXT(DATE(YEAR(DADOS!$A$48),MONTH(DADOS!$A$48)+Z$9-IF(AND(TipoOrçamento="REPROGRAMADOAC",$N$9>0),$N$9,0),1),"mmm/aa")) -> Parcela 11 jan/20 | AA10: =IF(AND(TipoOrçamento="REPROGRAMADOAC",$N$9>0,Y10="Valores Totais (R$)"),"Parcela "&$N$9&" Executado","Parcela "&AA$9&CHAR(10)&TEXT(DATE(YEAR(DADOS!$A$48),MONTH(DADOS!$A$48)+AA$9-IF(AND(TipoOrçamento="REPROGRAMADOAC",$N$9>0),$N$9,0),1),"mmm/aa")) -> Parcela 12 fev/20 | AB10: =IF(AND(TipoOrçamento="REPROGRAMADOAC",$N$9>0,Z10="Valores Totais (R$)"),"Parcela "&$N$9&" Executado","Parcela "&AB$9&CHAR(10)&TEXT(DATE(YEAR(DADOS!$A$48),MONTH(DADOS!$A$48)+AB$9-IF(AND(TipoOrçamento="REPROGRAMADOAC",$N$9>0),$N$9,0),1),"mmm/aa")) -> Parcela 13 mar/20 | AC10: =IF(AND(TipoOrçamento="REPROGRAMADOAC",$N$9>0,AA10="Valores Totais (R$)"),"Parcela "&$N$9&" Executado","Parcela "&AC$9&CHAR(10)&TEXT(DATE(YEAR(DADOS!$A$48),MONTH(DADOS!$A$48)+AC$9-IF(AND(TipoOrçamento="REPROGRAMADOAC",$N$9>0),$N$9,0),1),"mmm/aa")) -> Parcela 14 abr/20 | AD10: =IF(AND(TipoOrçamento="REPROGRAMADOAC",$N$9>0,AB10="Valores Totais (R$)"),"Parcela "&$N$9&" Executado","Parcela "&AD$9&CHAR(10)&TEXT(DATE(YEAR(DADOS!$A$48),MONTH(DADOS!$A$48)+AD$9-IF(AND(TipoOrçamento="REPROGRAMADOAC",$N$9>0),$N$9,0),1),"mmm/aa")) -> Parcela 15 mai/20 | AE10: =IF(AND(TipoOrçamento="REPROGRAMADOAC",$N$9>0,AC10="Valores Totais (R$)"),"Parcela "&$N$9&" Executado","Parcela "&AE$9&CHAR(10)&TEXT(DATE(YEAR(DADOS!$A$48),MONTH(DADOS!$A$48)+AE$9-IF(AND(TipoOrçamento="REPROGRAMADOAC",$N$9>0),$N$9,0),1),"mmm/aa")) -> Parcela 16 jun/20 | AK10: =IF(AND(TipoOrçamento="REPROGRAMADOAC",$N$9>0,AI10="Valores Totais (R$)"),"Parcela "&$N$9&" Executado","Parcela "&AK$9&CHAR(10)&TEXT(DATE(YEAR(DADOS!$A$48),MONTH(DADOS!$A$48)+AK$9-IF(AND(TipoOrçamento="REPROGRAMADOAC",$N$9>0),$N$9,0),1),"mmm/aa")) -> Parcela 1 mar/19
L11: =INDEX(PO!K$12:K$52,MATCH($A13,PO!$V$12:$V$52,0)) ->  | M11: =INDEX(PO!N$12:N$52,MATCH($A13,PO!$V$12:$V$52,0)) ->  | N11: =IF(ROUND(K13,2)=0,K13,ROUND(K13,2)) ->  | O11: Parcela (%) | P11: =IF($B13,0,P12-IF(ISNUMBER(O12),O12,0)) ->  | Q11: =IF($B13,0,Q12-IF(ISNUMBER(P12),P12,0)) ->  | X11: =IF($B13,0,X12-IF(ISNUMBER(W12),W12,0)) ->  | AK11: =IF($B13,0,AK12-IF(ISNUMBER(AJ12),AJ12,0)) -> 
O12: Acumulado (%) | P12: =MIN(IF($B13,P11+IF(ISNUMBER(O12),O12,0),P13/$N11),1) ->  | Q12: =MIN(IF($B13,Q11+IF(ISNUMBER(P12),P12,0),Q13/$N11),1) ->  | X12: =MIN(IF($B13,X11+IF(ISNUMBER(W12),W12,0),X13/$N11),1) ->  | AK12: =MIN(IF($B13,AK11+IF(ISNUMBER(AJ12),AJ12,0),AK13/$N11),1) -> 
A13: =OFFSET(A13,-CFF.NumLinha,0)+1 ->  | B13: =$C13>=OFFSET($C13,CFF.NumLinha,0) ->  | C13: =INDEX(PO!A$12:A$52,MATCH($A13,PO!$V$12:$V$52,0)) ->  | D13: =IF(ISERROR(J13),I13,SMALL(I13:J13,1))-1 ->  | E13: =IF($C13=1,OFFSET(E13,-CFF.NumLinha,0)+1,OFFSET(E13,-CFF.NumLinha,0)) ->  | F13: =IF($C13=1,0,IF($C13=2,OFFSET(F13,-CFF.NumLinha,0)+1,OFFSET(F13,-CFF.NumLinha,0))) ->  | G13: =IF(AND($C13<=2,$C13<>0),0,IF($C13=3,OFFSET(G13,-CFF.NumLinha,0)+1,OFFSET(G13,-CFF.NumLinha,0))) ->  | H13: =IF(AND($C13<=3,$C13<>0),0,IF($C13=4,OFFSET(H13,-CFF.NumLinha,0)+1,OFFSET(H13,-CFF.NumLinha,0))) ->  | I13: =MATCH(0,OFFSET($D13,1,$C13,ROW($A$84)-ROW($A13)),0) ->  | J13: =MATCH(OFFSET($D13,0,$C13)+1,OFFSET($D13,1,$C13,ROW($A$84)-ROW($A13)),0) ->  | K13: =ROUND(INDEX(PO!T$12:T$52,MATCH($A13,PO!$V$12:$V$52,0)),2)+10^-12 ->  | O13: Acumulado (R$) | P13: =IF($B13,ROUND(P12*$N11,2),ROUND(SUMIF(OFFSET($B13,1,0,$D13),TRUE,OFFSET(P13,1,0,$D13))/SUMIF(OFFSET($B13,1,0,$D13),TRUE,OFFSET($K13,1,0,$D13))*$N11,2)) ->  | Q13: =IF($B13,ROUND(Q12*$N11,2),ROUND(SUMIF(OFFSET($B13,1,0,$D13),TRUE,OFFSET(Q13,1,0,$D13))/SUMIF(OFFSET($B13,1,0,$D13),TRUE,OFFSET($K13,1,0,$D13))*$N11,2)) ->  | X13: =IF($B13,ROUND(X12*$N11,2),ROUND(SUMIF(OFFSET($B13,1,0,$D13),TRUE,OFFSET(X13,1,0,$D13))/SUMIF(OFFSET($B13,1,0,$D13),TRUE,OFFSET($K13,1,0,$D13))*$N11,2)) ->  | Y13: =IF($B13,ROUND(Y12*$N11,2),ROUND(SUMIF(OFFSET($B13,1,0,$D13),TRUE,OFFSET(Y13,1,0,$D13))/SUMIF(OFFSET($B13,1,0,$D13),TRUE,OFFSET($K13,1,0,$D13))*$N11,2)) ->  | AK13: =IF($B13,ROUND(AK12*$N11,2),ROUND(SUMIF(OFFSET($B13,1,0,$D13),TRUE,OFFSET(AK13,1,0,$D13))/SUMIF(OFFSET($B13,1,0,$D13),TRUE,OFFSET($K13,1,0,$D13))*$N11,2)) -> 
L14: CRONOGRAMA GLOBAL DO LOTE | N14: =IF(PO!$T$12=0,10^-12,PO!$T$12) -> 483284.68 | O14: Parcela (%) | P14: =ROUND(P15/$N14,4) -> 0.1828 | Q14: =ROUND(Q15/$N14,4) -> 0.369 | R14: 0.2793 | S14: 0.1244 | T14: 0.041 | U14: 0.0036 | V14: 0 | W14: 0 | X14: =ROUND(X15/$N14,4) -> 0 | Y14: 0 | Z14: 0 | AA14: 0 | AB14: 0 | AC14: 0 | AD14: 0 | AE14: 0 | AK14: =ROUND(AK15/$N14,4) -> 0
O15: Parcela (R$) | P15: =P17-IF(ISNUMBER(O17),O17,0) -> 88328.77 | Q15: =Q17-IF(ISNUMBER(P17),P17,0) -> 178337.38 | R15: 134978.65 | S15: 60101.48 | T15: 19798.97 | U15: 1739.43 | V15: 0 | W15: 0 | X15: =X17-IF(ISNUMBER(W17),W17,0) -> 0 | Y15: 0 | Z15: 0 | AA15: 0 | AB15: 0 | AC15: 0 | AD15: 0 | AE15: 0 | AK15: =AK17-IF(ISNUMBER(AJ17),AJ17,0) -> 0
O16: Acumulado (%) | P16: =ROUND(P17/$N14,4) -> 0.1828 | Q16: =ROUND(Q17/$N14,4) -> 0.5518 | R16: 0.8311 | S16: 0.9554 | T16: 0.9964 | U16: 1 | V16: 1 | W16: 1 | X16: =ROUND(X17/$N14,4) -> 1 | Y16: =ROUND(Y17/$N14,4) -> 1 | Z16: 1 | AA16: 1 | AB16: 1 | AC16: 1 | AD16: 1 | AE16: 1 | AK16: =ROUND(AK17/$N14,4) -> 0
A17: 0 | D17: =ROW(D$84)-ROW(D18) -> 66 | O17: Acumulado (R$) | P17: =SUMIF(OFFSET($C17,1,0):$C$84,1,OFFSET(P17,1,0):P$84) -> 88328.77 | Q17: =SUMIF(OFFSET($C17,1,0):$C$84,1,OFFSET(Q17,1,0):Q$84) -> 266666.15 | R17: =SUMIF(OFFSET($C17,1,0):$C$84,1,OFFSET(R17,1,0):R$84) -> 401644.8 | S17: =SUMIF(OFFSET($C17,1,0):$C$84,1,OFFSET(S17,1,0):S$84) -> 461746.28 | T17: =SUMIF(OFFSET($C17,1,0):$C$84,1,OFFSET(T17,1,0):T$84) -> 481545.25 | U17: =SUMIF(OFFSET($C17,1,0):$C$84,1,OFFSET(U17,1,0):U$84) -> 483284.68 | V17: =SUMIF(OFFSET($C17,1,0):$C$84,1,OFFSET(V17,1,0):V$84) -> 483284.68 | W17: =SUMIF(OFFSET($C17,1,0):$C$84,1,OFFSET(W17,1,0):W$84) -> 483284.68 | X17: =SUMIF(OFFSET($C17,1,0):$C$84,1,OFFSET(X17,1,0):X$84) -> 483284.68 | Y17: =SUMIF(OFFSET($C17,1,0):$C$84,1,OFFSET(Y17,1,0):Y$84) -> 483284.68 | Z17: =SUMIF(OFFSET($C17,1,0):$C$84,1,OFFSET(Z17,1,0):Z$84) -> 483284.68 | AA17: =SUMIF(OFFSET($C17,1,0):$C$84,1,OFFSET(AA17,1,0):AA$84) -> 483284.68 | AB17: =SUMIF(OFFSET($C17,1,0):$C$84,1,OFFSET(AB17,1,0):AB$84) -> 483284.68 | AC17: =SUMIF(OFFSET($C17,1,0):$C$84,1,OFFSET(AC17,1,0):AC$84) -> 483284.68 | AD17: =SUMIF(OFFSET($C17,1,0):$C$84,1,OFFSET(AD17,1,0):AD$84) -> 483284.68 | AE17: =SUMIF(OFFSET($C17,1,0):$C$84,1,OFFSET(AE17,1,0):AE$84) -> 483284.68 | AK17: =SUMIF(OFFSET($C17,1,0):$C$84,1,OFFSET(AK17,1,0):AK$84) -> 0
L18: =INDEX(PO!K$12:K$52,MATCH($A20,PO!$V$12:$V$52,0)) -> 1. | M18: =INDEX(PO!N$12:N$52,MATCH($A20,PO!$V$12:$V$52,0)) -> COBERTURA E REVITALIZAÇÃO QUADRA BAIRRO REGINA | N18: =IF(ROUND(K20,2)=0,K20,ROUND(K20,2)) -> 483284.68 | O18: Parcela (%) | P18: 0.5 | Q18: 0.5 | R18: 0.15 | S18: 0.15 | T18: 0.15 | U18: 0.15 | V18: 0.1 | W18: =IF($B20,0,W19-IF(ISNUMBER(V19),V19,0)) -> 0 | X18: 0 | Y18: 0 | Z18: 0 | AA18: 0 | AB18: 0 | AC18: 0 | AD18: 0 | AE18: 0 | AK18: =IF($B20,0,AK19-IF(ISNUMBER(AJ19),AJ19,0)) -> 0
O19: Acumulado (%) | P19: =MIN(IF($B20,P18+IF(ISNUMBER(O19),O19,0),P20/$N18),1) -> 0.1827675771 | Q19: 0.5517786121 | R19: 0.8310728989 | S19: 0.9554333069 | T19: 0.996400817 | U19: 1 | V19: 1 | W19: 1 | X19: 1 | Y19: 1 | Z19: 1 | AA19: 1 | AB19: 1 | AC19: 1 | AD19: 1 | AE19: 1 | AK19: =MIN(IF($B20,AK18+IF(ISNUMBER(AJ19),AJ19,0),AK20/$N18),1) -> 0
A20: =OFFSET(A20,-CFF.NumLinha,0)+1 -> 1 | B20: =$C20>=OFFSET($C20,CFF.NumLinha,0) -> FALSE | C20: =INDEX(PO!A$12:A$52,MATCH($A20,PO!$V$12:$V$52,0)) -> 1 | D20: =IF(ISERROR(J20),I20,SMALL(I20:J20,1))-1 -> 63 | E20: =IF($C20=1,OFFSET(E20,-CFF.NumLinha,0)+1,OFFSET(E20,-CFF.NumLinha,0)) -> 1 | F20: =IF($C20=1,0,IF($C20=2,OFFSET(F20,-CFF.NumLinha,0)+1,OFFSET(F20,-CFF.NumLinha,0))) -> 0 | G20: =IF(AND($C20<=2,$C20<>0),0,IF($C20=3,OFFSET(G20,-CFF.NumLinha,0)+1,OFFSET(G20,-CFF.NumLinha,0))) -> 0 | H20: =IF(AND($C20<=3,$C20<>0),0,IF($C20=4,OFFSET(H20,-CFF.NumLinha,0)+1,OFFSET(H20,-CFF.NumLinha,0))) -> 0 | I20: =MATCH(0,OFFSET($D20,1,$C20,ROW($A$84)-ROW($A20)),0) -> 64 | J20: =MATCH(OFFSET($D20,0,$C20)+1,OFFSET($D20,1,$C20,ROW($A$84)-ROW($A20)),0) ->  | K20: =ROUND(INDEX(PO!T$12:T$52,MATCH($A20,PO!$V$12:$V$52,0)),2)+10^-12 -> 483284.68 | O20: Acumulado (R$) | P20: =IF($B20,ROUND(P19*$N18,2),ROUND(SUMIF(OFFSET($B20,1,0,$D20),TRUE,OFFSET(P20,1,0,$D20))/SUMIF(OFFSET($B20,1,0,$D20),TRUE,OFFSET($K20,1,0,$D20))*$N18,2)) -> 88328.77 | Q20: 266666.15 | R20: 401644.8 | S20: 461746.28 | T20: 481545.25 | U20: 483284.68 | V20: 483284.68 | W20: 483284.68 | X20: 483284.68 | Y20: 483284.68 | Z20: 483284.68 | AA20: 483284.68 | AB20: 483284.68 | AC20: 483284.68 | AD20: 483284.68 | AE20: 483284.68 | AK20: =IF($B20,ROUND(AK19*$N18,2),ROUND(SUMIF(OFFSET($B20,1,0,$D20),TRUE,OFFSET(AK20,1,0,$D20))/SUMIF(OFFSET($B20,1,0,$D20),TRUE,OFFSET($K20,1,0,$D20))*$N18,2)) -> 0
L21: =INDEX(PO!K$12:K$52,MATCH($A23,PO!$V$12:$V$52,0)) -> 1.1. | M21: =INDEX(PO!N$12:N$52,MATCH($A23,PO!$V$12:$V$52,0)) -> SERVIÇOS INICIAIS | N21: =IF(ROUND(K23,2)=0,K23,ROUND(K23,2)) -> 2893.25 | O21: Parcela (%) | P21: 1 | Q21: 0.5 | S21: 0.045 | T21: =IF($B23,0,T22-IF(ISNUMBER(S22),S22,0)) -> 0 | U21: 0 | V21: 0 | W21: 0 | X21: 0 | Y21: 0 | Z21: 0 | AA21: 0 | AB21: 0 | AC21: 0 | AD21: 0 | AE21: 0 | AK21: =IF($B23,0,AK22-IF(ISNUMBER(AJ22),AJ22,0)) -> 0
O22: Acumulado (%) | P22: =MIN(IF($B23,P21+IF(ISNUMBER(O22),O22,0),P23/$N21),1) -> 1 | Q22: 1 | R22: 1 | S22: 1 | T22: 1 | U22: 1 | V22: 1 | W22: 1 | X22: 1 | Y22: 1 | Z22: 1 | AA22: 1 | AB22: 1 | AC22: 1 | AD22: 1 | AE22: 1 | AK22: =MIN(IF($B23,AK21+IF(ISNUMBER(AJ22),AJ22,0),AK23/$N21),1) -> 0
A23: =OFFSET(A23,-CFF.NumLinha,0)+1 -> 2 | B23: =$C23>=OFFSET($C23,CFF.NumLinha,0) -> TRUE | C23: =INDEX(PO!A$12:A$52,MATCH($A23,PO!$V$12:$V$52,0)) -> 2 | D23: =IF(ISERROR(J23),I23,SMALL(I23:J23,1))-1 -> 2 | E23: =IF($C23=1,OFFSET(E23,-CFF.NumLinha,0)+1,OFFSET(E23,-CFF.NumLinha,0)) -> 1 | F23: =IF($C23=1,0,IF($C23=2,OFFSET(F23,-CFF.NumLinha,0)+1,OFFSET(F23,-CFF.NumLinha,0))) -> 1 | G23: =IF(AND($C23<=2,$C23<>0),0,IF($C23=3,OFFSET(G23,-CFF.NumLinha,0)+1,OFFSET(G23,-CFF.NumLinha,0))) -> 0 | H23: =IF(AND($C23<=3,$C23<>0),0,IF($C23=4,OFFSET(H23,-CFF.NumLinha,0)+1,OFFSET(H23,-CFF.NumLinha,0))) -> 0 | I23: =MATCH(0,OFFSET($D23,1,$C23,ROW($A$84)-ROW($A23)),0) -> 61 | J23: =MATCH(OFFSET($D23,0,$C23)+1,OFFSET($D23,1,$C23,ROW($A$84)-ROW($A23)),0) -> 3 | K23: =ROUND(INDEX(PO!T$12:T$52,MATCH($A23,PO!$V$12:$V$52,0)),2)+10^-12 -> 2893.25 | O23: Acumulado (R$) | P23: =IF($B23,ROUND(P22*$N21,2),ROUND(SUMIF(OFFSET($B23,1,0,$D23),TRUE,OFFSET(P23,1,0,$D23))/SUMIF(OFFSET($B23,1,0,$D23),TRUE,OFFSET($K23,1,0,$D23))*$N21,2)) -> 2893.25 | Q23: 2893.25 | R23: 2893.25 | S23: 2893.25 | T23: 2893.25 | U23: 2893.25 | V23: 2893.25 | W23: 2893.25 | X23: 2893.25 | Y23: 2893.25 | Z23: 2893.25 | AA23: 2893.25 | AB23: 2893.25 | AC23: 2893.25 | AD23: 2893.25 | AE23: 2893.25 | AK23: =IF($B23,ROUND(AK22*$N21,2),ROUND(SUMIF(OFFSET($B23,1,0,$D23),TRUE,OFFSET(AK23,1,0,$D23))/SUMIF(OFFSET($B23,1,0,$D23),TRUE,OFFSET($K23,1,0,$D23))*$N21,2)) -> 0
L24: =INDEX(PO!K$12:K$52,MATCH($A26,PO!$V$12:$V$52,0)) -> 1.2. | M24: =INDEX(PO!N$12:N$52,MATCH($A26,PO!$V$12:$V$52,0)) -> ESCAVAÇÃO E REATERRO | N24: =IF(ROUND(K26,2)=0,K26,ROUND(K26,2)) -> 1501.94 | O24: Parcela (%) | P24: 0.5 | Q24: 0.5 | R24: =IF($B26,0,R25-IF(ISNUMBER(Q25),Q25,0)) -> 0 | S24: 0 | T24: 0 | U24: 0 | V24: 0 | W24: 0 | X24: 0 | Y24: 0 | Z24: 0 | AA24: 0 | AB24: 0 | AC24: 0 | AD24: 0 | AE24: 0 | AK24: =IF($B26,0,AK25-IF(ISNUMBER(AJ25),AJ25,0)) -> 0
O25: Acumulado (%) | P25: =MIN(IF($B26,P24+IF(ISNUMBER(O25),O25,0),P26/$N24),1) -> 0.5 | Q25: 1 | R25: 1 | S25: 1 | T25: 1 | U25: 1 | V25: 1 | W25: 1 | X25: 1 | Y25: 1 | Z25: 1 | AA25: 1 | AB25: 1 | AC25: 1 | AD25: 1 | AE25: 1 | AK25: =MIN(IF($B26,AK24+IF(ISNUMBER(AJ25),AJ25,0),AK26/$N24),1) -> 0
A26: =OFFSET(A26,-CFF.NumLinha,0)+1 -> 3 | B26: =$C26>=OFFSET($C26,CFF.NumLinha,0) -> TRUE | C26: =INDEX(PO!A$12:A$52,MATCH($A26,PO!$V$12:$V$52,0)) -> 2 | D26: =IF(ISERROR(J26),I26,SMALL(I26:J26,1))-1 -> 2 | E26: =IF($C26=1,OFFSET(E26,-CFF.NumLinha,0)+1,OFFSET(E26,-CFF.NumLinha,0)) -> 1 | F26: =IF($C26=1,0,IF($C26=2,OFFSET(F26,-CFF.NumLinha,0)+1,OFFSET(F26,-CFF.NumLinha,0))) -> 2 | G26: =IF(AND($C26<=2,$C26<>0),0,IF($C26=3,OFFSET(G26,-CFF.NumLinha,0)+1,OFFSET(G26,-CFF.NumLinha,0))) -> 0 | H26: =IF(AND($C26<=3,$C26<>0),0,IF($C26=4,OFFSET(H26,-CFF.NumLinha,0)+1,OFFSET(H26,-CFF.NumLinha,0))) -> 0 | I26: =MATCH(0,OFFSET($D26,1,$C26,ROW($A$84)-ROW($A26)),0) -> 58 | J26: =MATCH(OFFSET($D26,0,$C26)+1,OFFSET($D26,1,$C26,ROW($A$84)-ROW($A26)),0) -> 3 | K26: =ROUND(INDEX(PO!T$12:T$52,MATCH($A26,PO!$V$12:$V$52,0)),2)+10^-12 -> 1501.94 | O26: Acumulado (R$) | P26: =IF($B26,ROUND(P25*$N24,2),ROUND(SUMIF(OFFSET($B26,1,0,$D26),TRUE,OFFSET(P26,1,0,$D26))/SUMIF(OFFSET($B26,1,0,$D26),TRUE,OFFSET($K26,1,0,$D26))*$N24,2)) -> 750.97 | Q26: 1501.94 | R26: 1501.94 | S26: 1501.94 | T26: 1501.94 | U26: 1501.94 | V26: 1501.94 | W26: 1501.94 | X26: 1501.94 | Y26: 1501.94 | Z26: 1501.94 | AA26: 1501.94 | AB26: 1501.94 | AC26: 1501.94 | AD26: 1501.94 | AE26: 1501.94 | AK26: =IF($B26,ROUND(AK25*$N24,2),ROUND(SUMIF(OFFSET($B26,1,0,$D26),TRUE,OFFSET(AK26,1,0,$D26))/SUMIF(OFFSET($B26,1,0,$D26),TRUE,OFFSET($K26,1,0,$D26))*$N24,2)) -> 0
L27: =INDEX(PO!K$12:K$52,MATCH($A29,PO!$V$12:$V$52,0)) -> 1.3. | M27: =INDEX(PO!N$12:N$52,MATCH($A29,PO!$V$12:$V$52,0)) -> ESTRUTURA DE CONCRETO ARMADO | N27: =IF(ROUND(K29,2)=0,K29,ROUND(K29,2)) -> 167268.34 | O27: Parcela (%) | P27: 0.5 | Q27: 0.5 | R27: =IF($B29,0,R28-IF(ISNUMBER(Q28),Q28,0)) -> 0 | S27: 0 | T27: 0 | U27: 0 | V27: 0 | W27: 0 | X27: 0 | Y27: 0 | Z27: 0 | AA27: 0 | AB27: 0 | AC27: 0 | AD27: 0 | AE27: 0 | AK27: =IF($B29,0,AK28-IF(ISNUMBER(AJ28),AJ28,0)) -> 0
O28: Acumulado (%) | P28: =MIN(IF($B29,P27+IF(ISNUMBER(O28),O28,0),P29/$N27),1) -> 0.5 | Q28: 1 | R28: 1 | S28: 1 | T28: 1 | U28: 1 | V28: 1 | W28: 1 | X28: 1 | Y28: 1 | Z28: 1 | AA28: 1 | AB28: 1 | AC28: 1 | AD28: 1 | AE28: 1 | AK28: =MIN(IF($B29,AK27+IF(ISNUMBER(AJ28),AJ28,0),AK29/$N27),1) -> 0
A29: =OFFSET(A29,-CFF.NumLinha,0)+1 -> 4 | B29: =$C29>=OFFSET($C29,CFF.NumLinha,0) -> TRUE | C29: =INDEX(PO!A$12:A$52,MATCH($A29,PO!$V$12:$V$52,0)) -> 2 | D29: =IF(ISERROR(J29),I29,SMALL(I29:J29,1))-1 -> 2 | E29: =IF($C29=1,OFFSET(E29,-CFF.NumLinha,0)+1,OFFSET(E29,-CFF.NumLinha,0)) -> 1 | F29: =IF($C29=1,0,IF($C29=2,OFFSET(F29,-CFF.NumLinha,0)+1,OFFSET(F29,-CFF.NumLinha,0))) -> 3 | G29: =IF(AND($C29<=2,$C29<>0),0,IF($C29=3,OFFSET(G29,-CFF.NumLinha,0)+1,OFFSET(G29,-CFF.NumLinha,0))) -> 0 | H29: =IF(AND($C29<=3,$C29<>0),0,IF($C29=4,OFFSET(H29,-CFF.NumLinha,0)+1,OFFSET(H29,-CFF.NumLinha,0))) -> 0 | I29: =MATCH(0,OFFSET($D29,1,$C29,ROW($A$84)-ROW($A29)),0) -> 55 | J29: =MATCH(OFFSET($D29,0,$C29)+1,OFFSET($D29,1,$C29,ROW($A$84)-ROW($A29)),0) -> 3 | K29: =ROUND(INDEX(PO!T$12:T$52,MATCH($A29,PO!$V$12:$V$52,0)),2)+10^-12 -> 167268.34 | O29: Acumulado (R$) | P29: =IF($B29,ROUND(P28*$N27,2),ROUND(SUMIF(OFFSET($B29,1,0,$D29),TRUE,OFFSET(P29,1,0,$D29))/SUMIF(OFFSET($B29,1,0,$D29),TRUE,OFFSET($K29,1,0,$D29))*$N27,2)) -> 83634.17 | Q29: 167268.34 | R29: 167268.34 | S29: 167268.34 | T29: 167268.34 | U29: 167268.34 | V29: 167268.34 | W29: 167268.34 | X29: 167268.34 | Y29: 167268.34 | Z29: 167268.34 | AA29: 167268.34 | AB29: 167268.34 | AC29: 167268.34 | AD29: 167268.34 | AE29: 167268.34 | AK29: =IF($B29,ROUND(AK28*$N27,2),ROUND(SUMIF(OFFSET($B29,1,0,$D29),TRUE,OFFSET(AK29,1,0,$D29))/SUMIF(OFFSET($B29,1,0,$D29),TRUE,OFFSET($K29,1,0,$D29))*$N27,2)) -> 0
L30: =INDEX(PO!K$12:K$52,MATCH($A32,PO!$V$12:$V$52,0)) -> 1.4. | M30: =INDEX(PO!N$12:N$52,MATCH($A32,PO!$V$12:$V$52,0)) -> COBERTURA | N30: =IF(ROUND(K32,2)=0,K32,ROUND(K32,2)) -> 183663.04 | O30: Parcela (%) | P30: =IF($B32,0,P31-IF(ISNUMBER(O31),O31,0)) -> 0 | Q30: 0.5 | R30: 0.5 | S30: =IF($B32,0,S31-IF(ISNUMBER(R31),R31,0)) -> 0 | T30: 0 | U30: 0 | V30: 0 | W30: 0 | X30: 0 | Y30: 0 | Z30: 0 | AA30: 0 | AB30: 0 | AC30: 0 | AD30: 0 | AE30: 0 | AK30: =IF($B32,0,AK31-IF(ISNUMBER(AJ31),AJ31,0)) -> 0
O31: Acumulado (%) | P31: =MIN(IF($B32,P30+IF(ISNUMBER(O31),O31,0),P32/$N30),1) -> 0 | Q31: 0.5 | R31: 1 | S31: 1 | T31: 1 | U31: 1 | V31: 1 | W31: 1 | X31: 1 | Y31: 1 | Z31: 1 | AA31: 1 | AB31: 1 | AC31: 1 | AD31: 1 | AE31: 1 | AK31: =MIN(IF($B32,AK30+IF(ISNUMBER(AJ31),AJ31,0),AK32/$N30),1) -> 0
A32: =OFFSET(A32,-CFF.NumLinha,0)+1 -> 5 | B32: =$C32>=OFFSET($C32,CFF.NumLinha,0) -> TRUE | C32: =INDEX(PO!A$12:A$52,MATCH($A32,PO!$V$12:$V$52,0)) -> 2 | D32: =IF(ISERROR(J32),I32,SMALL(I32:J32,1))-1 -> 2 | E32: =IF($C32=1,OFFSET(E32,-CFF.NumLinha,0)+1,OFFSET(E32,-CFF.NumLinha,0)) -> 1 | F32: =IF($C32=1,0,IF($C32=2,OFFSET(F32,-CFF.NumLinha,0)+1,OFFSET(F32,-CFF.NumLinha,0))) -> 4 | G32: =IF(AND($C32<=2,$C32<>0),0,IF($C32=3,OFFSET(G32,-CFF.NumLinha,0)+1,OFFSET(G32,-CFF.NumLinha,0))) -> 0 | H32: =IF(AND($C32<=3,$C32<>0),0,IF($C32=4,OFFSET(H32,-CFF.NumLinha,0)+1,OFFSET(H32,-CFF.NumLinha,0))) -> 0 | I32: =MATCH(0,OFFSET($D32,1,$C32,ROW($A$84)-ROW($A32)),0) -> 52 | J32: =MATCH(OFFSET($D32,0,$C32)+1,OFFSET($D32,1,$C32,ROW($A$84)-ROW($A32)),0) -> 3 | K32: =ROUND(INDEX(PO!T$12:T$52,MATCH($A32,PO!$V$12:$V$52,0)),2)+10^-12 -> 183663.04 | O32: Acumulado (R$) | P32: =IF($B32,ROUND(P31*$N30,2),ROUND(SUMIF(OFFSET($B32,1,0,$D32),TRUE,OFFSET(P32,1,0,$D32))/SUMIF(OFFSET($B32,1,0,$D32),TRUE,OFFSET($K32,1,0,$D32))*$N30,2)) -> 0 | Q32: 91831.52 | R32: 183663.04 | S32: 183663.04 | T32: 183663.04 | U32: 183663.04 | V32: 183663.04 | W32: 183663.04 | X32: 183663.04 | Y32: 183663.04 | Z32: 183663.04 | AA32: 183663.04 | AB32: 183663.04 | AC32: 183663.04 | AD32: 183663.04 | AE32: 183663.04 | AK32: =IF($B32,ROUND(AK31*$N30,2),ROUND(SUMIF(OFFSET($B32,1,0,$D32),TRUE,OFFSET(AK32,1,0,$D32))/SUMIF(OFFSET($B32,1,0,$D32),TRUE,OFFSET($K32,1,0,$D32))*$N30,2)) -> 0
L33: =INDEX(PO!K$12:K$52,MATCH($A35,PO!$V$12:$V$52,0)) -> 1.5. | M33: =INDEX(PO!N$12:N$52,MATCH($A35,PO!$V$12:$V$52,0)) -> PAVIMENTAÇÃO | N33: =IF(ROUND(K35,2)=0,K35,ROUND(K35,2)) -> 83084 | O33: Parcela (%) | P33: =IF($B35,0,P34-IF(ISNUMBER(O34),O34,0)) -> 0 | Q33: =IF($B35,0,Q34-IF(ISNUMBER(P34),P34,0)) -> 0 | R33: 0.5 | S33: 0.5 | T33: 0.25 | U33: =IF($B35,0,U34-IF(ISNUMBER(T34),T34,0)) -> 0 | V33: 0 | W33: 0 | X33: 0 | Y33: 0 | Z33: 0 | AA33: 0 | AB33: 0 | AC33: 0 | AD33: 0 | AE33: 0 | AK33: =IF($B35,0,AK34-IF(ISNUMBER(AJ34),AJ34,0)) -> 0
O34: Acumulado (%) | P34: =MIN(IF($B35,P33+IF(ISNUMBER(O34),O34,0),P35/$N33),1) -> 0 | Q34: 0 | R34: 0.5 | S34: 1 | T34: 1 | U34: 1 | V34: 1 | W34: 1 | X34: 1 | Y34: 1 | Z34: 1 | AA34: 1 | AB34: 1 | AC34: 1 | AD34: 1 | AE34: 1 | AK34: =MIN(IF($B35,AK33+IF(ISNUMBER(AJ34),AJ34,0),AK35/$N33),1) -> 0
A35: =OFFSET(A35,-CFF.NumLinha,0)+1 -> 6 | B35: =$C35>=OFFSET($C35,CFF.NumLinha,0) -> TRUE | C35: =INDEX(PO!A$12:A$52,MATCH($A35,PO!$V$12:$V$52,0)) -> 2 | D35: =IF(ISERROR(J35),I35,SMALL(I35:J35,1))-1 -> 2 | E35: =IF($C35=1,OFFSET(E35,-CFF.NumLinha,0)+1,OFFSET(E35,-CFF.NumLinha,0)) -> 1 | F35: =IF($C35=1,0,IF($C35=2,OFFSET(F35,-CFF.NumLinha,0)+1,OFFSET(F35,-CFF.NumLinha,0))) -> 5 | G35: =IF(AND($C35<=2,$C35<>0),0,IF($C35=3,OFFSET(G35,-CFF.NumLinha,0)+1,OFFSET(G35,-CFF.NumLinha,0))) -> 0 | H35: =IF(AND($C35<=3,$C35<>0),0,IF($C35=4,OFFSET(H35,-CFF.NumLinha,0)+1,OFFSET(H35,-CFF.NumLinha,0))) -> 0 | I35: =MATCH(0,OFFSET($D35,1,$C35,ROW($A$84)-ROW($A35)),0) -> 49 | J35: =MATCH(OFFSET($D35,0,$C35)+1,OFFSET($D35,1,$C35,ROW($A$84)-ROW($A35)),0) -> 3 | K35: =ROUND(INDEX(PO!T$12:T$52,MATCH($A35,PO!$V$12:$V$52,0)),2)+10^-12 -> 83084 | O35: Acumulado (R$) | P35: =IF($B35,ROUND(P34*$N33,2),ROUND(SUMIF(OFFSET($B35,1,0,$D35),TRUE,OFFSET(P35,1,0,$D35))/SUMIF(OFFSET($B35,1,0,$D35),TRUE,OFFSET($K35,1,0,$D35))*$N33,2)) -> 0 | Q35: 0 | R35: 41542 | S35: 83084 | T35: 83084 | U35: 83084 | V35: 83084 | W35: 83084 | X35: 83084 | Y35: 83084 | Z35: 83084 | AA35: 83084 | AB35: 83084 | AC35: 83084 | AD35: 83084 | AE35: 83084 | AK35: =IF($B35,ROUND(AK34*$N33,2),ROUND(SUMIF(OFFSET($B35,1,0,$D35),TRUE,OFFSET(AK35,1,0,$D35))/SUMIF(OFFSET($B35,1,0,$D35),TRUE,OFFSET($K35,1,0,$D35))*$N33,2)) -> 0
L36: =INDEX(PO!K$12:K$52,MATCH($A38,PO!$V$12:$V$52,0)) -> 1.6. | M36: =INDEX(PO!N$12:N$52,MATCH($A38,PO!$V$12:$V$52,0)) -> PINTURA | N36: =IF(ROUND(K38,2)=0,K38,ROUND(K38,2)) -> 26151.25 | O36: Parcela (%) | P36: 0 | Q36: 0 | R36: =IF($B38,0,R37-IF(ISNUMBER(Q37),Q37,0)) -> 0 | S36: 0.5 | T36: 0.5 | U36: =IF($B38,0,U37-IF(ISNUMBER(T37),T37,0)) -> 0 | V36: 0 | W36: 0 | X36: 0 | Y36: 0 | Z36: 0 | AA36: 0 | AB36: 0 | AC36: 0 | AD36: 0 | AE36: 0 | AK36: =IF($B38,0,AK37-IF(ISNUMBER(AJ37),AJ37,0)) -> 0
O37: Acumulado (%) | P37: =MIN(IF($B38,P36+IF(ISNUMBER(O37),O37,0),P38/$N36),1) -> 0 | Q37: 0 | R37: 0 | S37: 0.5 | T37: 1 | U37: 1 | V37: 1 | W37: 1 | X37: 1 | Y37: 1 | Z37: 1 | AA37: 1 | AB37: 1 | AC37: 1 | AD37: 1 | AE37: 1 | AK37: =MIN(IF($B38,AK36+IF(ISNUMBER(AJ37),AJ37,0),AK38/$N36),1) -> 0
A38: =OFFSET(A38,-CFF.NumLinha,0)+1 -> 7 | B38: =$C38>=OFFSET($C38,CFF.NumLinha,0) -> TRUE | C38: =INDEX(PO!A$12:A$52,MATCH($A38,PO!$V$12:$V$52,0)) -> 2 | D38: =IF(ISERROR(J38),I38,SMALL(I38:J38,1))-1 -> 2 | E38: =IF($C38=1,OFFSET(E38,-CFF.NumLinha,0)+1,OFFSET(E38,-CFF.NumLinha,0)) -> 1 | F38: =IF($C38=1,0,IF($C38=2,OFFSET(F38,-CFF.NumLinha,0)+1,OFFSET(F38,-CFF.NumLinha,0))) -> 6 | G38: =IF(AND($C38<=2,$C38<>0),0,IF($C38=3,OFFSET(G38,-CFF.NumLinha,0)+1,OFFSET(G38,-CFF.NumLinha,0))) -> 0 | H38: =IF(AND($C38<=3,$C38<>0),0,IF($C38=4,OFFSET(H38,-CFF.NumLinha,0)+1,OFFSET(H38,-CFF.NumLinha,0))) -> 0 | I38: =MATCH(0,OFFSET($D38,1,$C38,ROW($A$84)-ROW($A38)),0) -> 46 | J38: =MATCH(OFFSET($D38,0,$C38)+1,OFFSET($D38,1,$C38,ROW($A$84)-ROW($A38)),0) -> 3 | K38: =ROUND(INDEX(PO!T$12:T$52,MATCH($A38,PO!$V$12:$V$52,0)),2)+10^-12 -> 26151.25 | O38: Acumulado (R$) | P38: =IF($B38,ROUND(P37*$N36,2),ROUND(SUMIF(OFFSET($B38,1,0,$D38),TRUE,OFFSET(P38,1,0,$D38))/SUMIF(OFFSET($B38,1,0,$D38),TRUE,OFFSET($K38,1,0,$D38))*$N36,2)) -> 0 | Q38: 0 | R38: 0 | S38: 13075.63 | T38: 26151.25 | U38: 26151.25 | V38: 26151.25 | W38: 26151.25 | X38: 26151.25 | Y38: 26151.25 | Z38: 26151.25 | AA38: 26151.25 | AB38: 26151.25 | AC38: 26151.25 | AD38: 26151.25 | AE38: 26151.25 | AK38: =IF($B38,ROUND(AK37*$N36,2),ROUND(SUMIF(OFFSET($B38,1,0,$D38),TRUE,OFFSET(AK38,1,0,$D38))/SUMIF(OFFSET($B38,1,0,$D38),TRUE,OFFSET($K38,1,0,$D38))*$N36,2)) -> 0
L39: =INDEX(PO!K$12:K$52,MATCH($A41,PO!$V$12:$V$52,0)) -> 1.7. | M39: =INDEX(PO!N$12:N$52,MATCH($A41,PO!$V$12:$V$52,0)) -> INSTALAÇÕES PLUVIAIS | N39: =IF(ROUND(K41,2)=0,K41,ROUND(K41,2)) -> 9538.29 | O39: Parcela (%) | P39: 0 | Q39: 0 | R39: =IF($B41,0,R40-IF(ISNUMBER(Q40),Q40,0)) -> 0 | S39: 0.5 | T39: 0.5 | U39: =IF($B41,0,U40-IF(ISNUMBER(T40),T40,0)) -> 0 | V39: 0 | W39: 0 | X39: 0 | Y39: 0 | Z39: 0 | AA39: 0 | AB39: 0 | AC39: 0 | AD39: 0 | AE39: 0 | AK39: =IF($B41,0,AK40-IF(ISNUMBER(AJ40),AJ40,0)) -> 0
O40: Acumulado (%) | P40: =MIN(IF($B41,P39+IF(ISNUMBER(O40),O40,0),P41/$N39),1) -> 0 | Q40: 0 | R40: 0 | S40: 0.5 | T40: 1 | U40: 1 | V40: 1 | W40: 1 | X40: 1 | Y40: 1 | Z40: 1 | AA40: 1 | AB40: 1 | AC40: 1 | AD40: 1 | AE40: 1 | AK40: =MIN(IF($B41,AK39+IF(ISNUMBER(AJ40),AJ40,0),AK41/$N39),1) -> 0
A41: =OFFSET(A41,-CFF.NumLinha,0)+1 -> 8 | B41: =$C41>=OFFSET($C41,CFF.NumLinha,0) -> TRUE | C41: =INDEX(PO!A$12:A$52,MATCH($A41,PO!$V$12:$V$52,0)) -> 2 | D41: =IF(ISERROR(J41),I41,SMALL(I41:J41,1))-1 -> 2 | E41: =IF($C41=1,OFFSET(E41,-CFF.NumLinha,0)+1,OFFSET(E41,-CFF.NumLinha,0)) -> 1 | F41: =IF($C41=1,0,IF($C41=2,OFFSET(F41,-CFF.NumLinha,0)+1,OFFSET(F41,-CFF.NumLinha,0))) -> 7 | G41: =IF(AND($C41<=2,$C41<>0),0,IF($C41=3,OFFSET(G41,-CFF.NumLinha,0)+1,OFFSET(G41,-CFF.NumLinha,0))) -> 0 | H41: =IF(AND($C41<=3,$C41<>0),0,IF($C41=4,OFFSET(H41,-CFF.NumLinha,0)+1,OFFSET(H41,-CFF.NumLinha,0))) -> 0 | I41: =MATCH(0,OFFSET($D41,1,$C41,ROW($A$84)-ROW($A41)),0) -> 43 | J41: =MATCH(OFFSET($D41,0,$C41)+1,OFFSET($D41,1,$C41,ROW($A$84)-ROW($A41)),0) -> 3 | K41: =ROUND(INDEX(PO!T$12:T$52,MATCH($A41,PO!$V$12:$V$52,0)),2)+10^-12 -> 9538.29 | O41: Acumulado (R$) | P41: =IF($B41,ROUND(P40*$N39,2),ROUND(SUMIF(OFFSET($B41,1,0,$D41),TRUE,OFFSET(P41,1,0,$D41))/SUMIF(OFFSET($B41,1,0,$D41),TRUE,OFFSET($K41,1,0,$D41))*$N39,2)) -> 0 | Q41: 0 | R41: 0 | S41: 4769.15 | T41: 9538.29 | U41: 9538.29 | V41: 9538.29 | W41: 9538.29 | X41: 9538.29 | Y41: 9538.29 | Z41: 9538.29 | AA41: 9538.29 | AB41: 9538.29 | AC41: 9538.29 | AD41: 9538.29 | AE41: 9538.29 | AK41: =IF($B41,ROUND(AK40*$N39,2),ROUND(SUMIF(OFFSET($B41,1,0,$D41),TRUE,OFFSET(AK41,1,0,$D41))/SUMIF(OFFSET($B41,1,0,$D41),TRUE,OFFSET($K41,1,0,$D41))*$N39,2)) -> 0
L42: =INDEX(PO!K$12:K$52,MATCH($A44,PO!$V$12:$V$52,0)) -> 1.8. | M42: =INDEX(PO!N$12:N$52,MATCH($A44,PO!$V$12:$V$52,0)) -> ENTORNO | N42: =IF(ROUND(K44,2)=0,K44,ROUND(K44,2)) -> 3437.51 | O42: Parcela (%) | P42: 0 | Q42: 0 | R42: =IF($B44,0,R43-IF(ISNUMBER(Q43),Q43,0)) -> 0 | S42: =IF($B44,0,S43-IF(ISNUMBER(R43),R43,0)) -> 0 | T42: 0.5 | U42: 0.5 | V42: =IF($B44,0,V43-IF(ISNUMBER(U43),U43,0)) -> 0 | W42: 0 | X42: 0 | Y42: 0 | Z42: 0 | AA42: 0 | AB42: 0 | AC42: 0 | AD42: 0 | AE42: 0 | AK42: =IF($B44,0,AK43-IF(ISNUMBER(AJ43),AJ43,0)) -> 0
O43: Acumulado (%) | P43: =MIN(IF($B44,P42+IF(ISNUMBER(O43),O43,0),P44/$N42),1) -> 0 | Q43: 0 | R43: 0 | S43: 0 | T43: 0.5 | U43: 1 | V43: 1 | W43: 1 | X43: 1 | Y43: 1 | Z43: 1 | AA43: 1 | AB43: 1 | AC43: 1 | AD43: 1 | AE43: 1 | AK43: =MIN(IF($B44,AK42+IF(ISNUMBER(AJ43),AJ43,0),AK44/$N42),1) -> 0
A44: =OFFSET(A44,-CFF.NumLinha,0)+1 -> 9 | B44: =$C44>=OFFSET($C44,CFF.NumLinha,0) -> TRUE | C44: =INDEX(PO!A$12:A$52,MATCH($A44,PO!$V$12:$V$52,0)) -> 2 | D44: =IF(ISERROR(J44),I44,SMALL(I44:J44,1))-1 -> 2 | E44: =IF($C44=1,OFFSET(E44,-CFF.NumLinha,0)+1,OFFSET(E44,-CFF.NumLinha,0)) -> 1 | F44: =IF($C44=1,0,IF($C44=2,OFFSET(F44,-CFF.NumLinha,0)+1,OFFSET(F44,-CFF.NumLinha,0))) -> 8 | G44: =IF(AND($C44<=2,$C44<>0),0,IF($C44=3,OFFSET(G44,-CFF.NumLinha,0)+1,OFFSET(G44,-CFF.NumLinha,0))) -> 0 | H44: =IF(AND($C44<=3,$C44<>0),0,IF($C44=4,OFFSET(H44,-CFF.NumLinha,0)+1,OFFSET(H44,-CFF.NumLinha,0))) -> 0 | I44: =MATCH(0,OFFSET($D44,1,$C44,ROW($A$84)-ROW($A44)),0) -> 40 | J44: =MATCH(OFFSET($D44,0,$C44)+1,OFFSET($D44,1,$C44,ROW($A$84)-ROW($A44)),0) -> 3 | K44: =ROUND(INDEX(PO!T$12:T$52,MATCH($A44,PO!$V$12:$V$52,0)),2)+10^-12 -> 3437.51 | O44: Acumulado (R$) | P44: =IF($B44,ROUND(P43*$N42,2),ROUND(SUMIF(OFFSET($B44,1,0,$D44),TRUE,OFFSET(P44,1,0,$D44))/SUMIF(OFFSET($B44,1,0,$D44),TRUE,OFFSET($K44,1,0,$D44))*$N42,2)) -> 0 | Q44: 0 | R44: 0 | S44: 0 | T44: 1718.76 | U44: 3437.51 | V44: 3437.51 | W44: 3437.51 | X44: 3437.51 | Y44: 3437.51 | Z44: 3437.51 | AA44: 3437.51 | AB44: 3437.51 | AC44: 3437.51 | AD44: 3437.51 | AE44: 3437.51 | AK44: =IF($B44,ROUND(AK43*$N42,2),ROUND(SUMIF(OFFSET($B44,1,0,$D44),TRUE,OFFSET(AK44,1,0,$D44))/SUMIF(OFFSET($B44,1,0,$D44),TRUE,OFFSET($K44,1,0,$D44))*$N42,2)) -> 0
L45: =INDEX(PO!K$12:K$52,MATCH($A47,PO!$V$12:$V$52,0)) -> 1.9. | M45: =INDEX(PO!N$12:N$52,MATCH($A47,PO!$V$12:$V$52,0)) -> SERVIÇOS FINAIS | N45: =IF(ROUND(K47,2)=0,K47,ROUND(K47,2)) -> 5747.06 | O45: Parcela (%) | P45: =IF($B47,0,P46-IF(ISNUMBER(O46),O46,0)) ->  | Q45: 0 | R45: =IF($B47,0,R46-IF(ISNUMBER(Q46),Q46,0)) ->  | S45: =IF($B47,0,S46-IF(ISNUMBER(R46),R46,0)) ->  | T45: =IF($B47,0,T46-IF(ISNUMBER(S46),S46,0)) ->  | U45: =IF($B47,0,U46-IF(ISNUMBER(T46),T46,0)) ->  | V45: 0.5 | W45: 0.5 | X45: =IF($B47,0,X46-IF(ISNUMBER(W46),W46,0)) ->  | AK45: =IF($B47,0,AK46-IF(ISNUMBER(AJ46),AJ46,0)) -> 
O46: Acumulado (%) | P46: =MIN(IF($B47,P45+IF(ISNUMBER(O46),O46,0),P47/$N45),1) ->  | AK46: =MIN(IF($B47,AK45+IF(ISNUMBER(AJ46),AJ46,0),AK47/$N45),1) -> 
A47: =OFFSET(A47,-CFF.NumLinha,0)+1 -> 10 | B47: =$C47>=OFFSET($C47,CFF.NumLinha,0) ->  | C47: =INDEX(PO!A$12:A$52,MATCH($A47,PO!$V$12:$V$52,0)) -> 2 | D47: =IF(ISERROR(J47),I47,SMALL(I47:J47,1))-1 -> 36 | E47: =IF($C47=1,OFFSET(E47,-CFF.NumLinha,0)+1,OFFSET(E47,-CFF.NumLinha,0)) -> 1 | F47: =IF($C47=1,0,IF($C47=2,OFFSET(F47,-CFF.NumLinha,0)+1,OFFSET(F47,-CFF.NumLinha,0))) -> 9 | G47: =IF(AND($C47<=2,$C47<>0),0,IF($C47=3,OFFSET(G47,-CFF.NumLinha,0)+1,OFFSET(G47,-CFF.NumLinha,0))) -> 0 | H47: =IF(AND($C47<=3,$C47<>0),0,IF($C47=4,OFFSET(H47,-CFF.NumLinha,0)+1,OFFSET(H47,-CFF.NumLinha,0))) -> 0 | I47: =MATCH(0,OFFSET($D47,1,$C47,ROW($A$84)-ROW($A47)),0) -> 37 | J47: =MATCH(OFFSET($D47,0,$C47)+1,OFFSET($D47,1,$C47,ROW($A$84)-ROW($A47)),0) ->  | K47: =ROUND(INDEX(PO!T$12:T$52,MATCH($A47,PO!$V$12:$V$52,0)),2)+10^-12 -> 5747.06 | O47: Acumulado (R$) | P47: =IF($B47,ROUND(P46*$N45,2),ROUND(SUMIF(OFFSET($B47,1,0,$D47),TRUE,OFFSET(P47,1,0,$D47))/SUMIF(OFFSET($B47,1,0,$D47),TRUE,OFFSET($K47,1,0,$D47))*$N45,2)) ->  | AK47: =IF($B47,ROUND(AK46*$N45,2),ROUND(SUMIF(OFFSET($B47,1,0,$D47),TRUE,OFFSET(AK47,1,0,$D47))/SUMIF(OFFSET($B47,1,0,$D47),TRUE,OFFSET($K47,1,0,$D47))*$N45,2)) -> 
L48: =INDEX(PO!K$12:K$52,MATCH($A50,PO!$V$12:$V$52,0)) ->  | M48: =INDEX(PO!N$12:N$52,MATCH($A50,PO!$V$12:$V$52,0)) ->  | N48: =IF(ROUND(K50,2)=0,K50,ROUND(K50,2)) ->  | O48: Parcela (%) | P48: =IF($B50,0,P49-IF(ISNUMBER(O49),O49,0)) ->  | W48: 0.5 | X48: 0.5 | Y48: =IF($B50,0,Y49-IF(ISNUMBER(X49),X49,0)) ->  | AK48: =IF($B50,0,AK49-IF(ISNUMBER(AJ49),AJ49,0)) -> 
O49: Acumulado (%) | P49: =MIN(IF($B50,P48+IF(ISNUMBER(O49),O49,0),P50/$N48),1) ->  | AK49: =MIN(IF($B50,AK48+IF(ISNUMBER(AJ49),AJ49,0),AK50/$N48),1) -> 
A50: =OFFSET(A50,-CFF.NumLinha,0)+1 -> 11 | B50: =$C50>=OFFSET($C50,CFF.NumLinha,0) ->  | C50: =INDEX(PO!A$12:A$52,MATCH($A50,PO!$V$12:$V$52,0)) ->  | D50: =IF(ISERROR(J50),I50,SMALL(I50:J50,1))-1 ->  | E50: =IF($C50=1,OFFSET(E50,-CFF.NumLinha,0)+1,OFFSET(E50,-CFF.NumLinha,0)) ->  | F50: =IF($C50=1,0,IF($C50=2,OFFSET(F50,-CFF.NumLinha,0)+1,OFFSET(F50,-CFF.NumLinha,0))) ->  | G50: =IF(AND($C50<=2,$C50<>0),0,IF($C50=3,OFFSET(G50,-CFF.NumLinha,0)+1,OFFSET(G50,-CFF.NumLinha,0))) ->  | H50: =IF(AND($C50<=3,$C50<>0),0,IF($C50=4,OFFSET(H50,-CFF.NumLinha,0)+1,OFFSET(H50,-CFF.NumLinha,0))) ->  | I50: =MATCH(0,OFFSET($D50,1,$C50,ROW($A$84)-ROW($A50)),0) ->  | J50: =MATCH(OFFSET($D50,0,$C50)+1,OFFSET($D50,1,$C50,ROW($A$84)-ROW($A50)),0) ->  | K50: =ROUND(INDEX(PO!T$12:T$52,MATCH($A50,PO!$V$12:$V$52,0)),2)+10^-12 ->  | O50: Acumulado (R$) | P50: =IF($B50,ROUND(P49*$N48,2),ROUND(SUMIF(OFFSET($B50,1,0,$D50),TRUE,OFFSET(P50,1,0,$D50))/SUMIF(OFFSET($B50,1,0,$D50),TRUE,OFFSET($K50,1,0,$D50))*$N48,2)) ->  | X50: =IF($B50,ROUND(X49*$N48,2),ROUND(SUMIF(OFFSET($B50,1,0,$D50),TRUE,OFFSET(X50,1,0,$D50))/SUMIF(OFFSET($B50,1,0,$D50),TRUE,OFFSET($K50,1,0,$D50))*$N48,2)) ->  | AK50: =IF($B50,ROUND(AK49*$N48,2),ROUND(SUMIF(OFFSET($B50,1,0,$D50),TRUE,OFFSET(AK50,1,0,$D50))/SUMIF(OFFSET($B50,1,0,$D50),TRUE,OFFSET($K50,1,0,$D50))*$N48,2)) -> 
L51: =INDEX(PO!K$12:K$52,MATCH($A53,PO!$V$12:$V$52,0)) ->  | M51: =INDEX(PO!N$12:N$52,MATCH($A53,PO!$V$12:$V$52,0)) ->  | N51: =IF(ROUND(K53,2)=0,K53,ROUND(K53,2)) ->  | O51: Parcela (%) | P51: =IF($B53,0,P52-IF(ISNUMBER(O52),O52,0)) ->  | AK51: =IF($B53,0,AK52-IF(ISNUMBER(AJ52),AJ52,0)) -> 
O52: Acumulado (%) | P52: =MIN(IF($B53,P51+IF(ISNUMBER(O52),O52,0),P53/$N51),1) ->  | AK52: =MIN(IF($B53,AK51+IF(ISNUMBER(AJ52),AJ52,0),AK53/$N51),1) -> 
A53: =OFFSET(A53,-CFF.NumLinha,0)+1 -> 12 | B53: =$C53>=OFFSET($C53,CFF.NumLinha,0) ->  | C53: =INDEX(PO!A$12:A$52,MATCH($A53,PO!$V$12:$V$52,0)) ->  | D53: =IF(ISERROR(J53),I53,SMALL(I53:J53,1))-1 ->  | E53: =IF($C53=1,OFFSET(E53,-CFF.NumLinha,0)+1,OFFSET(E53,-CFF.NumLinha,0)) ->  | F53: =IF($C53=1,0,IF($C53=2,OFFSET(F53,-CFF.NumLinha,0)+1,OFFSET(F53,-CFF.NumLinha,0))) ->  | G53: =IF(AND($C53<=2,$C53<>0),0,IF($C53=3,OFFSET(G53,-CFF.NumLinha,0)+1,OFFSET(G53,-CFF.NumLinha,0))) ->  | H53: =IF(AND($C53<=3,$C53<>0),0,IF($C53=4,OFFSET(H53,-CFF.NumLinha,0)+1,OFFSET(H53,-CFF.NumLinha,0))) ->  | I53: =MATCH(0,OFFSET($D53,1,$C53,ROW($A$84)-ROW($A53)),0) ->  | J53: =MATCH(OFFSET($D53,0,$C53)+1,OFFSET($D53,1,$C53,ROW($A$84)-ROW($A53)),0) ->  | K53: =ROUND(INDEX(PO!T$12:T$52,MATCH($A53,PO!$V$12:$V$52,0)),2)+10^-12 ->  | O53: Acumulado (R$) | P53: =IF($B53,ROUND(P52*$N51,2),ROUND(SUMIF(OFFSET($B53,1,0,$D53),TRUE,OFFSET(P53,1,0,$D53))/SUMIF(OFFSET($B53,1,0,$D53),TRUE,OFFSET($K53,1,0,$D53))*$N51,2)) ->  | X53: =IF($B53,ROUND(X52*$N51,2),ROUND(SUMIF(OFFSET($B53,1,0,$D53),TRUE,OFFSET(X53,1,0,$D53))/SUMIF(OFFSET($B53,1,0,$D53),TRUE,OFFSET($K53,1,0,$D53))*$N51,2)) ->  | AK53: =IF($B53,ROUND(AK52*$N51,2),ROUND(SUMIF(OFFSET($B53,1,0,$D53),TRUE,OFFSET(AK53,1,0,$D53))/SUMIF(OFFSET($B53,1,0,$D53),TRUE,OFFSET($K53,1,0,$D53))*$N51,2)) -> 
L54: =INDEX(PO!K$12:K$52,MATCH($A56,PO!$V$12:$V$52,0)) ->  | M54: =INDEX(PO!N$12:N$52,MATCH($A56,PO!$V$12:$V$52,0)) ->  | N54: =IF(ROUND(K56,2)=0,K56,ROUND(K56,2)) ->  | O54: Parcela (%) | P54: =IF($B56,0,P55-IF(ISNUMBER(O55),O55,0)) ->  | AK54: =IF($B56,0,AK55-IF(ISNUMBER(AJ55),AJ55,0)) -> 
O55: Acumulado (%) | P55: =MIN(IF($B56,P54+IF(ISNUMBER(O55),O55,0),P56/$N54),1) ->  | AK55: =MIN(IF($B56,AK54+IF(ISNUMBER(AJ55),AJ55,0),AK56/$N54),1) -> 
A56: =OFFSET(A56,-CFF.NumLinha,0)+1 -> 13 | B56: =$C56>=OFFSET($C56,CFF.NumLinha,0) ->  | C56: =INDEX(PO!A$12:A$52,MATCH($A56,PO!$V$12:$V$52,0)) ->  | D56: =IF(ISERROR(J56),I56,SMALL(I56:J56,1))-1 ->  | E56: =IF($C56=1,OFFSET(E56,-CFF.NumLinha,0)+1,OFFSET(E56,-CFF.NumLinha,0)) ->  | F56: =IF($C56=1,0,IF($C56=2,OFFSET(F56,-CFF.NumLinha,0)+1,OFFSET(F56,-CFF.NumLinha,0))) ->  | G56: =IF(AND($C56<=2,$C56<>0),0,IF($C56=3,OFFSET(G56,-CFF.NumLinha,0)+1,OFFSET(G56,-CFF.NumLinha,0))) ->  | H56: =IF(AND($C56<=3,$C56<>0),0,IF($C56=4,OFFSET(H56,-CFF.NumLinha,0)+1,OFFSET(H56,-CFF.NumLinha,0))) ->  | I56: =MATCH(0,OFFSET($D56,1,$C56,ROW($A$84)-ROW($A56)),0) ->  | J56: =MATCH(OFFSET($D56,0,$C56)+1,OFFSET($D56,1,$C56,ROW($A$84)-ROW($A56)),0) ->  | K56: =ROUND(INDEX(PO!T$12:T$52,MATCH($A56,PO!$V$12:$V$52,0)),2)+10^-12 ->  | O56: Acumulado (R$) | P56: =IF($B56,ROUND(P55*$N54,2),ROUND(SUMIF(OFFSET($B56,1,0,$D56),TRUE,OFFSET(P56,1,0,$D56))/SUMIF(OFFSET($B56,1,0,$D56),TRUE,OFFSET($K56,1,0,$D56))*$N54,2)) ->  | X56: =IF($B56,ROUND(X55*$N54,2),ROUND(SUMIF(OFFSET($B56,1,0,$D56),TRUE,OFFSET(X56,1,0,$D56))/SUMIF(OFFSET($B56,1,0,$D56),TRUE,OFFSET($K56,1,0,$D56))*$N54,2)) ->  | AK56: =IF($B56,ROUND(AK55*$N54,2),ROUND(SUMIF(OFFSET($B56,1,0,$D56),TRUE,OFFSET(AK56,1,0,$D56))/SUMIF(OFFSET($B56,1,0,$D56),TRUE,OFFSET($K56,1,0,$D56))*$N54,2)) -> 
L57: =INDEX(PO!K$12:K$52,MATCH($A59,PO!$V$12:$V$52,0)) ->  | M57: =INDEX(PO!N$12:N$52,MATCH($A59,PO!$V$12:$V$52,0)) ->  | N57: =IF(ROUND(K59,2)=0,K59,ROUND(K59,2)) ->  | O57: Parcela (%) | P57: =IF($B59,0,P58-IF(ISNUMBER(O58),O58,0)) ->  | AK57: =IF($B59,0,AK58-IF(ISNUMBER(AJ58),AJ58,0)) -> 
O58: Acumulado (%) | P58: =MIN(IF($B59,P57+IF(ISNUMBER(O58),O58,0),P59/$N57),1) ->  | AK58: =MIN(IF($B59,AK57+IF(ISNUMBER(AJ58),AJ58,0),AK59/$N57),1) -> 
A59: =OFFSET(A59,-CFF.NumLinha,0)+1 -> 14 | B59: =$C59>=OFFSET($C59,CFF.NumLinha,0) ->  | C59: =INDEX(PO!A$12:A$52,MATCH($A59,PO!$V$12:$V$52,0)) ->  | D59: =IF(ISERROR(J59),I59,SMALL(I59:J59,1))-1 ->  | E59: =IF($C59=1,OFFSET(E59,-CFF.NumLinha,0)+1,OFFSET(E59,-CFF.NumLinha,0)) ->  | F59: =IF($C59=1,0,IF($C59=2,OFFSET(F59,-CFF.NumLinha,0)+1,OFFSET(F59,-CFF.NumLinha,0))) ->  | G59: =IF(AND($C59<=2,$C59<>0),0,IF($C59=3,OFFSET(G59,-CFF.NumLinha,0)+1,OFFSET(G59,-CFF.NumLinha,0))) ->  | H59: =IF(AND($C59<=3,$C59<>0),0,IF($C59=4,OFFSET(H59,-CFF.NumLinha,0)+1,OFFSET(H59,-CFF.NumLinha,0))) ->  | I59: =MATCH(0,OFFSET($D59,1,$C59,ROW($A$84)-ROW($A59)),0) ->  | J59: =MATCH(OFFSET($D59,0,$C59)+1,OFFSET($D59,1,$C59,ROW($A$84)-ROW($A59)),0) ->  | K59: =ROUND(INDEX(PO!T$12:T$52,MATCH($A59,PO!$V$12:$V$52,0)),2)+10^-12 ->  | O59: Acumulado (R$) | P59: =IF($B59,ROUND(P58*$N57,2),ROUND(SUMIF(OFFSET($B59,1,0,$D59),TRUE,OFFSET(P59,1,0,$D59))/SUMIF(OFFSET($B59,1,0,$D59),TRUE,OFFSET($K59,1,0,$D59))*$N57,2)) ->  | X59: =IF($B59,ROUND(X58*$N57,2),ROUND(SUMIF(OFFSET($B59,1,0,$D59),TRUE,OFFSET(X59,1,0,$D59))/SUMIF(OFFSET($B59,1,0,$D59),TRUE,OFFSET($K59,1,0,$D59))*$N57,2)) ->  | AK59: =IF($B59,ROUND(AK58*$N57,2),ROUND(SUMIF(OFFSET($B59,1,0,$D59),TRUE,OFFSET(AK59,1,0,$D59))/SUMIF(OFFSET($B59,1,0,$D59),TRUE,OFFSET($K59,1,0,$D59))*$N57,2)) -> 
L60: =INDEX(PO!K$12:K$52,MATCH($A62,PO!$V$12:$V$52,0)) ->  | M60: =INDEX(PO!N$12:N$52,MATCH($A62,PO!$V$12:$V$52,0)) ->  | N60: =IF(ROUND(K62,2)=0,K62,ROUND(K62,2)) ->  | O60: Parcela (%) | P60: =IF($B62,0,P61-IF(ISNUMBER(O61),O61,0)) ->  | AK60: =IF($B62,0,AK61-IF(ISNUMBER(AJ61),AJ61,0)) -> 
O61: Acumulado (%) | P61: =MIN(IF($B62,P60+IF(ISNUMBER(O61),O61,0),P62/$N60),1) ->  | AK61: =MIN(IF($B62,AK60+IF(ISNUMBER(AJ61),AJ61,0),AK62/$N60),1) -> 
A62: =OFFSET(A62,-CFF.NumLinha,0)+1 -> 15 | B62: =$C62>=OFFSET($C62,CFF.NumLinha,0) ->  | C62: =INDEX(PO!A$12:A$52,MATCH($A62,PO!$V$12:$V$52,0)) ->  | D62: =IF(ISERROR(J62),I62,SMALL(I62:J62,1))-1 ->  | E62: =IF($C62=1,OFFSET(E62,-CFF.NumLinha,0)+1,OFFSET(E62,-CFF.NumLinha,0)) ->  | F62: =IF($C62=1,0,IF($C62=2,OFFSET(F62,-CFF.NumLinha,0)+1,OFFSET(F62,-CFF.NumLinha,0))) ->  | G62: =IF(AND($C62<=2,$C62<>0),0,IF($C62=3,OFFSET(G62,-CFF.NumLinha,0)+1,OFFSET(G62,-CFF.NumLinha,0))) ->  | H62: =IF(AND($C62<=3,$C62<>0),0,IF($C62=4,OFFSET(H62,-CFF.NumLinha,0)+1,OFFSET(H62,-CFF.NumLinha,0))) ->  | I62: =MATCH(0,OFFSET($D62,1,$C62,ROW($A$84)-ROW($A62)),0) ->  | J62: =MATCH(OFFSET($D62,0,$C62)+1,OFFSET($D62,1,$C62,ROW($A$84)-ROW($A62)),0) ->  | K62: =ROUND(INDEX(PO!T$12:T$52,MATCH($A62,PO!$V$12:$V$52,0)),2)+10^-12 ->  | O62: Acumulado (R$) | P62: =IF($B62,ROUND(P61*$N60,2),ROUND(SUMIF(OFFSET($B62,1,0,$D62),TRUE,OFFSET(P62,1,0,$D62))/SUMIF(OFFSET($B62,1,0,$D62),TRUE,OFFSET($K62,1,0,$D62))*$N60,2)) ->  | X62: =IF($B62,ROUND(X61*$N60,2),ROUND(SUMIF(OFFSET($B62,1,0,$D62),TRUE,OFFSET(X62,1,0,$D62))/SUMIF(OFFSET($B62,1,0,$D62),TRUE,OFFSET($K62,1,0,$D62))*$N60,2)) ->  | AK62: =IF($B62,ROUND(AK61*$N60,2),ROUND(SUMIF(OFFSET($B62,1,0,$D62),TRUE,OFFSET(AK62,1,0,$D62))/SUMIF(OFFSET($B62,1,0,$D62),TRUE,OFFSET($K62,1,0,$D62))*$N60,2)) -> 
L63: =INDEX(PO!K$12:K$52,MATCH($A65,PO!$V$12:$V$52,0)) ->  | M63: =INDEX(PO!N$12:N$52,MATCH($A65,PO!$V$12:$V$52,0)) ->  | N63: =IF(ROUND(K65,2)=0,K65,ROUND(K65,2)) ->  | O63: Parcela (%) | P63: =IF($B65,0,P64-IF(ISNUMBER(O64),O64,0)) ->  | AK63: =IF($B65,0,AK64-IF(ISNUMBER(AJ64),AJ64,0)) -> 
O64: Acumulado (%) | P64: =MIN(IF($B65,P63+IF(ISNUMBER(O64),O64,0),P65/$N63),1) ->  | AK64: =MIN(IF($B65,AK63+IF(ISNUMBER(AJ64),AJ64,0),AK65/$N63),1) -> 
A65: =OFFSET(A65,-CFF.NumLinha,0)+1 -> 16 | B65: =$C65>=OFFSET($C65,CFF.NumLinha,0) ->  | C65: =INDEX(PO!A$12:A$52,MATCH($A65,PO!$V$12:$V$52,0)) ->  | D65: =IF(ISERROR(J65),I65,SMALL(I65:J65,1))-1 ->  | E65: =IF($C65=1,OFFSET(E65,-CFF.NumLinha,0)+1,OFFSET(E65,-CFF.NumLinha,0)) ->  | F65: =IF($C65=1,0,IF($C65=2,OFFSET(F65,-CFF.NumLinha,0)+1,OFFSET(F65,-CFF.NumLinha,0))) ->  | G65: =IF(AND($C65<=2,$C65<>0),0,IF($C65=3,OFFSET(G65,-CFF.NumLinha,0)+1,OFFSET(G65,-CFF.NumLinha,0))) ->  | H65: =IF(AND($C65<=3,$C65<>0),0,IF($C65=4,OFFSET(H65,-CFF.NumLinha,0)+1,OFFSET(H65,-CFF.NumLinha,0))) ->  | I65: =MATCH(0,OFFSET($D65,1,$C65,ROW($A$84)-ROW($A65)),0) ->  | J65: =MATCH(OFFSET($D65,0,$C65)+1,OFFSET($D65,1,$C65,ROW($A$84)-ROW($A65)),0) ->  | K65: =ROUND(INDEX(PO!T$12:T$52,MATCH($A65,PO!$V$12:$V$52,0)),2)+10^-12 ->  | O65: Acumulado (R$) | P65: =IF($B65,ROUND(P64*$N63,2),ROUND(SUMIF(OFFSET($B65,1,0,$D65),TRUE,OFFSET(P65,1,0,$D65))/SUMIF(OFFSET($B65,1,0,$D65),TRUE,OFFSET($K65,1,0,$D65))*$N63,2)) ->  | X65: =IF($B65,ROUND(X64*$N63,2),ROUND(SUMIF(OFFSET($B65,1,0,$D65),TRUE,OFFSET(X65,1,0,$D65))/SUMIF(OFFSET($B65,1,0,$D65),TRUE,OFFSET($K65,1,0,$D65))*$N63,2)) ->  | AK65: =IF($B65,ROUND(AK64*$N63,2),ROUND(SUMIF(OFFSET($B65,1,0,$D65),TRUE,OFFSET(AK65,1,0,$D65))/SUMIF(OFFSET($B65,1,0,$D65),TRUE,OFFSET($K65,1,0,$D65))*$N63,2)) -> 
L66: =INDEX(PO!K$12:K$52,MATCH($A68,PO!$V$12:$V$52,0)) ->  | M66: =INDEX(PO!N$12:N$52,MATCH($A68,PO!$V$12:$V$52,0)) ->  | N66: =IF(ROUND(K68,2)=0,K68,ROUND(K68,2)) ->  | O66: Parcela (%) | P66: =IF($B68,0,P67-IF(ISNUMBER(O67),O67,0)) ->  | AK66: =IF($B68,0,AK67-IF(ISNUMBER(AJ67),AJ67,0)) -> 
O67: Acumulado (%) | P67: =MIN(IF($B68,P66+IF(ISNUMBER(O67),O67,0),P68/$N66),1) ->  | AK67: =MIN(IF($B68,AK66+IF(ISNUMBER(AJ67),AJ67,0),AK68/$N66),1) -> 
A68: =OFFSET(A68,-CFF.NumLinha,0)+1 -> 17 | B68: =$C68>=OFFSET($C68,CFF.NumLinha,0) ->  | C68: =INDEX(PO!A$12:A$52,MATCH($A68,PO!$V$12:$V$52,0)) ->  | D68: =IF(ISERROR(J68),I68,SMALL(I68:J68,1))-1 ->  | E68: =IF($C68=1,OFFSET(E68,-CFF.NumLinha,0)+1,OFFSET(E68,-CFF.NumLinha,0)) ->  | F68: =IF($C68=1,0,IF($C68=2,OFFSET(F68,-CFF.NumLinha,0)+1,OFFSET(F68,-CFF.NumLinha,0))) ->  | G68: =IF(AND($C68<=2,$C68<>0),0,IF($C68=3,OFFSET(G68,-CFF.NumLinha,0)+1,OFFSET(G68,-CFF.NumLinha,0))) ->  | H68: =IF(AND($C68<=3,$C68<>0),0,IF($C68=4,OFFSET(H68,-CFF.NumLinha,0)+1,OFFSET(H68,-CFF.NumLinha,0))) ->  | I68: =MATCH(0,OFFSET($D68,1,$C68,ROW($A$84)-ROW($A68)),0) ->  | J68: =MATCH(OFFSET($D68,0,$C68)+1,OFFSET($D68,1,$C68,ROW($A$84)-ROW($A68)),0) ->  | K68: =ROUND(INDEX(PO!T$12:T$52,MATCH($A68,PO!$V$12:$V$52,0)),2)+10^-12 ->  | O68: Acumulado (R$) | P68: =IF($B68,ROUND(P67*$N66,2),ROUND(SUMIF(OFFSET($B68,1,0,$D68),TRUE,OFFSET(P68,1,0,$D68))/SUMIF(OFFSET($B68,1,0,$D68),TRUE,OFFSET($K68,1,0,$D68))*$N66,2)) ->  | X68: =IF($B68,ROUND(X67*$N66,2),ROUND(SUMIF(OFFSET($B68,1,0,$D68),TRUE,OFFSET(X68,1,0,$D68))/SUMIF(OFFSET($B68,1,0,$D68),TRUE,OFFSET($K68,1,0,$D68))*$N66,2)) ->  | AK68: =IF($B68,ROUND(AK67*$N66,2),ROUND(SUMIF(OFFSET($B68,1,0,$D68),TRUE,OFFSET(AK68,1,0,$D68))/SUMIF(OFFSET($B68,1,0,$D68),TRUE,OFFSET($K68,1,0,$D68))*$N66,2)) -> 
L69: =INDEX(PO!K$12:K$52,MATCH($A71,PO!$V$12:$V$52,0)) ->  | M69: =INDEX(PO!N$12:N$52,MATCH($A71,PO!$V$12:$V$52,0)) ->  | N69: =IF(ROUND(K71,2)=0,K71,ROUND(K71,2)) ->  | O69: Parcela (%) | P69: =IF($B71,0,P70-IF(ISNUMBER(O70),O70,0)) ->  | AK69: =IF($B71,0,AK70-IF(ISNUMBER(AJ70),AJ70,0)) -> 
O70: Acumulado (%) | P70: =MIN(IF($B71,P69+IF(ISNUMBER(O70),O70,0),P71/$N69),1) ->  | AK70: =MIN(IF($B71,AK69+IF(ISNUMBER(AJ70),AJ70,0),AK71/$N69),1) -> 
A71: =OFFSET(A71,-CFF.NumLinha,0)+1 -> 18 | B71: =$C71>=OFFSET($C71,CFF.NumLinha,0) ->  | C71: =INDEX(PO!A$12:A$52,MATCH($A71,PO!$V$12:$V$52,0)) ->  | D71: =IF(ISERROR(J71),I71,SMALL(I71:J71,1))-1 ->  | E71: =IF($C71=1,OFFSET(E71,-CFF.NumLinha,0)+1,OFFSET(E71,-CFF.NumLinha,0)) ->  | F71: =IF($C71=1,0,IF($C71=2,OFFSET(F71,-CFF.NumLinha,0)+1,OFFSET(F71,-CFF.NumLinha,0))) ->  | G71: =IF(AND($C71<=2,$C71<>0),0,IF($C71=3,OFFSET(G71,-CFF.NumLinha,0)+1,OFFSET(G71,-CFF.NumLinha,0))) ->  | H71: =IF(AND($C71<=3,$C71<>0),0,IF($C71=4,OFFSET(H71,-CFF.NumLinha,0)+1,OFFSET(H71,-CFF.NumLinha,0))) ->  | I71: =MATCH(0,OFFSET($D71,1,$C71,ROW($A$84)-ROW($A71)),0) ->  | J71: =MATCH(OFFSET($D71,0,$C71)+1,OFFSET($D71,1,$C71,ROW($A$84)-ROW($A71)),0) ->  | K71: =ROUND(INDEX(PO!T$12:T$52,MATCH($A71,PO!$V$12:$V$52,0)),2)+10^-12 ->  | O71: Acumulado (R$) | P71: =IF($B71,ROUND(P70*$N69,2),ROUND(SUMIF(OFFSET($B71,1,0,$D71),TRUE,OFFSET(P71,1,0,$D71))/SUMIF(OFFSET($B71,1,0,$D71),TRUE,OFFSET($K71,1,0,$D71))*$N69,2)) ->  | X71: =IF($B71,ROUND(X70*$N69,2),ROUND(SUMIF(OFFSET($B71,1,0,$D71),TRUE,OFFSET(X71,1,0,$D71))/SUMIF(OFFSET($B71,1,0,$D71),TRUE,OFFSET($K71,1,0,$D71))*$N69,2)) ->  | AK71: =IF($B71,ROUND(AK70*$N69,2),ROUND(SUMIF(OFFSET($B71,1,0,$D71),TRUE,OFFSET(AK71,1,0,$D71))/SUMIF(OFFSET($B71,1,0,$D71),TRUE,OFFSET($K71,1,0,$D71))*$N69,2)) -> 
L72: =INDEX(PO!K$12:K$52,MATCH($A74,PO!$V$12:$V$52,0)) ->  | M72: =INDEX(PO!N$12:N$52,MATCH($A74,PO!$V$12:$V$52,0)) ->  | N72: =IF(ROUND(K74,2)=0,K74,ROUND(K74,2)) ->  | O72: Parcela (%) | P72: =IF($B74,0,P73-IF(ISNUMBER(O73),O73,0)) ->  | AK72: =IF($B74,0,AK73-IF(ISNUMBER(AJ73),AJ73,0)) -> 
O73: Acumulado (%) | P73: =MIN(IF($B74,P72+IF(ISNUMBER(O73),O73,0),P74/$N72),1) ->  | AK73: =MIN(IF($B74,AK72+IF(ISNUMBER(AJ73),AJ73,0),AK74/$N72),1) -> 
A74: =OFFSET(A74,-CFF.NumLinha,0)+1 -> 19 | B74: =$C74>=OFFSET($C74,CFF.NumLinha,0) ->  | C74: =INDEX(PO!A$12:A$52,MATCH($A74,PO!$V$12:$V$52,0)) ->  | D74: =IF(ISERROR(J74),I74,SMALL(I74:J74,1))-1 ->  | E74: =IF($C74=1,OFFSET(E74,-CFF.NumLinha,0)+1,OFFSET(E74,-CFF.NumLinha,0)) ->  | F74: =IF($C74=1,0,IF($C74=2,OFFSET(F74,-CFF.NumLinha,0)+1,OFFSET(F74,-CFF.NumLinha,0))) ->  | G74: =IF(AND($C74<=2,$C74<>0),0,IF($C74=3,OFFSET(G74,-CFF.NumLinha,0)+1,OFFSET(G74,-CFF.NumLinha,0))) ->  | H74: =IF(AND($C74<=3,$C74<>0),0,IF($C74=4,OFFSET(H74,-CFF.NumLinha,0)+1,OFFSET(H74,-CFF.NumLinha,0))) ->  | I74: =MATCH(0,OFFSET($D74,1,$C74,ROW($A$84)-ROW($A74)),0) ->  | J74: =MATCH(OFFSET($D74,0,$C74)+1,OFFSET($D74,1,$C74,ROW($A$84)-ROW($A74)),0) ->  | K74: =ROUND(INDEX(PO!T$12:T$52,MATCH($A74,PO!$V$12:$V$52,0)),2)+10^-12 ->  | O74: Acumulado (R$) | P74: =IF($B74,ROUND(P73*$N72,2),ROUND(SUMIF(OFFSET($B74,1,0,$D74),TRUE,OFFSET(P74,1,0,$D74))/SUMIF(OFFSET($B74,1,0,$D74),TRUE,OFFSET($K74,1,0,$D74))*$N72,2)) ->  | X74: =IF($B74,ROUND(X73*$N72,2),ROUND(SUMIF(OFFSET($B74,1,0,$D74),TRUE,OFFSET(X74,1,0,$D74))/SUMIF(OFFSET($B74,1,0,$D74),TRUE,OFFSET($K74,1,0,$D74))*$N72,2)) ->  | AK74: =IF($B74,ROUND(AK73*$N72,2),ROUND(SUMIF(OFFSET($B74,1,0,$D74),TRUE,OFFSET(AK74,1,0,$D74))/SUMIF(OFFSET($B74,1,0,$D74),TRUE,OFFSET($K74,1,0,$D74))*$N72,2)) -> 
L75: =INDEX(PO!K$12:K$52,MATCH($A77,PO!$V$12:$V$52,0)) ->  | M75: =INDEX(PO!N$12:N$52,MATCH($A77,PO!$V$12:$V$52,0)) ->  | N75: =IF(ROUND(K77,2)=0,K77,ROUND(K77,2)) ->  | O75: Parcela (%) | P75: =IF($B77,0,P76-IF(ISNUMBER(O76),O76,0)) ->  | AK75: =IF($B77,0,AK76-IF(ISNUMBER(AJ76),AJ76,0)) -> 
O76: Acumulado (%) | P76: =MIN(IF($B77,P75+IF(ISNUMBER(O76),O76,0),P77/$N75),1) ->  | AK76: =MIN(IF($B77,AK75+IF(ISNUMBER(AJ76),AJ76,0),AK77/$N75),1) -> 
A77: =OFFSET(A77,-CFF.NumLinha,0)+1 -> 20 | B77: =$C77>=OFFSET($C77,CFF.NumLinha,0) ->  | C77: =INDEX(PO!A$12:A$52,MATCH($A77,PO!$V$12:$V$52,0)) ->  | D77: =IF(ISERROR(J77),I77,SMALL(I77:J77,1))-1 ->  | E77: =IF($C77=1,OFFSET(E77,-CFF.NumLinha,0)+1,OFFSET(E77,-CFF.NumLinha,0)) ->  | F77: =IF($C77=1,0,IF($C77=2,OFFSET(F77,-CFF.NumLinha,0)+1,OFFSET(F77,-CFF.NumLinha,0))) ->  | G77: =IF(AND($C77<=2,$C77<>0),0,IF($C77=3,OFFSET(G77,-CFF.NumLinha,0)+1,OFFSET(G77,-CFF.NumLinha,0))) ->  | H77: =IF(AND($C77<=3,$C77<>0),0,IF($C77=4,OFFSET(H77,-CFF.NumLinha,0)+1,OFFSET(H77,-CFF.NumLinha,0))) ->  | I77: =MATCH(0,OFFSET($D77,1,$C77,ROW($A$84)-ROW($A77)),0) ->  | J77: =MATCH(OFFSET($D77,0,$C77)+1,OFFSET($D77,1,$C77,ROW($A$84)-ROW($A77)),0) ->  | K77: =ROUND(INDEX(PO!T$12:T$52,MATCH($A77,PO!$V$12:$V$52,0)),2)+10^-12 ->  | O77: Acumulado (R$) | P77: =IF($B77,ROUND(P76*$N75,2),ROUND(SUMIF(OFFSET($B77,1,0,$D77),TRUE,OFFSET(P77,1,0,$D77))/SUMIF(OFFSET($B77,1,0,$D77),TRUE,OFFSET($K77,1,0,$D77))*$N75,2)) ->  | X77: =IF($B77,ROUND(X76*$N75,2),ROUND(SUMIF(OFFSET($B77,1,0,$D77),TRUE,OFFSET(X77,1,0,$D77))/SUMIF(OFFSET($B77,1,0,$D77),TRUE,OFFSET($K77,1,0,$D77))*$N75,2)) ->  | AK77: =IF($B77,ROUND(AK76*$N75,2),ROUND(SUMIF(OFFSET($B77,1,0,$D77),TRUE,OFFSET(AK77,1,0,$D77))/SUMIF(OFFSET($B77,1,0,$D77),TRUE,OFFSET($K77,1,0,$D77))*$N75,2)) -> 
L78: =INDEX(PO!K$12:K$52,MATCH($A80,PO!$V$12:$V$52,0)) ->  | M78: =INDEX(PO!N$12:N$52,MATCH($A80,PO!$V$12:$V$52,0)) ->  | N78: =IF(ROUND(K80,2)=0,K80,ROUND(K80,2)) ->  | O78: Parcela (%) | P78: =IF($B80,0,P79-IF(ISNUMBER(O79),O79,0)) ->  | AK78: =IF($B80,0,AK79-IF(ISNUMBER(AJ79),AJ79,0)) -> 
O79: Acumulado (%) | P79: =MIN(IF($B80,P78+IF(ISNUMBER(O79),O79,0),P80/$N78),1) ->  | AK79: =MIN(IF($B80,AK78+IF(ISNUMBER(AJ79),AJ79,0),AK80/$N78),1) -> 
A80: =OFFSET(A80,-CFF.NumLinha,0)+1 -> 21 | B80: =$C80>=OFFSET($C80,CFF.NumLinha,0) ->  | C80: =INDEX(PO!A$12:A$52,MATCH($A80,PO!$V$12:$V$52,0)) ->  | D80: =IF(ISERROR(J80),I80,SMALL(I80:J80,1))-1 ->  | E80: =IF($C80=1,OFFSET(E80,-CFF.NumLinha,0)+1,OFFSET(E80,-CFF.NumLinha,0)) ->  | F80: =IF($C80=1,0,IF($C80=2,OFFSET(F80,-CFF.NumLinha,0)+1,OFFSET(F80,-CFF.NumLinha,0))) ->  | G80: =IF(AND($C80<=2,$C80<>0),0,IF($C80=3,OFFSET(G80,-CFF.NumLinha,0)+1,OFFSET(G80,-CFF.NumLinha,0))) ->  | H80: =IF(AND($C80<=3,$C80<>0),0,IF($C80=4,OFFSET(H80,-CFF.NumLinha,0)+1,OFFSET(H80,-CFF.NumLinha,0))) ->  | I80: =MATCH(0,OFFSET($D80,1,$C80,ROW($A$84)-ROW($A80)),0) ->  | J80: =MATCH(OFFSET($D80,0,$C80)+1,OFFSET($D80,1,$C80,ROW($A$84)-ROW($A80)),0) ->  | K80: =ROUND(INDEX(PO!T$12:T$52,MATCH($A80,PO!$V$12:$V$52,0)),2)+10^-12 ->  | O80: Acumulado (R$) | P80: =IF($B80,ROUND(P79*$N78,2),ROUND(SUMIF(OFFSET($B80,1,0,$D80),TRUE,OFFSET(P80,1,0,$D80))/SUMIF(OFFSET($B80,1,0,$D80),TRUE,OFFSET($K80,1,0,$D80))*$N78,2)) ->  | X80: =IF($B80,ROUND(X79*$N78,2),ROUND(SUMIF(OFFSET($B80,1,0,$D80),TRUE,OFFSET(X80,1,0,$D80))/SUMIF(OFFSET($B80,1,0,$D80),TRUE,OFFSET($K80,1,0,$D80))*$N78,2)) ->  | AK80: =IF($B80,ROUND(AK79*$N78,2),ROUND(SUMIF(OFFSET($B80,1,0,$D80),TRUE,OFFSET(AK80,1,0,$D80))/SUMIF(OFFSET($B80,1,0,$D80),TRUE,OFFSET($K80,1,0,$D80))*$N78,2)) -> 
L81: =INDEX(PO!K$12:K$52,MATCH($A83,PO!$V$12:$V$52,0)) ->  | M81: =INDEX(PO!N$12:N$52,MATCH($A83,PO!$V$12:$V$52,0)) ->  | N81: =IF(ROUND(K83,2)=0,K83,ROUND(K83,2)) ->  | O81: Parcela (%) | P81: =IF($B83,0,P82-IF(ISNUMBER(O82),O82,0)) ->  | Z81: 1 | AA81: =IF($B83,0,AA82-IF(ISNUMBER(Z82),Z82,0)) ->  | AB81: =IF($B83,0,AB82-IF(ISNUMBER(AA82),AA82,0)) ->  | AC81: =IF($B83,0,AC82-IF(ISNUMBER(AB82),AB82,0)) ->  | AD81: =IF($B83,0,AD82-IF(ISNUMBER(AC82),AC82,0)) ->  | AE81: =IF($B83,0,AE82-IF(ISNUMBER(AD82),AD82,0)) ->  | AK81: =IF($B83,0,AK82-IF(ISNUMBER(AJ82),AJ82,0)) -> 
O82: Acumulado (%) | P82: =MIN(IF($B83,P81+IF(ISNUMBER(O82),O82,0),P83/$N81),1) ->  | AK82: =MIN(IF($B83,AK81+IF(ISNUMBER(AJ82),AJ82,0),AK83/$N81),1) -> 
A83: =OFFSET(A83,-CFF.NumLinha,0)+1 -> 22 | B83: =$C83>=OFFSET($C83,CFF.NumLinha,0) ->  | C83: =INDEX(PO!A$12:A$52,MATCH($A83,PO!$V$12:$V$52,0)) ->  | D83: =IF(ISERROR(J83),I83,SMALL(I83:J83,1))-1 ->  | E83: =IF($C83=1,OFFSET(E83,-CFF.NumLinha,0)+1,OFFSET(E83,-CFF.NumLinha,0)) ->  | F83: =IF($C83=1,0,IF($C83=2,OFFSET(F83,-CFF.NumLinha,0)+1,OFFSET(F83,-CFF.NumLinha,0))) ->  | G83: =IF(AND($C83<=2,$C83<>0),0,IF($C83=3,OFFSET(G83,-CFF.NumLinha,0)+1,OFFSET(G83,-CFF.NumLinha,0))) ->  | H83: =IF(AND($C83<=3,$C83<>0),0,IF($C83=4,OFFSET(H83,-CFF.NumLinha,0)+1,OFFSET(H83,-CFF.NumLinha,0))) ->  | I83: =MATCH(0,OFFSET($D83,1,$C83,ROW($A$84)-ROW($A83)),0) ->  | J83: =MATCH(OFFSET($D83,0,$C83)+1,OFFSET($D83,1,$C83,ROW($A$84)-ROW($A83)),0) ->  | K83: =ROUND(INDEX(PO!T$12:T$52,MATCH($A83,PO!$V$12:$V$52,0)),2)+10^-12 ->  | O83: Acumulado (R$) | P83: =IF($B83,ROUND(P82*$N81,2),ROUND(SUMIF(OFFSET($B83,1,0,$D83),TRUE,OFFSET(P83,1,0,$D83))/SUMIF(OFFSET($B83,1,0,$D83),TRUE,OFFSET($K83,1,0,$D83))*$N81,2)) ->  | X83: =IF($B83,ROUND(X82*$N81,2),ROUND(SUMIF(OFFSET($B83,1,0,$D83),TRUE,OFFSET(X83,1,0,$D83))/SUMIF(OFFSET($B83,1,0,$D83),TRUE,OFFSET($K83,1,0,$D83))*$N81,2)) ->  | AK83: =IF($B83,ROUND(AK82*$N81,2),ROUND(SUMIF(OFFSET($B83,1,0,$D83),TRUE,OFFSET(AK83,1,0,$D83))/SUMIF(OFFSET($B83,1,0,$D83),TRUE,OFFSET($K83,1,0,$D83))*$N81,2)) -> 
C84: -1 | E84: 0 | F84: 0 | G84: 0 | H84: 0
L86: =DADOS!I32 -> 0
L87: Local
L89: =PO!K66 -> 2019-02-22
L90: Data
